Workbook

Sheet Cash Invoices
A1: RGV Cycle Stuff, dba -
T2: SALES RECEIPT
AC5: DATE: | AD5: =TODAY() -> 2016-02-05
AC6: INVOICE: | AD6: 18839
B13: Bill To: | X13: Ship To: | AL13: Note:
C14: Name: | AA14: =+E14 -> 0
C15: Phone: | AA15: =+E15 -> 0
C16: Address: | AA16: =+E16 -> 
C17: Email: | AA17: =+E17 -> 
K19: Custom LED Lighting
A20: Type | E20: Sales Rep. Name | M20: VIN | T20: Miles | Y20: Terms | AD20: Due Date
A23: Product ID | E23: Description | T23: Quantity | Y23: Unit Price | AD23: Line Total
AD24: =ROUND(+T24*Y24+0.000001,2) -> 0
AD25: 0
AD26: 0
AD27: 0
AD28: 0
AD29: 0
AD30: 0
AD31: 0
AD32: 0
AD33: 0
AD34: 0
AD35: 0
AB36: SUBTOTAL | AD36: =SUM(AD24:AH35) -> 0
F37: RGV Cycle Center | AB37: TAX (8.25%) | AD37: =ROUND(+AD36*0.0825,2) -> 0
F38: 2716 N.10th Street | AB38: SHIPPING & HANDLING
F39: McAllen, TX 78501 | AB39: TOTAL | AD39: =SUM(AD36:AH38) -> 0
A40: NOTES: | AB40: PAID
A41: Use caution with new tires, "slippery" for the first 100 miles. | AB41: TOTAL DUE | AD41: =+AD39-AD40 -> 0
A42: Check all fastening nuts and bolts after 100 miles.
A43: No refunds on self installed electrical items or Helmets.
A44: 20% restocking fee after 7 days & all Special Orders.
A45: 956-688-8086
A47: THANK YOU FOR YOUR BUSINESS !

Sheet Ctrl_R
A1: RGV Cycle Stuff, dba -
T2: SALES RECEIPT
AC5: DATE: | AD5: 2016-01-22
AC6: INVOICE: | AD6: 18685
Z7: Total Invoice | AF7: 54.13
Z8: Total Paid | AF8: 54.13
Z9: Balance | AF9: 0
B13: Bill To: | X13: Ship To: | AL13: Note:
C14: Name: | E14: Mario | AA14: =+E14 -> Mario
C15: Phone: | E15: 956-373-7928 | AA15: =+E15 -> 956-373-7928
C16: Address: | E16: 2012 Kaw Ninja 250R | AA16: =+E16 -> 2012 Kaw Ninja 250R
C17: Email: | AA17: =+E17 -> 
K19: Custom LED Lighting
A20: Type | E20: Sales Rep. Name | M20: VIN | T20: Miles | Y20: Terms | AD20: Due Date
A21: P | E21: Robert | Y21: Visa
A23: Product ID | E23: Description | T23: Quantity | Y23: Unit Price | AD23: Line Total
A24: 2401845 | E24: LAMP-ASSY-SIGNAL,FR,L | T24: 1 | Y24: 41 | AD24: =ROUND(+T24*Y24+0.000001,2) -> 41
A25: FRT | E25: Shipping | T25: 1 | Y25: 9 | AD25: 9
AD26: 0
E27: ETA 7 to 10 business days | AD27: 0
E28: Thanks | AD28: 0
AD29: 0
AD30: 0
AD31: 0
AD32: 0
AD33: 0
AD34: 0
AD35: 0
AB36: SUBTOTAL | AD36: =SUM(AD24:AH35) -> 50
F37: RGV Cycle Center | AB37: TAX (8.25%) | AD37: 4.13
F38: 2716 N.10th Street | AB38: SHIPPING & HANDLING
F39: McAllen, TX 78501 | AB39: TOTAL | AD39: =SUM(AD36:AH38) -> 54.13
A40: NOTES: | AB40: PAID | AD40: 54.13
A41: Use caution with new tires, "slippery" for the first 100 miles. | AB41: TOTAL DUE | AD41: 0
A42: Check all fastening nuts and bolts after 100 miles.
A43: No refunds on self installed electrical items or Helmets.
A44: 20% restocking fee after 7 days & all Special Orders.
A45: 956-688-8086
A47: THANK YOU FOR YOUR BUSINESS !

Sheet CTRL_G
A1: RGV Cycle Stuff, dba -
U2: ESTIMATE
AC5: DATE: | AD5: 2016-02-05T12:45:01
B13: Bill To: | X13: Ship To: | AL13: Note:
E14: Jesse (Gil) | AA14: =+E14 -> Jesse (Gil)
E15: 956-907-2067 | AA15: =+E15 -> 956-907-2067
E16: 2005 Kaw VN1600B Vulcan Mean Streak | AA16: =+E16 -> 2005 Kaw VN1600B Vulcan Mean Streak
E17: USA | L17: ESTIMATE | AA17: =+E17 -> USA
A20: Type | E20: Sales Rep. Name | M20: VIN | T20: Miles | Y20: Terms | AD20: Due Date
E21: Jim | Y21: Cash
A23: Product ID | E23: Description | T23: Quantity | Y23: Unit Price | AD23: Line Total
A24: 5000 | E24: Labor - R&R Fork Seals | T24: 1 | Y24: 146 | AD24: =+T24*Y24 -> 146 | AL24: 1
A25: 429027 | E25: BM FORK SEAL 43X54X11 | T25: 1 | Y25: 12 | AD25: 12 | AL25: -2
E26: Fork Oil - Wt TBD | T26: 1 | Y26: 12 | AD26: 12
AD27: 0
A28: Note - | E28: Brakes extra if required | T28: 2 | Y28: 14 | AD28: 28 | AL28: -3
T29: 2 | Y29: 14 | AD29: 28 | AL29: 0
E30: Will advise when completr | T30: 1 | Y30: 28 | AD30: 28
AD31: 0
AD32: 0
AD33: 0
AD34: 0
E35: Bike left 05-Feb _________________ | AD35: 0
AB36: SUBTOTAL | AD36: =SUM(AD24:AH35) -> 254
F37: RGV Cycle Center | AB37: TAX (8.25%) | AD37: =+AD36*0.0825 -> 20.955
F38: 2716 N.10th Street | AB38: SHIPPING & HANDLING
F39: McAllen, TX 78501 | AB39: TOTAL | AD39: =SUM(AD36:AH38) -> 274.955
A40: NOTES: | AB40: PAID
A41: Use caution with new tires, "slippery" for the first 100 miles. Check all fastening nuts and bolts after 100 miles. No refunds on self installed electrical items. 20% restocking fee after 7 days & Special Orders. | AB41: TOTAL EST. | AD41: =+AD39-AD40 -> 274.955
A45: 956-688-8086
A47: THANK YOU FOR YOUR BUSINESS !

Sheet Estimate
A1: RGV Cycle Stuff, dba -
U2: ESTIMATE
AC5: DATE: | AD5: =NOW() -> 2016-02-05T17:55:10.970
B13: Bill To: | X13: Ship To: | AL13: Note:
E14: Cash Customer | AA14: =+E14 -> Cash Customer
AA15: =+E15 -> 0
AA16: =+E16 -> 0
E17: USA | L17: ESTIMATE | AA17: =+E17 -> USA
A20: Type | E20: Sales Rep. Name | M20: VIN | T20: Miles | Y20: Terms | AD20: Due Date
E21: Robert | Y21: Cash
A23: Product ID | E23: Description | T23: Quantity | Y23: Unit Price | AD23: Line Total
A24: 310473 | E24: AMERICAN ELITE *200/55R17 RR | Y24: 160.8 | AD24: =+T24*Y24 -> 0 | AL24: -9
AD25: 0 | AL25: -2
AD26: 0
AD27: 0
AD28: 0 | AL28: -3
AD29: 0 | AL29: 0
AD30: 0
AD31: 0
AD32: 0
AD33: 0
AD34: 0
E35: Estimates valid for 10 days | AD35: 0
AB36: SUBTOTAL | AD36: =SUM(AD24:AH35) -> 0
F37: RGV Cycle Center | AB37: TAX (8.25%) | AD37: =+AD36*0.0825 -> 0
F38: 2716 N.10th Street | AB38: SHIPPING & HANDLING
F39: McAllen, TX 78501 | AB39: TOTAL | AD39: =SUM(AD36:AH38) -> 0
A40: NOTES: | AB40: PAID
A41: Use caution with new tires, "slippery" for the first 100 miles. Check all fastening nuts and bolts after 100 miles. No refunds on self installed electrical items. 20% restocking fee after 7 days & Special Orders. | AB41: TOTAL EST. | AD41: =+AD39-AD40 -> 0
A45: 956-688-8086
A47: THANK YOU FOR YOUR BUSINESS !

Sheet Feb-16
A1: Invoice | C1: =SUM(C3:C259) -> 7001.118225 | D1: =SUM(D3:D259) -> 439.718225 | F1: =SUM(F3:F1232) -> 3297.148225 | G1: =SUM(G3:G1232) -> 3232.946652 | H1: =TODAY() -> 2016-02-05
A2: Number | B2: Date | C2: Amount | D2: Tax | E2: Terms
A3: 18781 | B3: 2016-02-01 | C3: 362.64 | D3: 27.64 | E3: Square
A4: 18782 | B4: 2016-02-01 | C4: 268.46 | D4: 20.46 | E4: Visa
A5: 18783 | B5: 2016-02-01 | C5: 84.44 | D5: 6.44 | E5: Due, Chevo
A6: 18784 | B6: 2016-02-01 | C6: 236.53 | D6: 18.03 | E6: Visa, $136.52 due
A7: 18785 | B7: 2016-02-01 | C7: 31.39 | D7: 2.39 | E7: Visa
A8: 18786 | B8: 2016-02-01 | C8: 54.13 | D8: 4.13 | E8: Visa
A9: 18787 | B9: 2016-02-01 | C9: 38.86 | D9: 2.96
A10: 18788 | B10: 2016-02-01 | C10: 101 | E10: Done Rite - resale
A11: 18789 | B11: 2016-02-01 | C11: 156.42 | D11: 11.92 | E11: Due
A12: 18790 | B12: 2016-02-01 | C12: 163 | D12: 12.42
A13: 18791 | B13: 2016-02-01 | C13: 30.09 | D13: 2.29
A14: 18792 | B14: 2016-02-01 | C14: 20.3 | D14: 1.55 | F14: =+C4+100+C7+C8+200 -> 653.98 | G14: =444.83+192.85 -> 637.68
A15: 18793 | B15: 2016-02-02 | C15: 88.77 | D15: 6.77 | E15: $8.77 Visa, bal Cash
A16: 18794 | B16: 2016-02-02 | C16: 7.52 | D16: 0.57
A17: 18795 | B17: 2016-02-02 | C17: 110.42 | D17: 8.42 | E17: Visa
A18: 18796 | B18: 2016-02-02 | C18: 74.1 | D18: 5.65 | E18: Visa
A19: 18797 | B19: 2016-02-02 | C19: 151.55 | D19: 11.55 | E19: Visa
A20: 18798 | B20: 2016-02-02 | C20: 17.32 | D20: 1.32 | E20: Due
A21: 18799 | B21: 2016-02-02 | C21: 18.5 | E21: Revolution - resale
A22: 18800 | B22: 2016-02-02 | C22: 199.36 | E22: Due, J.Rangel - resale | F22: =+C17+C18+C19 -> 336.07 | G22: 330.89
A23: 18801 | B23: 2016-02-03 | C23: 228.95 | D23: 17.45 | E23: Visa
A24: 18802 | B24: 2016-02-03 | C24: 76.998225 | D24: 5.868225 | E24: Visa
A25: 18803 | B25: 2016-02-03 | C25: 52.8 | D25: 4.02 | E25: Square
A26: 18804 | B26: 2016-02-03 | C26: 11.91 | D26: 0.91 | E26: Visa
A27: 18805 | B27: 2016-02-03 | C27: 36.5 | D27: 2.78 | E27: Square
A28: 18806 | B28: 2016-02-03 | C28: 70.36 | D28: 5.36 | E28: Due
A29: 18807 | B29: 2016-02-03 | C29: 57.32 | D29: 4.37
A30: 18808 | B30: 2016-02-03 | C30: 151.5 | E30: Trade, Chris F - resale
A31: 18809 | B31: 2016-02-03 | C31: 32.48 | D31: 2.48 | E31: MC
A32: 18810 | B32: 2016-02-03 | C32: 43.78 | E32: J.Rangel - resale
A33: 18811 | B33: 2016-02-03 | C33: 287.95 | D33: 21.95 | E33: MC
A34: 18812 | B34: 2016-02-03 | C34: 355.06 | D34: 27.06 | E34: Visa | F34: =+C23+C24+C26+C31+C33+C34+581 -> 1574.348225 | G34: =982.49+565.03 -> 1547.52
A35: 18813 | B35: 2016-02-04 | C35: 37.83 | D35: 2.88
A36: 18814 | B36: 2016-02-04 | C36: 171.04 | D36: 13.04 | E36: Visa
A37: 18815 | B37: 2016-02-04 | C37: 426.51 | D37: 32.51 | E37: Due
A38: 18816 | B38: 2016-02-04 | C38: 190 | D38: 14.48 | E38: $91.76 due
A39: 18817 | B39: 2016-02-04 | C39: 449.78 | D39: 34.28 | E39: Check
A40: 18818 | B40: 2016-02-04 | C40: 0 | D40: 0 | E40: With Inv 18817
A41: 18819 | B41: 2016-02-04 | C41: 134.23 | D41: 10.23 | E41: Visa
A42: 18820 | B42: 2016-02-04 | C42: 17.32 | D42: 1.32 | E42: MC
A43: 18821 | B43: 2016-02-04 | C43: 43.95 | D43: 3.35 | E43: Visa
A44: 18822 | B44: 2016-02-04 | C44: 0 | D44: 0
A45: 18823 | B45: 2016-02-04 | C45: 145.9 | E45: Due, Carlos G - MX resale
A46: 18824 | B46: 2016-02-04 | C46: 357.15 | E46: Due, Carlos G - MX resale
A47: 18825 | B47: 2016-02-04 | C47: 12 | D47: 0.91
A48: 18826 | B48: 2016-02-04 | C48: 12.99 | D48: 0.99 | E48: Visa | F48: =+C36+C41+C48+C43+8.77+C42+17.32 -> 405.62 | G48: =+F48*0.97831 -> 396.8221022
A49: 18827 | B49: 2016-02-05 | C49: 28.6 | E49: Visa, Border Patrol
A50: 18828 | B50: 2016-02-05 | C50: 25.2 | E50: Visa, Border Patrol
A51: 18829 | B51: 2016-02-05 | C51: 39.89 | D51: 3.04
A52: 18830 | B52: 2016-02-05 | C52: 173.2 | D52: 13.2
A53: 18831 | B53: 2016-02-05 | C53: 8.66 | D53: 0.66 | E53: Visa
A54: 18832 | B54: 2016-02-05 | C54: 150.67 | D54: 11.48
A55: 18833 | B55: 2016-02-05 | C55: 11.91 | D55: 0.91 | E55: Visa
A56: 18834 | B56: 2016-02-05 | C56: 44.38 | D56: 3.38 | E56: Visa
A57: 18835 | B57: 2016-02-05 | C57: 544.39 | D57: 41.49 | E57: Due, Ref Inv 18714
A58: 18836 | B58: 2016-02-05 | C58: 208.38 | D58: 15.88 | E58: Visa
A59: 18837 | B59: 2016-02-05 | C59: 160.8 | E59: Due, Carlos G - MX resale
A60: 18838 | B60: 2016-02-05 | C60: -14.07 | D60: -1.07 | F60: =+C49+C50+C53+C55+C56+C58 -> 327.13 | G60: =+F60*0.97831 -> 320.0345503
I62: =H1-WEEKDAY(H1,3)-7 -> 2016-01-25 | J62: =SUMIF(INDIRECT(TEXT(I62,"'mmm-yy'")&"!B3:B400"),I62,INDIRECT(TEXT(I62,"'mmm-yy'")&"!C3:C400")) -> 1049.8
I63: =I62+1 -> 2016-01-26 | J63: 1659.46
I64: 2016-01-27 | J64: 1385.51
I65: 2016-01-28 | J65: 2192.16
I66: 2016-01-29 | J66: 950.26
I67: 2016-01-30 | J67: 1500.18
I68: 2016-01-31 | J68: 0 | K68: =SUM(J62:J68) -> 8737.37
I69: 2016-02-01 | J69: 1547.26
I70: 2016-02-02 | J70: 667.54
I71: 2016-02-03 | J71: 1405.608225
I72: 2016-02-04 | J72: 1998.7
I73: 2016-02-05 | J73: 1382.01
I74: 2016-02-06 | J74: 0
I75: 2016-02-07 | J75: 0 | K75: =SUM(J69:J75) -> 7001.118225

Sheet Work Order
A1: RGV Cycle Stuff, dba -
U2: WORK ORDER
AC5: DATE:
B13: Bill To: | X13: Ship To:
D14: Name:
D15: Phone:
D16: Address:
D17: Bike:
A19: Type | E19: Sales Rep. Name | M19: VIN | Y19: Miles | AD19: Terms
A22: Product ID | E22: Description | T22: Quantity | Y22: Unit Price | AD22: Line Total
AL24: -1
AL25: -9.5
AL26: -5
AL27: -1
AL28: 2
AL29: -9.5
AL30: -4
AL31: 0
AD32: =+T32*Y32 -> 0 | AL32: 0
AD33: =+T33*Y33 -> 0
AD34: =+T34*Y34 -> 0
F35: RGV Cycle Center | AB35: SUBTOTAL
F36: 2716 N.10th Street | AB36: TAX (8.25%)
F37: McAllen, TX 78501 | AB37: TOTAL
A38: I hereby authorize the above repair work be done along with necessary materials. You and your employees may operate the above vehicle for the purpose of testing, inspection or delivery at my risk. An express mechanic’s lien is acknowledged on the above vehicle to secure the amount of the repairs thereto. You will not be responsible for loss or damage to vehicle or to articles left in the vehicle in case of fire, theft, accident or any other cause beyond your control. | AB38: PAID
AB39: TOTAL EST.
A45: X _______________________________________
A46: 956-688-8086
A48: THANK YOU FOR YOUR BUSINESS !

Sheet Logo

Sheet LookupList
A1: ClassID | B1: ExpID | C1: Cash Opening Balance | D1: VendorID | E1: Starting Balance (Memo only, not used by system) | G1: Tire Disposal Fee prompted?
A2: Advertising | B2: Bobbi | C2: 1870.55 | D2: TR | E2: 107.16 | G2: FALSE
A3: Taxes | B3: BofA | D3: WPS
A4: Credit Card (CC) | B4: CC Cleaning supplies | D4: AET | E4: Mechanic receiving commission (needs 2 b with capital) | G4: Whitewall check prompted?
A5: Stock | B5: CC Coffee | D5: BikeBandit | E5: Jim | G5: FALSE
A6: Labor | B6: CC Dad | D6: DWG
A7: Cash personal | B7: CC Doctor | D7: FHF | E7: Invoice Number when the program is loaded
A8: Bank | B8: CC Gasoline | D8: Helmets | E8: 18839
A9: Returns | B9: CC Harbor Freight | D9: Hesselbean
A10: Shop Supplies | B10: CC House Pymt | D10: Howards
A11: Charity | B11: CC Labor | D11: Maxx
A12: Fees | B12: CC Meals | D12: PapaDuff
A13: Office supplies | B13: CC Mustang Mtg | D13: Supersprox
A14: Rent | B14: CC O'Reilly | D14: Van Leeuwen
B15: CC Paint/Ant Spray | D15: eBay
B16: CC Prescriptions | D16: Amazon
B17: CC Printer Ink | D17: Tmart
B18: CC Stock - Amazon | D18: Banggood
B19: CC Stock - Ebay | D19: Other
B20: CC Stock - ESG
B21: CC Stock - Other
B22: CC Stock - TR
B23: CC Stock - WPS
B24: CC Uniforms
B25: CC Water
B26: Cleaning supplies
B27: Coffee
B28: Compass
B29: Dad
B30: Doctor
B31: Family
B32: Gasoline
B33: Groceries
B34: Harbor Freight
B35: House Pymt
B36: Meals
B37: Mustang Mtg
B38: Myself
B39: O'Reilly
B40: Paint/Ant Spray
B41: Prescriptions
B42: Printer Ink
B43: Randy
B44: Stock - Amazon
B45: Stock - Ebay
B46: Stock - Other
B47: Stock ESG
B48: Stock TR
B49: Stock WPS
B50: Uniforms
B51: Water
B52: ST Biker
B53: Extreem
B54: Advertising - Other

Sheet Statement
J1: Statement
J4: Date: | K4: =NOW() -> 2016-02-05T17:55:10.970
A6: Same day Motorcycle Tire Mounting & Balancing | J6: Statement #:
A8: 2716 N.10th Street - McAllen, Texas 78501 | J8: Customer ID:
A13: Bill To: | H13: Account Summary
A14: [Name] | H14: Previous Balance | L14: 0
A15: [Company Name] | H15: Credits | L15: =SUM(J21:K41) -> 0
A16: [Street Address] | H16: New Charges | L16: =SUM(H21:I41) -> 0
A17: [City, ST ZIP Code] | H17: Total Balance Due | L17: =+L14-L15+L16 -> 0
A18: [Phone] | H18: Payment Due Date
A20: Date | B20: Invoice # | C20: Description | H20: Charges | J20: Credits | L20: Line Total
L21: =+H21-J21 -> 0
L22: =+H22-J22 -> 0
L23: 0
L24: 0
L25: 0
L26: 0
L27: 0
L28: 0
L29: 0
L30: 0
L31: 0
L32: 0
L33: 0
L34: 0
L35: 0
L36: 0
L37: 0
L38: 0
L39: 0
L40: 0
L41: 0
K42: Current Balance | L42: =SUM(L21:L41) -> 0
C44: Your account balance is | D44: =+L42 -> 0 | E44: Please make your payment to cover the balance by the due date.
A46: Make all checks payable to RGV Cycle Stuff.
A48: Thank you for your business!
A50: If you have any questions concerning this statement, contact Robert Evenbly.
A53: 2716 N.10th Street, McAllen, Texas 78501
A55: Phone: 956-688-8086 - Email: Info@RGVCycleStuff.com

Sheet Master
A1: RGV Cycle Stuff, dba -
T2: SALES RECEIPT
AC5: DATE: | AD5: =TODAY() -> 2016-02-05
AC6: INVOICE: | AD6: 1610
B13: Bill To: | X13: Ship To: | AL13: Note:
C14: Name: | AA14: =+E14 -> 0
C15: Phone: | AA15: =+E15 -> 0
C16: Address: | AA16: =+E16 -> 
C17: Email: | AA17: =+E17 -> 
K19: Custom LED Lighting
A20: Type | E20: Sales Rep. Name | M20: VIN | T20: Miles | Y20: Terms | AD20: Due Date
A23: Product ID | E23: Description | T23: Quantity | Y23: Unit Price | AD23: Line Total
AD24: =ROUND(+T24*Y24+0.000001,2) -> 0
AD25: 0
AD26: 0
AD27: 0
AD28: 0
AD29: 0
AD30: 0
AD31: 0
AD32: 0
AD33: 0
AD34: 0
AD35: 0
AB36: SUBTOTAL | AD36: =SUM(AD24:AH35) -> 0
F37: RGV Cycle Center | AB37: TAX (8.25%) | AD37: =ROUND(+AD36*0.0825,2) -> 0
F38: 2716 N.10th Street | AB38: SHIPPING & HANDLING
F39: McAllen, TX 78501 | AB39: TOTAL | AD39: =SUM(AD36:AH38) -> 0
A40: NOTES: | AB40: PAID
A41: Use caution with new tires, "slippery" for the first 100 miles. | AB41: TOTAL DUE | AD41: =+AD39-AD40 -> 0
A42: Check all fastening nuts and bolts after 100 miles.
A43: No refunds on self installed electrical items or Helmets.
A44: 20% restocking fee after 7 days & all Special Orders.
A45: 956-688-8086
A47: THANK YOU FOR YOUR BUSINESS !

Sheet E_Master
A1: RGV Cycle Stuff, dba -
U2: ESTIMATE
AC5: DATE: | AD5: =NOW() -> 2016-02-05T17:55:10.970
B13: Bill To: | X13: Ship To: | AL13: Note:
E14: Cash Customer | AA14: =+E14 -> Cash Customer
AA15: =+E15 -> 0
AA16: =+E16 -> 0
E17: USA | L17: ESTIMATE | AA17: =+E17 -> USA
A20: Type | E20: Sales Rep. Name | M20: VIN | T20: Miles | Y20: Terms | AD20: Due Date
E21: Robert | Y21: Cash
A23: Product ID | E23: Description | T23: Quantity | Y23: Unit Price | AD23: Line Total
AD24: =+T24*Y24 -> 0 | AL24: 1
AD25: 0 | AL25: -2
AD26: 0
AD27: 0
AD28: 0 | AL28: -3
AD29: 0 | AL29: 0
AD30: 0
AD31: 0
AD32: 0
AD33: 0
AD34: 0
E35: Estimates valid for 10 days | AD35: 0
AB36: SUBTOTAL | AD36: =SUM(AD24:AH35) -> 0
F37: RGV Cycle Center | AB37: TAX (8.25%) | AD37: =+AD36*0.0825 -> 0
F38: 2716 N.10th Street | AB38: SHIPPING & HANDLING
F39: McAllen, TX 78501 | AB39: TOTAL | AD39: =SUM(AD36:AH38) -> 0
A40: NOTES: | AB40: PAID
A41: Use caution with new tires, "slippery" for the first 100 miles. Check all fastening nuts and bolts after 100 miles. No refunds on self installed electrical items. 20% restocking fee after 7 days & Special Orders. | AB41: TOTAL EST. | AD41: =+AD39-AD40 -> 0
A45: 956-688-8086
A47: THANK YOU FOR YOUR BUSINESS !

Sheet Master Register
A1: Invoice | C1: =SUM(C4:C201) -> 0 | D1: =SUM(D4:D201) -> 0 | H1: =TODAY() -> 2016-02-05
A2: Number | B2: Date | C2: Amount | D2: Tax | E2: Terms
I4: =H1-WEEKDAY(H1,3)-7 -> 2016-01-25 | J4: =SUMIF(INDIRECT(TEXT(I4,"'mmm-yy'")&"!B3:B400"),I4,INDIRECT(TEXT(I4,"'mmm-yy'")&"!C3:C400")) -> 1049.8
I5: =I4+1 -> 2016-01-26 | J5: 1659.46
I6: 2016-01-27 | J6: 1385.51
I7: 2016-01-28 | J7: 2192.16
I8: 2016-01-29 | J8: 950.26
I9: 2016-01-30 | J9: 1500.18
I10: 2016-01-31 | J10: 0 | K10: =SUM(J4:J10) -> 8737.37
I11: 2016-02-01 | J11: 1547.26
I12: 2016-02-02 | J12: 667.54
I13: 2016-02-03 | J13: 1405.608225
I14: 2016-02-04 | J14: 1998.7
I15: 2016-02-05 | J15: 1382.01
I16: 2016-02-06 | J16: 0
I17: 2016-02-07 | J17: 0 | K17: =SUM(J11:J17) -> 7001.118225

Sheet Jan-16
A1: Invoice | C1: =SUM(C74:C422) -> 14165.91 | D1: =SUM(D74:D422) -> 960.3 | F1: =SUM(F3:F1177) -> 10448.26 | G1: =SUM(G3:G1177) -> 10276.15 | H1: =TODAY() -> 2016-02-05
A2: Number | B2: Date | C2: Amount | D2: Tax | E2: Terms
A3: 18551 | B3: 2016-01-02 | C3: 97 | D3: 7.39 | E3: Visa
A4: 18552 | B4: 2016-01-02 | C4: 8 | D4: 0.61 | E4: Visa
A5: 18553 | B5: 2016-01-03 | C5: 10.83 | D5: 0.83 | F5: =+C3+C4 -> 105 | G5: 104
A6: 18554 | B6: 2016-01-04 | C6: -67.12 | D6: -5.12 | E6: Due
A7: 18555 | B7: 2016-01-04 | C7: 51.34 | D7: 2.39
A8: 18556 | B8: 2016-01-04 | C8: 21.55 | D8: 1.64
A9: 18557 | B9: 2016-01-04 | C9: 74.69 | D9: 5.69 | E9: Visa
A10: 18558 | B10: 2016-01-04 | C10: 15 | E10: Visa, Border Patrol
A11: 18559 | B11: 2016-01-04 | C11: 105 | E11: Dirty Daves - resale, $5 Visa
A12: 18560 | B12: 2016-01-04 | C12: 281.45 | D12: 21.45 | E12: $131.45 MC
A13: 18561 | B13: 2016-01-04 | C13: 10.83 | D13: 0.83
A14: 18562 | B14: 2016-01-04 | C14: 33 | D14: 2.52
A15: 18563 | B15: 2016-01-04 | C15: 139.64 | D15: 10.64 | E15: MC
A16: 18564 | B16: 2016-01-04 | C16: 119 | D16: 9.07
A17: 18565 | B17: 2016-01-04 | C17: 100 | D17: 7.62 | E17: Trade, Cedrick | F17: =+C10+C9+66.92+C15+5 -> 301.25 | G17: 296.02
A18: 18566 | B18: 2016-01-05 | C18: 16.24 | D18: 1.24 | E18: MC
A19: 18567 | B19: 2016-01-05 | C19: 74.69 | D19: 5.69
A20: 18568 | B20: 2016-01-05 | C20: 30.31 | D20: 2.31 | E20: Visa
A21: 18569 | B21: 2016-01-05 | C21: 24.9 | D21: 1.9
A22: 18570 | B22: 2016-01-05 | C22: 48.71 | D22: 3.71
A23: 18571 | B23: 2016-01-05 | C23: 5.36 | D23: 0.41 | F23: =+C18+114.8+266.97 -> 398.01 | G23: 392.1
A24: 18572 | B24: 2016-01-06 | C24: 10.83 | D24: 0.83
A25: 18573 | B25: 2016-01-06 | C25: 3.23 | D25: 0.25
A26: 18574 | B26: 2016-01-06 | C26: 10.83 | D26: 0.83
A27: 18575 | B27: 2016-01-06 | C27: 35.72 | D27: 2.72 | E27: Visa
A28: 18576 | B28: 2016-01-06 | C28: 300 | D28: 22.86 | F28: 48.71 | G28: 48.22
A29: 18577 | B29: 2016-01-07 | C29: 114.75 | D29: 8.75
A30: 18578 | B30: 2016-01-07 | C30: 156.96 | D30: 11.96 | E30: Visa
A31: 18579 | B31: 2016-01-07 | E31: ($40 ($3.05 tax) subbed Chris F)
A32: 18580 | B32: 2016-01-07 | C32: 55.21 | D32: 4.21
A33: 18581 | B33: 2016-01-07 | C33: 20.93 | E33: J.Rangel - resale
A34: 18582 | B34: 2016-01-07 | C34: 28.81 | E34: J.Rangel - resale
A35: 18583 | B35: 2016-01-07 | C35: 30 | D35: 2.29 | F35: =+C30+131.45+C20 -> 318.72 | G35: 316.33
A36: 18584 | B36: 2016-01-08 | C36: 43.3 | D36: 3.3 | E36: Visa
A37: 18585 | B37: 2016-01-08 | C37: 232 | D37: 17.68
A38: 18586 | B38: 2016-01-08 | C38: 99.95 | D38: 7.62 | E38: Visa
A39: 18587 | B39: 2016-01-08 | C39: 270 | D39: 20.58 | E39: $70 CC, bal cash
A40: 18588 | B40: 2016-01-08 | C40: 4.01 | D40: 0.31
A41: 18589 | B41: 2016-01-08 | C41: 5.68 | D41: 0.43
A42: 18590 | B42: 2016-01-08 | C42: 107.79 | E42: Due, ESG Customs
A43: 18591 | B43: 2016-01-08 | C43: 25.01 | D43: 1.91 | F43: =+C36+C38+70 -> 213.25 | G43: =140.79+67.4 -> 208.19
A44: 18592 | B44: 2016-01-09 | C44: 379.42 | D44: 28.92 | E44: Square
A45: 18593 | B45: 2016-01-09 | C45: 16.18 | D45: 1.23 | E45: Square
A46: 18594 | B46: 2016-01-09 | C46: 74.69 | D46: 5.69 | E46: Visa
A47: 18595 | B47: 2016-01-09 | C47: 74.69 | D47: 5.69
A48: 18596 | B48: 2016-01-09 | C48: 155.45 | D48: 11.85 | E48: Square
A49: 18597 | B49: 2016-01-09 | C49: 347 | D49: 26.45 | E49: $29. due
A50: 18598 | B50: 2016-01-09 | C50: 32.48 | D50: 2.48
A51: 18599 | B51: 2016-01-09 | C51: 79 | E51: Due, J.Rangel - resale | F51: =+C46+551.05 -> 625.74 | G51: =74.12+535.91 -> 610.03
A52: 18600 | B52: 2016-01-11 | C52: 25
A53: 18601 | B53: 2016-01-11 | C53: 261.42 | D53: 19.92 | E53: Visa, $141.42 due
A54: 18602 | B54: 2016-01-11 | C54: 42.22 | D54: 3.22
A55: 18603 | B55: 2016-01-11 | C55: 289 | E55: Visa, Border Patrol
A56: 18604 | B56: 2016-01-11 | C56: 269.54 | D56: 20.54 | E56: MC
A57: 18605 | B57: 2016-01-11 | C57: 59 | E57: Visa, Carlos G - MX sales | F57: =120+C56+C57 -> 448.54 | G57: 439.61
A58: 18606 | B58: 2016-01-12 | C58: 125.57 | D58: 9.57 | E58: Visa
A59: 18607 | B59: 2016-01-12 | C59: 14 | D59: 1.07
A60: 18608 | B60: 2016-01-12 | C60: 256.55 | D60: 19.55 | E60: $230 MC | F60: =+C58+C55+230 -> 644.57 | G60: 628.82
A61: 18609 | B61: 2016-01-13 | C61: 353 | E61: Due, Carlos G - MX
A62: 18610 | B62: 2016-01-13 | C62: 250.25 | E62: Due, Revolution - resale
A63: 18611 | B63: 2016-01-13 | C63: 198.995975 | D63: 15.165975
A64: 18612 | B64: 2016-01-13 | C64: 22 | E64: Due, Revolution - resale
A65: 18613 | B65: 2016-01-13 | C65: 119 | E65: Due, Revolution - resale
A66: 18614 | B66: 2016-01-13 | C66: 153.72 | D66: 11.72 | E66: Due | F66: 0 | G66: =+F66*0.97831 -> 0
A67: 18615 | B67: 2016-01-14 | C67: 295 | D67: 22.48
A68: 18616 | B68: 2016-01-14 | C68: 24.9 | D68: 1.9
A69: 18617 | B69: 2016-01-14 | C69: 5.41 | D69: 0.41
A70: 18618 | B70: 2016-01-14 | C70: 9.69 | D70: 0.74 | E70: Visa
A71: 18619 | B71: 2016-01-14 | C71: 12.99 | D71: 0.99
A72: 18620 | B72: 2016-01-15 | C72: 318 | D72: 24.24 | E72: Due, Jet Ski
A73: 18621 | B73: 2016-01-15 | C73: 65.49 | D73: 4.99 | F73: =+C70+C27 -> 45.41 | G73: 44.64
A74: 18622 | B74: 2016-01-15 | C74: 6.25 | D74: 0.48
A75: 18623 | B75: 2016-01-15 | C75: 228.03 | D75: 17.38
A76: 18624 | B76: 2016-01-15 | C76: 10.83 | D76: 0.83
A77: 18625 | B77: 2016-01-15 | C77: 74.69 | D77: 5.69 | E77: Visa
A78: 18626 | B78: 2016-01-15 | C78: 12 | E78: Chris F - resale
A79: 18627 | B79: 2016-01-15 | C79: 32.48 | D79: 2.48
A80: 18628 | B80: 2016-01-15 | C80: 8 | E80: Due, Revolution - resale
A81: 18629 | B81: 2016-01-15 | C81: 10.83 | D81: 0.83 | F81: =+C77 -> 74.69 | G81: 74.12
A82: 18630 | B82: 2016-01-16 | C82: 19.49 | D82: 1.49
A83: 18631 | B83: 2016-01-16 | C83: 284.7 | D83: 21.7 | E83: Visa
A84: 18632 | B84: 2016-01-16 | C84: 98.51 | D84: 7.51 | E84: Square
A85: 18633 | B85: 2016-01-16 | C85: 19.49 | D85: 1.49
A86: 18634 | B86: 2016-01-16 | C86: 9.74 | D86: 0.74
A87: 18635 | B87: 2016-01-16 | C87: 10.83 | D87: 0.83
A88: 18636 | B88: 2016-01-16 | C88: 20 | D88: 1.52
A89: 18637 | B89: 2016-01-16 | C89: 117.99 | D89: 8.99 | E89: MC | F89: =+C83+C89+98.51 -> 501.2 | G89: =395.14+95.8 -> 490.94
A90: 18638 | B90: 2016-01-18 | C90: 85.52 | D90: 6.52 | E90: Visa
A91: 18639 | B91: 2016-01-18 | C91: 17.27 | D91: 1.32
A92: 18640 | B92: 2016-01-18 | C92: 16.67 | D92: 1.27
A93: 18641 | B93: 2016-01-18 | C93: 19.49 | D93: 1.49
A94: 18642 | B94: 2016-01-18 | C94: 241 | D94: 18.37
A95: 18643 | B95: 2016-01-18 | C95: 102.84 | D95: 7.84 | E95: Visa | F95: =141.42+C90+C95 -> 329.78 | G95: 327.7
A96: 18644 | B96: 2016-01-19 | C96: 36.81 | D96: 2.81 | E96: Visa
A97: 18645 | B97: 2016-01-19 | C97: 26 | D97: 1.98 | E97: Square
A98: 18646 | B98: 2016-01-19 | C98: -6.28 | D98: -0.48
A99: 18647 | B99: 2016-01-19 | C99: 19 | D99: 1.45 | E99: MC
A100: 18648 | B100: 2016-01-19 | C100: 15.16 | D100: 1.16
A101: 18649 | B101: 2016-01-19 | C101: 16.24 | D101: 1.24
A102: 18650 | B102: 2016-01-19 | C102: 19.95 | D102: 1.52
A103: 18651 | B103: 2016-01-19 | C103: 32.48 | D103: 2.48
A104: 18652 | B104: 2016-01-19 | C104: 40.31 | D104: 3.07 | E104: Visa
A105: 18653 | B105: 2016-01-19 | C105: 21.6 | D105: 1.65
A106: 18654 | B106: 2016-01-19 | C106: 39 | E106: J.Rangel - resale
A107: 18655 | B107: 2016-01-19 | C107: 3 | E107: GL
A108: 18656 | B108: 2016-01-19 | C108: -11.54 | E108: J.Rangel - resale
A109: 18657 | B109: 2016-01-19 | C109: 12.99 | D109: 0.99
A110: 18658 | B110: 2016-01-19 | C110: 16.18 | D110: 1.23
A111: 18659 | B111: 2016-01-19 | C111: 33.56 | D111: 2.56 | E111: Visa | F111: =+C96+C99+C104+C111+200+26 -> 355.68 | G111: =323.03+25.28 -> 348.31
A112: 18660 | B112: 2016-01-20 | C112: 171.04 | D112: 13.04 | E112: Due, Chevo
A113: 18661 | B113: 2016-01-20 | C113: 23 | E113: Due, Revolution - resale
A114: 18662 | B114: 2016-01-20 | C114: 41.03 | D114: 3.13 | E114: Check
A115: 18663 | B115: 2016-01-20 | C115: 54.49 | E115: Due, J.Rangel - resale
A116: 18664 | B116: 2016-01-20 | C116: 20.93 | E116: Due, J.Rangel - resale
A117: 18665 | B117: 2016-01-20 | C117: 148.3 | D117: 11.3 | E117: Visa
A118: 18666 | B118: 2016-01-20 | C118: 11
A119: 18667 | B119: 2016-01-20 | C119: 12.99 | D119: 0.99
A120: 18668 | B120: 2016-01-20 | C120: 82.27 | D120: 6.27 | E120: Visa | F120: =+C117+C120 -> 230.57 | G120: 228.1
A121: 18669 | B121: 2016-01-21 | C121: 30.31 | D121: 2.31 | E121: Due, Silverwing Air Fltr
A122: 18670 | B122: 2016-01-21 | C122: 74.69 | D122: 5.69
A123: 18671 | B123: 2016-01-21 | C123: 424.34 | D123: 32.34 | E123: Due, Marcos GSXR
A124: 18672 | B124: 2016-01-21 | C124: 156.42 | D124: 11.92 | E124: Visa
A125: 18673 | B125: 2016-01-21 | C125: 128.82 | D125: 9.82 | E125: Visa
A126: 18674 | B126: 2016-01-21 | C126: 60 | D126: 4.57 | E126: Square
A127: 18675 | B127: 2016-01-21 | C127: 35.67 | D127: 2.72 | E127: Visa
A128: 18676 | B128: 2016-01-21 | C128: -128.82 | D128: -9.82 | E128: Visa
A129: 18677 | B129: 2016-01-21 | C129: 7.58 | D129: 0.58 | E129: Visa | F129: =+C124+C125+C127+C128+C129+60 -> 259.67 | G129: =197.27+58.35 -> 255.62
A130: 18678 | B130: 2016-01-22 | C130: 15 | E130: Visa, Border Patrol
A131: 18679 | B131: 2016-01-22 | C131: 17.27 | D131: 1.32
A132: 18680 | B132: 2016-01-22 | C132: 378.88 | D132: 28.88 | E132: Due
A133: 18681 | B133: 2016-01-22 | C133: 16.24 | D133: 1.24 | E133: Visa
A134: 18682 | B134: 2016-01-22 | C134: 232.74 | D134: 17.74
A135: 18683 | B135: 2016-01-22 | C135: 10.78 | D135: 0.82 | E135: Visa
A136: 18684 | B136: 2016-01-22 | C136: 19.21 | D136: 1.46 | E136: Square
A137: 18685 | B137: 2016-01-22 | C137: 54.13 | D137: 4.13 | E137: Visa
A138: 18686 | B138: 2016-01-22 | C138: 89.85 | D138: 6.85 | E138: Visa
A139: 18687 | B139: 2016-01-22 | C139: 30.2 | D139: 2.3
A140: 18688 | B140: 2016-01-22 | C140: 115.05 | D140: 8.77 | E140: Visa
A141: 18689 | B141: 2016-01-22 | C141: 18.35 | D141: 1.4 | E141: Visa | F141: =+C133+C135+C137+C138+C140+C141+C123+C130+19.21 -> 762.95 | G141: =730.63+18.68 -> 749.31
A142: 18690 | B142: 2016-01-23 | C142: 172.12 | D142: 13.12
A143: 18691 | B143: 2016-01-23 | C143: 214.34 | D143: 16.34 | E143: Due, Brad
A144: 18692 | B144: 2016-01-23 | C144: 11.91 | D144: 0.91
A145: 18693 | B145: 2016-01-23 | C145: 8.09 | D145: 0.62
A146: 18694 | B146: 2016-01-23 | C146: 46.92 | D146: 3.58 | E146: MC
A147: 18695 | B147: 2016-01-23 | C147: 26.2 | D147: 2 | E147: Visa
A148: 18696 | B148: 2016-01-23 | C148: 180 | D148: 13.72
A149: 18697 | B149: 2016-01-23 | C149: 10.77 | D149: 0.82 | E149: Visa
A150: 18698 | B150: 2016-01-23 | C150: 90 | D150: 6.86
A151: 18699 | B151: 2016-01-23 | C151: 555.32 | D151: 42.32 | F151: =+C146+C147+C149 -> 83.89 | G151: 82.25
A152: 18700 | B152: 2016-01-25 | C152: 18.35 | D152: 1.4 | E152: MC
A153: 18701 | B153: 2016-01-25 | C153: 137.5 | E153: Dons, Falfurious - resale
A154: 18702 | B154: 2016-01-25 | C154: 35.72 | D154: 2.72 | E154: Visa
A155: 18703 | B155: 2016-01-25 | E155: Re-Invoiced 18707
A156: 18704 | B156: 2016-01-25 | C156: 199.18 | D156: 15.18 | E156: Visa
A157: 18705 | B157: 2016-01-25 | C157: 191.6 | D157: 14.6 | E157: Visa
A158: 18706 | B158: 2016-01-25 | C158: 12.99 | D158: 0.99 | E158: Visa
A159: 18707 | B159: 2016-01-25 | C159: 74.69 | D159: 5.69 | E159: Visa
A160: 18708 | B160: 2016-01-25 | C160: 211.63 | D160: 16.13 | E160: MC
A161: 18709 | B161: 2016-01-25 | C161: 140.73 | D161: 10.73 | E161: Visa
A162: 18710 | B162: 2016-01-25 | C162: 5.41 | D162: 0.41
A163: 18711 | B163: 2016-01-25 | C163: 22 | D163: 1.68 | F163: =+C152+C154+C156+C157+C158+C159+C160+C161+0.01 -> 884.9 | G163: 875.11
A164: 18712 | B164: 2016-01-26 | C164: 79.02 | D164: 6.02 | E164: Due, Raven
A165: 18713 | B165: 2016-01-26 | C165: 118.53 | D165: 9.03 | E165: Check
A166: 18714 | B166: 2016-01-26 | C166: 1234.05 | D166: 94.05 | E166: Check, $734.05 Square
A167: 18715 | B167: 2016-01-26 | C167: -161.94 | D167: -12.34 | E167: Due
A168: 18716 | B168: 2016-01-26 | C168: 70.36 | D168: 5.36
A169: 18717 | B169: 2016-01-26 | C169: 139.64 | D169: 10.64 | E169: Visa
A170: 18718 | B170: 2016-01-26 | C170: 43.3 | D170: 3.3 | E170: Square
A171: 18719 | B171: 2016-01-26 | C171: 29.17 | D171: 2.22 | E171: Visa
A172: 18720 | B172: 2016-01-26 | C172: 8.66 | D172: 0.66 | E172: Visa
A173: 18721 | B173: 2016-01-26 | C173: 20 | D173: 1.52 | E173: Visa
A174: 18722 | B174: 2016-01-26 | C174: 35.67 | D174: 2.72 | E174: Visa
A175: 18723 | B175: 2016-01-26 | C175: 43 | D175: 3.28 | F175: =+C171+C172+C173+C174+43.3 -> 136.8 | G175: =91.75+42.11 -> 133.86
A176: 18724 | B176: 2016-01-27 | C176: -18.4 | D176: -1.4 | E176: Visa
A177: 18725 | B177: 2016-01-27 | C177: 27.06 | D177: 2.06 | E177: Visa
A178: 18726 | B178: 2016-01-27 | C178: 20 | D178: 1.52
A179: 18727 | B179: 2016-01-27 | C179: 21 | D179: 1.6
A180: 18728 | B180: 2016-01-27 | C180: 748 | E180: Due, Carlos G - MX
A181: 18729 | B181: 2016-01-27 | C181: 141.37 | E181: Due
A182: 18730 | B182: 2016-01-27 | C182: 10.83 | D182: 0.83 | E182: Due
A183: 18731 | B183: 2016-01-27 | C183: 81.19 | D183: 6.19 | E183: MC
A184: 18732 | B184: 2016-01-27 | C184: 42 | D184: 3.2
A185: 18733 | B185: 2016-01-27 | C185: 130.59 | E185: Due, Carlos G - MX
A186: 18734 | B186: 2016-01-27 | C186: 140.73 | D186: 10.73
A187: 18735 | B187: 2016-01-27 | C187: 25.98 | D187: 1.98
A188: 18736 | B188: 2016-01-27 | C188: 15.16 | D188: 1.16 | F188: =+C176+C177+C183 -> 89.85 | G188: 87.29
A189: 18737 | B189: 2016-01-28 | C189: 1261.45 | D189: 96.14 | E189: Square
A190: 18738 | B190: 2016-01-28 | C190: 23.24 | D190: 1.24 | E190: Square
A191: 18739 | B191: 2016-01-28 | C191: 10 | D191: 0.76
A192: 18740 | B192: 2016-01-28 | C192: 96.99 | E192: Due, Carlos G - MX
A193: 18741 | B193: 2016-01-28 | C193: 14 | D193: 1.07
A194: 18742 | B194: 2016-01-28 | C194: 10 | D194: 0.76
A195: 18743 | B195: 2016-01-28 | C195: 32.48 | D195: 2.48
A196: 18744 | B196: 2016-01-28 | C196: 90.93 | D196: 6.93
A197: 18745 | B197: 2016-01-28 | C197: 116 | E197: Dirty Daves - resale
A198: 18746 | B198: 2016-01-28 | C198: 310 | D198: 23.63 | E198: $70 due
A199: 18747 | B199: 2016-01-28 | C199: 113.66 | D199: 8.66 | E199: Visa
A200: 18748 | B200: 2016-01-28 | C200: 21.65 | D200: 1.65 | E200: Visa
... 46 more rows

Sheet Dec-15
A1: Invoice | C1: =SUM(C3:C957) -> 23335.0275 | D1: =SUM(D3:D957) -> 1537.0075 | F1: =SUM(F4:F957) -> 12194.745 | G1: =SUM(G4:G957) -> 11999.89 | H1: =TODAY() -> 2016-02-05
A2: Number | B2: Date | C2: Amount | D2: Tax | E2: Terms
A3: 18314 | B3: 2015-12-01 | C3: 215.42 | D3: 16.42 | E3: Visa
A4: 18315 | B4: 2015-12-01 | C4: 230 | D4: 17.53
A5: 18316 | B5: 2015-11-29 | C5: 57 | D5: 4.34
A6: 18317 | B6: 2015-12-01 | C6: 0 | D6: 0
A7: 18318 | B7: 2015-12-01 | C7: 5.36 | D7: 0.41
A8: 18319 | B8: 2015-12-01 | C8: 7.58 | D8: 0.58 | E8: Due | F8: =+C3+495.79 -> 711.21 | G8: 698.79
A9: 18320 | B9: 2015-12-02 | C9: 24.74 | D9: 1.89
A10: 18321 | B10: 2015-12-02 | C10: 35.67 | D10: 2.72
A11: 18322 | B11: 2015-12-02 | C11: 117.99 | D11: 8.99
A12: 18323 | B12: 2015-12-02 | C12: 83.64 | E12: Visa, J.Rangel - resale
A13: 18324 | B13: 2015-12-02 | C13: 11.97 | E13: Due, J.Rangel - resale | F13: =1+C12+24.5 -> 109.14 | G13: 105.18
A14: 18325 | B14: 2015-12-03 | C14: 27.01 | D14: 2.06
A15: 18326 | B15: 2015-12-03 | C15: 17.32 | D15: 1.32 | E15: Visa
A16: 18327 | B16: 2015-12-03 | C16: 97.43 | D16: 7.43
A17: 18328 | B17: 2015-12-03 | C17: 10.83 | D17: 0.83
A18: 18329 | B18: 2015-12-03 | C18: 27.01 | D18: 2.06
A19: 18330 | B19: 2015-12-03 | C19: 433 | D19: 33 | E19: $280 Check, $153. Visa
A20: 18331 | B20: 2015-12-03 | C20: 2.11 | D20: 0.16
A21: 18332 | B21: 2015-12-03 | C21: 97.43 | D21: 7.43 | E21: MC
A22: 18333 | B22: 2015-12-03 | C22: 5.36 | D22: 0.41
A23: 18334 | B23: 2015-12-03 | C23: 795.64 | D23: 60.64 | E23: Check
A24: 18335 | B24: 2015-12-03 | C24: 821.62 | D24: 62.62 | E24: Check | F24: =+C15+C21 -> 114.75 | G24: 112.82
A25: 18336 | B25: 2015-12-04 | C25: 83.3 | D25: 6.35 | E25: Discover
A26: 18337 | B26: 2015-12-04 | C26: 138.51 | D26: 10.56 | E26: Visa
A27: 18338 | B27: 2015-12-04 | C27: 16.24 | D27: 1.24
A28: 18339 | B28: 2015-12-04 | C28: 16.18 | D28: 1.23
A29: 18340 | B29: 2015-12-04 | C29: 14.02 | D29: 1.07 | E29: Visa
A30: 18341 | B30: 2015-12-04 | C30: 42.2 | D30: 3.22 | E30: Gift Cert $20, bal cash
A31: 18342 | B31: 2015-12-04 | C31: 48.71 | D31: 3.71 | E31: Visa, Addl to Inv 18299
A32: 18343 | B32: 2015-12-04 | C32: 45 | D32: 3.43 | E32: Due, Pegs (Randy)
A33: 18344 | B33: 2015-12-04 | C33: 33.95 | D33: 2.59 | E33: Visa
A34: 18345 | B34: 2015-12-04 | C34: 16.18 | D34: 1.23
A35: 18346 | B35: 2015-12-04 | C35: 115 | D35: 8.76 | E35: Visa
A36: 18347 | B36: 2015-12-04 | C36: 283.07 | D36: 21.57
A37: 18348 | B37: 2015-12-04 | C37: 9.69 | D37: 0.74 | E37: MC
A38: 18349 | B38: 2015-12-04 | C38: 202.37 | D38: 15.42
A39: 18350 | B39: 2015-12-04 | C39: 36.9 | E39: Due, J.Rangel - resale | F39: =+C26+C29+C33+C31+214.19+C35+C37 -> 574.07 | G39: 568.64
A40: 18351 | B40: 2015-12-05 | C40: 9.74 | D40: 0.74 | E40: Visa
A41: 18352 | B41: 2015-12-05 | C41: 66 | E41: Visa
A42: 18353 | B42: 2015-12-05 | C42: 58.46 | D42: 4.46 | E42: Addl to Inv 18319
A43: 18354 | B43: 2015-12-05 | C43: 108.79 | D43: 8.29
A44: 18355 | B44: 2015-12-05 | C44: 16.18 | D44: 1.23 | E44: Visa
A45: 18356 | B45: 2015-12-05 | C45: 20.57 | D45: 1.57
A46: 18357 | B46: 2015-12-05 | C46: 559.65 | D46: 42.65 | E46: Visa
A47: 18358 | B47: 2015-12-05 | C47: 7 | D47: 0.53
A48: 18359 | B48: 2015-12-05 | C48: 287.95 | D48: 21.95 | E48: Visa
A49: 18360 | B49: 2015-12-05 | C49: 16.18 | D49: 1.23
A50: 18361 | B50: 2015-12-05 | C50: 27.06 | D50: 2.06 | E50: Visa | F50: =+C40+C41+C25+C44+300+C50+C48 -> 790.23 | G50: 777.12
A51: 18362 | B51: 2015-12-07 | C51: 16.24 | D51: 1.24 | E51: MC
A52: 18363 | B52: 2015-12-07 | C52: 46.49 | D52: 3.54 | E52: Visa
A53: 18364 | B53: 2015-12-07 | C53: 7.52 | D53: 0.57
A54: 18365 | B54: 2015-12-07 | C54: 21.6 | D54: 1.65 | F54: =+C51+C52+45 -> 107.73 | G54: 104.81
A55: 18366 | B55: 2015-12-08 | C55: 81.19 | D55: 6.19 | E55: Visa
A56: 18367 | B56: 2015-12-08 | C56: 10.83 | D56: 0.83 | E56: Discover
A57: 18368 | B57: 2015-12-08 | C57: 298.77 | D57: 22.77 | E57: Visa, $98.77 due
A58: 18369 | B58: 2015-12-08 | C58: 183.97 | D58: 14.02
A59: 18370 | B59: 2015-12-08 | C59: 41.14 | D59: 3.14
A60: 18371 | B60: 2015-12-08 | C60: 9.69 | D60: 0.74
A61: 18372 | B61: 2015-12-08 | C61: 278.56 | D61: 18.56 | E61: Visa
A62: 18373 | B62: 2015-12-08 | C62: -16.24 | D62: -1.24
A63: 18374 | B63: 2015-12-08 | C63: 23.82 | D63: 1.82 | E63: Visa | F63: =153+C55+C56+200+1.44+C61+C63 -> 748.84 | G63: 731.24
A64: 18375 | B64: 2015-12-09 | C64: 12.5 | D64: 0.95 | E64: MC
A65: 18376 | B65: 2015-12-09 | C65: 96.34 | D65: 7.34 | E65: Visa
A66: 18377 | B66: 2015-12-09 | C66: 300 | D66: 22.86
A67: 18378 | B67: 2015-12-09 | C67: 226 | D67: 17.22 | E67: Due
A68: 18379 | B68: 2015-12-09 | C68: 25 | D68: 1.91 | F68: =+C64+C65 -> 108.84 | G68: 107.92
A69: 18380 | B69: 2015-12-10 | C69: 14 | E69: Johnny Custom - resale
A70: 18381 | B70: 2015-12-10 | C70: 184 | E70: Visa, Dirty Daves - resale
A71: 18382 | B71: 2015-12-10 | C71: 24.9 | D71: 1.9 | E71: MC
A72: 18383 | B72: 2015-12-10 | C72: 182.94 | D72: 13.94 | E72: Visa
A73: 18384 | B73: 2015-12-10 | C73: 310 | D73: 23.63 | E73: $125 MC, $185 Cash
A74: 18385 | B74: 2015-12-10 | C74: 10.83 | D74: 0.83
A75: 18386 | B75: 2015-12-10 | C75: 133.15 | D75: 10.15
A76: 18387 | B76: 2015-12-10 | C76: 486.04 | D76: 37.04 | E76: MC
A77: 18388 | B77: 2015-12-10 | C77: 21.65 | D77: 1.65 | E77: Visa
A78: 18389 | B78: 2015-12-10 | C78: 70.36 | D78: 5.36 | E78: Due
A79: 18390 | B79: 2015-12-10 | C79: 14 | E79: Continental Power - resale
A80: 18391 | B80: 2015-12-10 | C80: 231.55 | D80: 17.65 | E80: MC
A81: 18392 | B81: 2015-12-10 | C81: 178.61 | D81: 13.61 | E81: MC | F81: =+C70+259.65+C72+125+320+C77+C80+C81+35.3 -> 1538.7 | G81: 1520.32
A82: 18393 | B82: 2015-12-11 | C82: 265 | D82: 20.2 | E82: Visa
A83: 18394 | B83: 2015-12-11 | C83: 10.77 | D83: 0.82 | E83: Visa
A84: 18395 | B84: 2015-12-11 | C84: 298.72 | D84: 22.77
A85: 18396 | B85: 2015-12-11 | C85: 16.18 | D85: 1.23
A86: 18397 | B86: 2015-12-11 | C86: 108.25 | D86: 8.25 | E86: Visa
A87: 18398 | B87: 2015-12-11 | C87: 21.54 | D87: 1.64 | E87: Visa
A88: 18399 | B88: 2015-12-11 | C88: 58.02 | D88: 4.42 | E88: $3.02 Visa
A89: 18400 | B89: 2015-12-11 | C89: 38.97 | D89: 2.97 | E89: Visa
A90: 18401 | B90: 2015-12-11 | C90: 10 | D90: 0.76 | F90: =+C82+C83+C86+C87+3.02+C89 -> 447.55 | G90: 444.11
A91: 18402 | B91: 2015-12-12 | C91: 10.83 | D91: 0.83
A92: 18403 | B92: 2015-12-12 | C92: 42.22 | D92: 3.22 | E92: Visa
A93: 18404 | B93: 2015-12-12 | C93: 20.57 | D93: 1.57 | E93: MC
A94: 18405 | B94: 2015-12-12 | C94: 32.42 | D94: 2.47 | E94: MC
A95: 18406 | B95: 2015-12-12 | C95: 14.07 | D95: 1.07 | E95: MC
A96: 18407 | B96: 2015-12-12 | C96: 10.83 | D96: 0.83 | E96: MC
A97: 18408 | B97: 2015-12-12 | C97: 38.97 | D97: 2.97
A98: 18409 | B98: 2015-12-12 | C98: 10 | D98: 0.76 | F98: =+C93+C92+C94+C95+C96 -> 120.11 | G98: 117.47
A99: 18410 | B99: 2015-12-14 | C99: 64.95 | D99: 4.95 | E99: AmExp
A100: 18411 | B100: 2015-12-14 | C100: 21.6 | D100: 1.65
A101: 18412 | B101: 2015-12-14 | C101: 54.13 | D101: 4.13
A102: 18413 | B102: 2015-12-14 | C102: 120 | E102: Due, J.Rangel - resale
A103: 18414 | B103: 2015-12-14 | C103: 310.14 | D103: 23.64
A104: 18415 | B104: 2015-12-14 | C104: 78.51 | E104: Due, J.Rangel - resale
A105: 18416 | B105: 2015-12-14 | C105: 16.24 | D105: 1.24 | E105: MC
A106: 18417 | B106: 2015-12-14 | C106: 173 | D106: 13.19 | E106: $160 Visa, Bal cash | F106: =351.81+C105+160+64.95 -> 593 | G106: =518.59+63.16 -> 581.75
A107: 18418 | B107: 2015-12-15 | C107: 5.95 | E107: Visa, Border Pat
A108: 18419 | B108: 2015-12-15 | C108: 148.3 | D108: 11.3 | E108: $60 cash, $88.30 MC
A109: 18420 | B109: 2015-12-15 | C109: 91.47 | D109: 6.97 | E109: Visa
A110: 18421 | B110: 2015-12-15 | C110: 48.6 | D110: 3.7 | E110: Visa
A111: 18422 | B111: 2015-12-15 | C111: 70.36 | D111: 5.36 | E111: Visa
A112: 18423 | B112: 2015-12-15 | C112: 9.74 | D112: 0.74 | E112: Visa
A113: 18424 | B113: 2015-12-15 | C113: 4 | D113: 0.3
A114: 18425 | B114: 2015-12-15 | C114: 22 | E114: Due, Done Rite - resale
A115: 18426 | B115: 2015-12-15 | C115: 11.99 | D115: 0.91
A116: 18427 | B116: 2015-12-15 | C116: 38.86 | D116: 2.96 | E116: Visa
A117: 18428 | B117: 2015-12-15 | C117: 172.27 | D117: 13.13
A118: 18429 | B118: 2015-12-15 | C118: 284.7 | D118: 21.7 | E118: Visa
A119: 18430 | B119: 2015-12-15 | C119: 10.83 | D119: 0.83 | E119: Visa | F119: =+C107+C109+C110+C111+C112+98.77+88.3+C116+C118+C119+0.01 -> 747.59 | G119: 735.37
A120: 18431 | B120: 2015-12-16 | C120: 108.25 | D120: 8.25 | E120: Due, LEDs - Blk bike
A121: 18432 | B121: 2015-12-16 | C121: -3.19 | D121: -0.24
A122: 18433 | B122: 2015-12-16 | C122: 47.63 | D122: 3.63 | E122: Due, Roller
A123: 18434 | B123: 2015-12-16 | C123: 437.33 | D123: 33.33 | E123: Due, HD
A124: 18435 | B124: 2015-12-16 | C124: 185 | D124: 14.1 | E124: Check
A125: 18436 | B125: 2015-12-16 | C125: 391 | D125: 29.8 | E125: Visa | F125: =+C125 -> 391 | G125: 389.35
A126: 18437 | B126: 2015-12-17 | C126: 90.01 | D126: 6.86 | E126: MC
A127: 18438 | B127: 2015-12-17 | C127: 137.48 | D127: 10.48 | E127: Due
A128: 18439 | B128: 2015-12-17 | C128: 53.04 | D128: 4.04 | E128: Visa
A129: 18440 | B129: 2015-12-17 | C129: 24.9 | D129: 1.9
A130: 18441 | B130: 2015-12-17 | C130: 28 | D130: 2.13
A131: 18442 | B131: 2015-12-17 | C131: 4
A132: 18443 | B132: 2015-12-17 | C132: 16.24 | D132: 1.24
A133: 18444 | B133: 2015-12-17 | C133: 74.69 | D133: 5.69 | E133: Credit 15590
A134: 18445 | B134: 2015-12-17 | C134: 90.93 | D134: 6.93 | E134: Visa
A135: 18446 | B135: 2015-12-17 | C135: 21.65 | D135: 1.65 | E135: Visa
A136: 18447 | B136: 2015-12-17 | C136: 193.77 | D136: 14.77
A137: 18448 | B137: 2015-12-17 | C137: -28 | D137: -2.13
A138: 18449 | B138: 2015-12-17 | C138: 77.53 | D138: 5.53 | E138: Due, w/Inv 18431
A139: 18450 | B139: 2015-12-17 | C139: 54.07 | D139: 4.12 | E139: AmExp | F139: =+C126+C128+C134+C135+C139+C120+23.87+54.07 -> 495.89 | G139: =432.98+52.58 -> 485.56
A140: 18451 | B140: 2015-12-18 | C140: 63.87 | D140: 4.87 | E140: $33.87 due
A141: 18452 | B141: 2015-12-18 | C141: 273.72 | D141: 19.72 | E141: Due
A142: 18453 | B142: 2015-12-18 | C142: 2.04 | E142: ESG - resale
A143: 18454 | B143: 2015-12-18 | C143: 74.69 | D143: 5.69 | E143: Visa
A144: 18455 | B144: 2015-12-18 | C144: 120 | E144: MC, Continental - resale
A145: 18456 | B145: 2015-12-18 | C145: 97 | E145: Dons - Falfurious, resale
A146: 18457 | B146: 2015-12-18 | C146: 21.65 | D146: 1.65
A147: 18458 | B147: 2015-12-18 | C147: 21.65 | D147: 1.65
A148: 18459 | B148: 2015-12-18 | C148: 194.85 | D148: 14.85 | E148: AmExp
A149: 18460 | B149: 2015-12-18 | C149: 206.76 | D149: 15.76 | E149: MC
A150: 18461 | B150: 2015-12-18 | C150: 19.485 | D150: 1.485 | E150: Visa
A151: 18462 | B151: 2015-12-18 | C151: 32.48 | D151: 2.48 | E151: Visa
A152: 18463 | B152: 2015-12-18 | C152: 10.95 | E152: Visa, J.Rangel - resale | F152: =+C123+C143+C144+156.04+100+C150+24.25+477.33 -> 1409.125 | G152: =919.73+464.2 -> 1383.93
A153: 18464 | B153: 2015-12-19 | C153: 104.46 | D153: 7.96 | E153: MC
A154: 18465 | B154: 2015-12-19 | C154: 11.85 | D154: 0.9
A155: 18466 | B155: 2015-12-19 | C155: 253.85 | D155: 19.35 | E155: Square
A156: 18467 | B156: 2015-12-19 | C156: 183.97 | D156: 14.02
A157: 18468 | B157: 2015-12-19 | C157: 40.05 | D157: 3.05
A158: 18469 | B158: 2015-12-19 | C158: 280.37 | D158: 21.37 | E158: Square
A159: 18470 | B159: 2015-12-19 | C159: 45.47 | D159: 3.47 | E159: MC
A160: 18471 | B160: 2015-12-19 | C160: 9.74 | D160: 0.74 | E160: Visa
A161: 18472 | B161: 2015-12-19 | C161: 56.18 | D161: 4.28 | E161: Visa | F161: =+C153+C159+C160+C161+534.22 -> 750.07 | G161: =211.77+519.53 -> 731.3
A162: 18473 | B162: 2015-12-21 | C162: 19.05 | D162: 1.45
A163: 18474 | B163: 2015-12-21 | C163: 20.5
A164: 18475 | B164: 2015-12-21 | C164: 344 | D164: 26.22
A165: 18476 | B165: 2015-12-21 | C165: 0 | D165: 0 | F165: 0 | G165: =+F165*0.97831 -> 0
A166: 18477 | B166: 2015-12-22 | C166: 99.82 | D166: 7.07 | E166: Due
A167: 18478 | B167: 2015-12-22 | C167: 116.91 | D167: 8.91 | E167: $101.76 due
A168: 18479 | B168: 2015-12-22 | C168: 20 | D168: 1.52
A169: 18480 | B169: 2015-12-22 | C169: 138.02 | D169: 10.52 | E169: Square
A170: 18481 | B170: 2015-12-22 | C170: 566 | E170: Carlos G - resale MX
A171: 18482 | B171: 2015-12-22 | C171: 358.69 | D171: 2.19 | E171: Check
A172: 18483 | B172: 2015-12-22 | C172: 26.95 | D172: 2.05
A173: 18484 | B173: 2015-12-22 | C173: 17.32 | D173: 1.32
A174: 18485 | B174: 2015-12-22 | C174: 27.06 | D174: 2.06 | E174: Check
A175: 18486 | B175: 2015-12-22 | C175: 42 | E175: George Revolution - resale
A176: 18487 | B176: 2015-12-22 | C176: 11.5 | E176: George Revolution - resale
A177: 18488 | B177: 2015-12-22 | C177: 42.22 | D177: 3.22
A178: 18489 | B178: 2015-12-22 | C178: 108.77 | E178: ESG - resale | F178: =+C169+99.82 -> 237.84 | G178: 231.29
A179: 18490 | B179: 2015-12-23 | C179: 14.07 | D179: 1.07
A180: 18491 | B180: 2015-12-23 | C180: 270.63 | D180: 20.63 | E180: Discover
A181: 18492 | B181: 2015-12-23 | C181: 2.66 | D181: 0.2
A182: 18493 | B182: 2015-12-23 | C182: 80.71 | D182: 6.15
A183: 18494 | B183: 2015-12-23 | C183: 17.27 | D183: 1.32 | E183: Visa
A184: 18495 | B184: 2015-12-23 | C184: 14.07 | D184: 1.07
A185: 18496 | B185: 2015-12-23 | C185: 64.95 | D185: 4.95 | E185: Visa
A186: 18497 | B186: 2015-12-23 | C186: 194.85 | E186: Visa, J.Rangel - resale
A187: 18498 | B187: 2015-12-23 | C187: 16.24 | D187: 1.24 | E187: MC
A188: 18499 | B188: 2015-12-23 | C188: 55.21 | D188: 4.21
A189: 18500 | B189: 2015-12-23 | C189: 21.65 | D189: 1.65
A190: 18501 | B190: 2015-12-23 | C190: 338.08 | E190: Due, J.Rangel - resale
A191: 18502 | B191: 2015-12-23 | C191: 10.77 | D191: 0.82 | F191: =+C183+C185+C186+C187+106.76-0.87+65 -> 464.2 | G191: =396.42+63.21 -> 459.63
A192: 18503 | B192: 2015-12-24 | C192: 173.2 | D192: 13.2 | E192: MC | F192: =+C192 -> 173.2 | G192: 172.29
A193: 18504 | B193: 2015-12-26 | C193: 366.97 | D193: 27.97 | E193: MC, $266.97 due
A194: 18505 | B194: 2015-12-26 | C194: 32.48 | D194: 2.48
A195: 18506 | B195: 2015-12-26 | C195: 56.29 | D195: 4.29 | E195: Square
A196: 18507 | B196: 2015-12-26 | C196: 140.73 | D196: 10.73 | E196: Visa
A197: 18508 | B197: 2015-12-26 | C197: 140.73 | D197: 10.73
A198: 18509 | B198: 2015-12-26 | C198: 322 | D198: 24.54 | E198: Check
A199: 18510 | B199: 2015-12-26 | C199: 213 | E199: Due, Chris F - resale
A200: 18511 | B200: 2015-12-26 | C200: 69.28 | D200: 5.28 | E200: Visa
... 39 more rows

Sheet Nov-15
A1: Invoice | C1: =SUM(C3:C724) -> 23603.66 | D1: =SUM(D3:D724) -> 1690.16 | F1: =SUM(F4:F724) -> 13037.93 | G1: =SUM(G4:G724) -> 12829.71 | H1: =TODAY() -> 2016-02-05
A2: Number | B2: Date | C2: Amount | D2: Tax | E2: Terms
A3: 18080 | B3: 2015-11-02 | C3: 25.93 | D3: 1.98 | E3: MC
A4: 18081 | B4: 2015-11-02 | C4: 16.18 | D4: 1.23
A5: 18082 | B5: 2015-11-02 | C5: 21.05 | D5: 1.6
A6: 18083 | B6: 2015-11-02 | C6: 5.36 | D6: 0.41
A7: 18084 | B7: 2015-11-02 | C7: 184.03 | D7: 14.03
A8: 18085 | B8: 2015-11-02 | C8: 152.63 | D8: 11.63 | E8: Visa | F8: =+C3+C8 -> 178.56 | G8: 177.12
A9: 18086 | B9: 2015-11-03 | C9: 25.98 | D9: 1.98 | E9: Visa
A10: 18087 | B10: 2015-11-03 | C10: 152.63 | D10: 11.63 | E10: Visa
A11: 18088 | B11: 2015-11-03 | C11: 196.47 | D11: 14.97
A12: 18089 | B12: 2015-11-03 | C12: 13.53 | D12: 1.03
A13: 18090 | B13: 2015-11-03 | C13: 166.71 | D13: 12.71
A14: 18091 | B14: 2015-11-03 | C14: 172.12 | D14: 13.12
A15: 18092 | B15: 2015-11-03 | C15: 20.57 | D15: 1.57 | E15: MC
A16: 18093 | B16: 2015-11-03 | C16: 56.29 | D16: 4.29 | E16: MC
A17: 18094 | B17: 2015-11-03 | C17: 240.86 | D17: 18.36 | E17: Visa
A18: 18095 | B18: 2015-11-03 | C18: 78.97 | D18: 6.02 | E18: Visa
A19: 18096 | B19: 2015-11-03 | C19: 20 | D19: 1.52 | E19: Trade
A20: 18097 | B20: 2015-11-03 | C20: 24.9 | D20: 1.9 | E20: Visa
A21: 18098 | B21: 2015-11-03 | C21: 38.7 | D21: 2.95 | E21: Visa
A22: 18099 | B22: 2015-11-03 | C22: 85 | E22: Revolution - resale | F22: =+C9+C10+C15+C16+C20+C21+C17 -> 559.93 | G22: 551.55
A23: 18100 | B23: 2015-11-04 | C23: 86.6 | D23: 6.6 | E23: Visa
A24: 18101 | B24: 2015-11-04 | C24: 43.3 | D24: 3.3 | E24: Visa
A25: 18102 | B25: 2015-11-04 | C25: 238.69 | D25: 18.19 | E25: Due
A26: 18103 | B26: 2015-11-04 | C26: 283.62 | D26: 21.62 | E26: Visa
A27: 18104 | B27: 2015-11-04 | C27: 7.04 | D27: 0.54
A28: 18105 | B28: 2015-11-04 | C28: 273.87 | D28: 20.87
A29: 18106 | B29: 2015-11-04 | C29: 14.56 | D29: 1.11 | E29: Visa
A30: 18107 | B30: 2015-11-04 | C30: 21.65 | D30: 1.65
A31: 18108 | B31: 2015-11-04 | C31: 134.23 | D31: 10.23 | E31: Visa
A32: 18109 | B32: 2015-11-04 | C32: 0 | D32: 0 | E32: Due, Ref only
A33: 18110 | B33: 2015-11-04 | C33: 108.14 | D33: 8.24 | E33: Visa | F33: =+C23+C24+C29+C33+C18+C31 -> 465.8 | G33: 460.99
A34: 18111 | B34: 2015-11-05 | C34: 47.63 | D34: 3.63
A35: 18112 | B35: 2015-11-05 | C35: 20 | D35: 1.52
A36: 18113 | B36: 2015-11-05 | C36: 25 | D36: 1.91
A37: 18114 | B37: 2015-11-05 | C37: 279 | E37: MC, Continental Power - resale
A38: 18115 | B38: 2015-11-05 | C38: 59.54 | D38: 4.54 | E38: Visa
A39: 18116 | B39: 2015-11-05 | C39: 344.78 | D39: 26.28
A40: 18117 | B40: 2015-11-05 | C40: 21.6 | D40: 1.65
A41: 18118 | B41: 2015-11-05 | C41: 323.13 | D41: 24.63
A42: 18119 | B42: 2015-11-05 | C42: 1.62 | D42: 0.12
A43: 18120 | B43: 2015-11-05 | C43: 59.54 | D43: 4.54 | E43: Visa
A44: 18121 | B44: 2015-11-05 | C44: 126.65 | D44: 9.65
A45: 18122 | B45: 2015-11-05 | C45: 484 | D45: 36.89 | E45: MC
A46: 18123 | B46: 2015-11-05 | C46: 86.6 | D46: 6.6 | E46: Visa | F46: =+C37+C43+C38+C45+C46 -> 968.68 | G46: 950.03
A47: 18124 | B47: 2015-11-06 | C47: 117.99 | D47: 8.99 | E47: Visa
A48: 18125 | B48: 2015-11-06 | C48: 46.44 | D48: 3.54
A49: 18126 | B49: 2015-11-06 | C49: 11.81 | E49: Visa, ESG Kustom - resale
A50: 18127 | B50: 2015-11-06 | C50: 8.66 | D50: 0.66 | F50: =+C47+C49 -> 129.8 | G50: 126.94
A51: 18128 | B51: 2015-11-07 | C51: 43.3 | D51: 3.3 | E51: Visa
A52: 18129 | B52: 2015-11-07 | C52: 87.47 | D52: 6.67 | E52: Visa
A53: 18130 | B53: 2015-11-07 | C53: 0 | D53: 0 | E53: Return, RJ
A54: 18131 | B54: 2015-11-07 | C54: 334 | E54: Revolution - resale
A55: 18132 | B55: 2015-11-07 | C55: 35.67 | D55: 2.72
A56: 18133 | B56: 2015-11-08 | C56: 53.01 | D56: 4.04
A57: 18134 | B57: 2015-11-08 | C57: 8 | D57: 0.61 | F57: =+C51+C52+238.69 -> 369.46 | G57: 362.01
A58: 18135 | B58: 2015-11-09 | C58: 173.74 | D58: 13.24
A59: 18136 | B59: 2015-11-09 | C59: 52
A60: 18137 | B60: 2015-11-09 | C60: 85.52 | D60: 6.52 | E60: Visa
A61: 18138 | B61: 2015-11-09 | C61: 208.92 | D61: 15.92 | E61: Visa
A62: 18139 | B62: 2015-11-09 | C62: 45.36 | D62: 3.46 | E62: Visa
A63: 18140 | B63: 2015-11-09 | C63: 22.57 | D63: 1.72 | E63: Visa
A64: 18141 | B64: 2015-11-09 | C64: 194.31 | D64: 14.81 | E64: Visa
A65: 18142 | B65: 2015-11-09 | C65: 383.75 | D65: 29.25 | E65: MC
A66: 18143 | B66: 2015-11-09 | C66: 0 | D66: 0 | E66: S100, Bobbi
A67: 18144 | B67: 2015-11-09 | C67: 60.62 | D67: 4.62 | E67: Visa
A68: 18145 | B68: 2015-11-09 | C68: 609.99 | D68: 46.49 | E68: MC
A69: 18146 | B69: 2015-11-09 | C69: 410 | D69: 31.25
A70: 18147 | B70: 2015-11-09 | C70: 119.08 | D70: 9.08 | E70: Visa
A71: 18148 | B71: 2015-11-09 | C71: 16.18 | D71: 1.23
A72: 18149 | B72: 2015-11-09 | C72: 56.29 | D72: 4.29
A73: 18150 | B73: 2015-11-09 | C73: 394.03 | D73: 30.03 | E73: $194.03 due
A74: 18151 | B74: 2015-11-09 | C74: 21.65 | D74: 1.65
A75: 18152 | B75: 2015-11-09 | C75: 178 | D75: 13.57 | E75: Due
A76: 18153 | B76: 2015-11-09 | C76: 0 | D76: 0 | E76: Peter, gift | F76: =+C60+C61+C62+C63+C65+C67+C70+C71 -> 942 | G76: 908.5
A77: 18154 | B77: 2015-11-10 | C77: 16.18 | D77: 1.23 | E77: Visa
A78: 18155 | B78: 2015-11-10 | C78: 11.5 | E78: Due, Done Rite - resale
A79: 18156 | B79: 2015-11-10 | C79: 188.36 | D79: 14.36 | E79: Visa
A80: 18157 | B80: 2015-11-10 | C80: 60.62 | D80: 4.62 | E80: Discover
A81: 18158 | B81: 2015-11-10 | C81: 214.34 | D81: 16.34 | E81: $174.34 due
A82: 18159 | B82: 2015-11-10 | C82: 215.96 | D82: 16.46 | E82: MC
A83: 18160 | B83: 2015-11-10 | C83: 182.94 | D83: 13.94 | E83: Visa
A84: 18161 | B84: 2015-11-10 | C84: 42.22 | D84: 3.22 | E84: Visa
A85: 18162 | B85: 2015-11-10 | C85: 117.94 | D85: 8.99 | E85: Visa
A86: 18163 | B86: 2015-11-10 | C86: 0 | D86: 0 | E86: Trade | F86: 1304.36 | G86: 1283.54
A87: 18164 | B87: 2015-11-11 | C87: 101.76 | D87: 7.76
A88: 18165 | B88: 2015-11-11 | C88: 296.06 | D88: 22.56 | E88: Visa
A89: 18166 | B89: 2015-11-11 | C89: 527.18 | D89: 40.18 | E89: Visa
A90: 18167 | B90: 2015-11-11 | C90: 32.48 | D90: 2.48
A91: 18168 | B91: 2015-11-11 | C91: 15 | D91: 1.14
A92: 18169 | B92: 2015-11-11 | C92: 43.49 | D92: 3.31 | E92: Visa
A93: 18170 | B93: 2015-11-11 | C93: 21.65 | D93: 1.65 | E93: Visa
A94: 18171 | B94: 2015-11-11 | C94: 18 | E94: Due, Revolution - resale
A95: 18172 | B95: 2015-11-11 | C95: 54.07 | D95: 4.12 | E95: Visa | F95: =+C85+C89+C54+C92+C93+C95 -> 1098.33 | G95: 1087.91
A96: 18173 | B96: 2015-11-12 | C96: 86.55 | D96: 6.6
A97: 18174 | B97: 2015-11-12 | C97: 352.9 | D97: 26.9 | E97: Visa
A98: 18175 | B98: 2015-11-12 | C98: 235 | D98: 17.91
A99: 18176 | B99: 2015-11-12 | C99: 120 | D99: 9.15
A100: 18177 | B100: 2015-11-12 | C100: 184.57 | D100: 14.07 | E100: MC
A101: 18178 | B101: 2015-11-12 | C101: 5.39 | D101: 0.41 | E101: Visa | F101: =+C97+26.55+C100+C101+C88 -> 865.47 | G101: 854.35
A102: 18179 | B102: 2015-11-13 | C102: 164.54 | D102: 12.54 | E102: Visa
A103: 18180 | B103: 2015-11-13 | C103: 64.95 | D103: 4.95
A104: 18181 | B104: 2015-11-13 | C104: 272.79 | D104: 20.79 | E104: Visa
A105: 18182 | B105: 2015-11-13 | C105: 37.83 | D105: 2.88 | E105: Visa
A106: 18183 | B106: 2015-11-13 | C106: 24.33 | D106: 1.85
A107: 18184 | B107: 2015-11-13 | C107: 121.78 | D107: 9.28 | E107: Visa
A108: 18185 | B108: 2015-11-13 | C108: -2.66 | D108: -0.2 | E108: Due
A109: 18186 | B109: 2015-11-13 | C109: 180.24 | D109: 13.74 | E109: Visa
A110: 18187 | B110: 2015-11-13 | C110: 197.02 | D110: 15.02
A111: 18188 | B111: 2015-11-13 | C111: 45.47 | D111: 3.47 | F111: =+C102+175+C105+C107+C26 -> 782.77 | G111: 769.31
A112: 18189 | B112: 2015-11-14 | C112: 85.52 | D112: 6.52 | E112: Visa
A113: 18190 | B113: 2015-11-14 | C113: -2.17 | D113: -0.17
A114: 18191 | B114: 2015-11-14 | C114: 20.46 | D114: 1.56 | E114: Visa
A115: 18192 | B115: 2015-11-14 | C115: 33.5 | D115: 2.55 | E115: Visa
A116: 18193 | B116: 2015-11-14 | C116: 32.42 | D116: 2.47 | E116: Trade w/Randy
A117: 18194 | B117: 2015-11-14 | C117: 230.57 | D117: 17.57 | E117: Visa
A118: 18195 | B118: 2015-11-14 | C118: 13.26 | D118: 1.01 | E118: Visa
A119: 18196 | B119: 2015-11-14 | C119: 34.64 | D119: 2.64 | E119: MC | F119: =+C112+C114+C115+C117+C118+C119 -> 417.95 | G119: 408.8
A120: 18197 | B120: 2015-11-16 | C120: 16.18 | D120: 1.23 | E120: MC
A121: 18198 | B121: 2015-11-16 | C121: 30 | D121: 2.29
A122: 18199 | B122: 2015-11-16 | C122: 15 | D122: 1.14
A123: 18200 | B123: 2015-11-16 | C123: 161.29 | D123: 12.29 | E123: Visa
A124: 18201 | B124: 2015-11-16 | C124: 70.36 | D124: 5.36 | E124: MC
A125: 18202 | B125: 2015-11-16 | C125: 19.49 | D125: 1.49
A126: 18203 | B126: 2015-11-16 | C126: 31.5 | E126: Visa, J.Rangel - resale
A127: 18204 | B127: 2015-11-16 | C127: 96.34 | D127: 7.34 | E127: MC
A128: 18205 | B128: 2015-11-16 | C128: 42.22 | D128: 3.22
A129: 18206 | B129: 2015-11-16 | C129: 100 | D129: 7.62 | E129: Gift Cert
A130: 18207 | B130: 2015-11-16 | C130: 164.54 | D130: 12.54
A131: 18208 | B131: 2015-11-16 | C131: 115 | D131: 8.76 | E131: $15 only Visa | F131: =+C120+C123+C124+C109+C126+C127+15+C64 -> 765.22 | G131: 755.71
A132: 18209 | B132: 2015-11-17 | C132: 21.6 | D132: 1.65
A133: 18210 | B133: 2015-11-17 | C133: 205.68 | D133: 15.68 | E133: MC, $130.68 Bal due
A134: 18211 | B134: 2015-11-17 | C134: -13.26 | D134: -1.01
A135: 18212 | B135: 2015-11-17 | C135: 10.83 | D135: 0.83
A136: 18213 | B136: 2015-11-17 | C136: 8.66 | D136: 0.66
A137: 18214 | B137: 2015-11-17 | C137: 198.32 | E137: Due, J. Rangel - resale
A138: 18215 | B138: 2015-11-17 | C138: 117.99 | D138: 8.99
A139: 18216 | B139: 2015-11-17 | C139: 255.47 | D139: 19.47
A140: 18217 | B140: 2015-11-17 | C140: 66.03 | D140: 5.03
A141: 18218 | B141: 2015-11-17 | C141: 21.6 | D141: 1.65 | F141: =75+97.79 -> 172.79 | G141: 169.77
A142: 18219 | B142: 2015-11-18 | C142: 16.78 | D142: 1.28
A143: 18220 | B143: 2015-11-18 | C143: 16.24 | D143: 1.24 | E143: Visa
A144: 18221 | B144: 2015-11-18 | C144: 30 | D144: 2.29 | E144: Discover
A145: 18222 | B145: 2015-11-18 | C145: 66.5 | E145: Visa, J.Rangel - resale
A146: 18223 | B146: 2015-11-18 | C146: 30 | E146: Visa, J.Rangel - resale
A147: 18224 | B147: 2015-11-18 | C147: 64.95 | D147: 4.95
A148: 18225 | B148: 2015-11-18 | C148: 12.94 | D148: 0.99
A149: 18226 | B149: 2015-11-18 | C149: 70.36 | D149: 5.36 | E149: Visa
A150: 18227 | B150: 2015-11-18 | C150: 53 | D150: 4.04 | F150: =+C143+C144+C145+C146+C149 -> 213.1 | G150: 208.77
A151: 18228 | B151: 2015-11-19 | C151: 16.24 | D151: 1.24
A152: 18229 | B152: 2015-11-19 | C152: 65.6 | D152: 5 | E152: MC
A153: 18230 | B153: 2015-11-19 | C153: 21.65 | D153: 1.65
A154: 18231 | B154: 2015-11-19 | C154: 37.89 | D154: 2.89 | E154: MC
A155: 18232 | B155: 2015-11-19 | C155: 200 | D155: 15.24 | E155: Visa
A156: 18233 | B156: 2015-11-19 | C156: 107 | D156: 8.15
A157: 18234 | B157: 2015-11-19 | C157: 32.81 | E157: Visa, ESG Kustom - resale
A158: 18235 | B158: 2015-11-19 | C158: 15.16 | D158: 1.16
A159: 18236 | B159: 2015-11-19 | C159: 581.3 | D159: 44.3 | E159: Visa
A160: 18237 | B160: 2015-11-19 | C160: 150 | D160: 11.43
A161: 18238 | B161: 2015-11-19 | C161: 82 | D161: 6.25
A162: 18239 | B162: 2015-11-19 | C162: 106 | D162: 8.08
A163: 18240 | B163: 2015-11-19 | C163: 10.83 | D163: 0.83 | E163: Visa
A164: 18241 | B164: 2015-11-19 | C164: 20.98 | E164: Due, J. Rangel - resale | F164: =+C152+C154+C155+C157+C159+C163 -> 928.43 | G164: 914.16
A165: 18242 | B165: 2015-11-20 | C165: 107.17 | D165: 8.17 | E165: $47.17 due
A166: 18243 | B166: 2015-11-20 | C166: 19.05 | D166: 1.45 | E166: MC
A167: 18244 | B167: 2015-11-20 | C167: 64.95 | D167: 4.95
A168: 18245 | B168: 2015-11-20 | C168: 23.82 | D168: 1.82 | E168: Visa
A169: 18246 | B169: 2015-11-20 | C169: 89.85 | D169: 6.85
A170: 18247 | B170: 2015-11-20 | C170: 2.44 | D170: 0.19 | F170: =+C166+130.68+C168 -> 173.55 | G170: 169.84
A171: 18248 | B171: 2015-11-21 | C171: 180.78 | D171: 13.78 | E171: Visa
A172: 18249 | B172: 2015-11-21 | C172: 75.97 | D172: 5.79
A173: 18250 | B173: 2015-11-21 | C173: 267.38 | D173: 20.38 | E173: Check, $132.38 due
A174: 18251 | B174: 2015-11-21 | C174: 14.97 | E174: Adrenaline, resale
A175: 18252 | B175: 2015-11-21 | C175: 68 | E175: J. Rangel - resale
A176: 18253 | B176: 2015-11-21 | C176: 17 | E176: Visa, J.Rangel - resale
A177: 18254 | B177: 2015-11-21 | C177: 74.69 | D177: 5.69 | E177: Visa ($117.99 Inc Detail)
A178: 18255 | B178: 2015-11-21 | C178: 24.9 | D178: 1.9 | E178: MC
A179: 18256 | B179: 2015-11-21 | C179: 15.1 | D179: 1.15 | E179: MC
A180: 18257 | B180: 2015-11-21 | C180: 90 | D180: 6.86
A181: 18258 | B181: 2015-11-21 | C181: 16.24 | D181: 1.24
A182: 18259 | B182: 2015-11-21 | C182: 56 | D182: 4.26
A183: 18260 | B183: 2015-11-21 | C183: 81.19 | D183: 6.19 | F183: =+C171+C176+C177+C178+C179+43.3+25.97 -> 381.74 | G183: 378.26
A184: 18261 | B184: 2015-11-23 | C184: 6.44 | D184: 0.49 | E184: MC
A185: 18262 | B185: 2015-11-23 | C185: 21.65 | D185: 1.65
A186: 18263 | B186: 2015-11-23 | C186: 35.67 | D186: 2.72 | E186: MC
A187: 18264 | B187: 2015-11-23 | C187: 119.08 | D187: 9.08 | E187: Visa
A188: 18265 | B188: 2015-11-23 | C188: 90 | D188: 6.86
A189: 18266 | B189: 2015-11-23 | C189: 10 | D189: 0.76
A190: 18267 | B190: 2015-11-23 | C190: 10 | D190: 0.76 | F190: =+C184+C186+C187 -> 161.19 | G190: 157.9
A191: 18268 | B191: 2015-11-24 | C191: 65 | D191: 4.95 | E191: MC
A192: 18269 | B192: 2015-11-24 | C192: 16.24 | D192: 1.24
A193: 18270 | B193: 2015-11-24 | C193: 134.18 | D193: 10.23 | E193: Visa
A194: 18271 | B194: 2015-11-24 | C194: 25.98 | D194: 1.98
A195: 18272 | B195: 2015-11-24 | C195: 0 | D195: 0 | E195: Chris SC1
A196: 18273 | B196: 2015-11-24 | C196: 28.15 | D196: 2.15 | F196: =+C191+C193 -> 199.18 | G196: 197.86
A197: 18274 | B197: 2015-11-25 | C197: 114.75 | D197: 8.75 | E197: Visa
A198: 18275 | B198: 2015-11-25 | C198: 18.5 | E198: MC, Resale
A199: 18276 | B199: 2015-11-25 | C199: 8 | D199: 0.61 | E199: Due
A200: 18277 | B200: 2015-11-25 | C200: 15.16 | D200: 1.16 | E200: MC
... 36 more rows

Sheet Oct-15
A1: Invoice | C1: =SUM(C3:C492) -> 30907.30492 | D1: =SUM(D3:D492) -> 2037.244925 | F1: =SUM(F3:F492) -> 16068.79 | G1: =SUM(G3:G492) -> 15848.86 | H1: =TODAY() -> 2016-02-05
A2: Number | B2: Date | C2: Amount | D2: Tax | E2: Terms
A3: 17786 | B3: 2015-10-01 | C3: 64.84 | D3: 4.94 | E3: Visa
A4: 17787 | B4: 2015-10-01 | C4: 86.6 | D4: 6.6 | E4: Check
A5: 17788 | B5: 2015-10-01 | C5: 227.33 | D5: 17.33 | E5: Visa
A6: 17789 | B6: 2015-10-01 | C6: 28 | D6: 2.13 | E6: Visa
A7: 17790 | B7: 2015-10-01 | C7: 213 | E7: MC
A8: 17791 | B8: 2015-10-01 | C8: 20.57 | D8: 1.57 | E8: Visa
A9: 17792 | B9: 2015-10-01 | E9: See Inv 17630
A10: 17793 | B10: 2015-10-01 | C10: 10.83 | D10: 0.83
A11: 17794 | B11: 2015-10-01 | C11: 21.65 | D11: 1.65 | E11: Visa
A12: 17795 | B12: 2015-10-01 | C12: 69.28 | D12: 5.28
A13: 17796 | B13: 2015-10-01 | C13: 140 | D13: 10.67
A14: 17797 | B14: 2015-10-01 | C14: 120 | D14: 9.15
A15: 17798 | B15: 2015-10-01 | C15: 5 | D15: 0.38
A16: 17799 | B16: 2015-10-01 | C16: 449 | D16: 34.22
A17: 17800 | B17: 2015-10-01 | C17: 45.47 | D17: 3.47 | F17: =+C3+C6+C7+C8+C11+27+C5 -> 602.39 | G17: 589.2
A18: 17801 | B18: 2015-10-02 | C18: 50 | D18: 3.81
A19: 17802 | B19: 2015-10-02 | C19: 48.71 | D19: 3.71 | E19: Due
A20: 17803 | B20: 2015-10-02 | C20: 16.24 | D20: 1.24
A21: 17804 | B21: 2015-10-02 | C21: 261.97 | D21: 19.97 | E21: $240 cash, $21.97
A22: 17805 | B22: 2015-10-02 | C22: 34.64 | D22: 2.64
A23: 17806 | B23: 2015-10-02 | C23: 270.63 | D23: 20.63
A24: 17807 | B24: 2015-10-02 | C24: 211.09 | D24: 16.09 | E24: Visa
A25: 17808 | B25: 2015-10-02 | C25: 209.46 | D25: 15.96
A26: 17809 | B26: 2015-10-02 | C26: 16.18 | D26: 1.23
A27: 17810 | B27: 2015-10-02 | C27: 9 | E27: Chris F - resale | F27: =136.01+C24+21.97 -> 369.07 | G27: 365.91
A28: 17811 | B28: 2015-10-03 | C28: 64.46 | D28: 4.91 | E28: Visa
A29: 17812 | B29: 2015-10-03 | C29: 34.53 | D29: 2.63
A30: 17813 | B30: 2015-10-03 | C30: 28.15 | D30: 2.15 | E30: MC
A31: 17814 | B31: 2015-10-03 | C31: 221.32 | D31: 16.87 | E31: Visa
A32: 17815 | B32: 2015-10-03 | C32: 162.92 | D32: 12.42 | E32: Check
A33: 17816 | B33: 2015-10-03 | C33: 213.25 | D33: 16.25 | E33: Visa
A34: 17817 | B34: 2015-10-03 | C34: 16.24 | D34: 1.24 | E34: MC
A35: 17818 | B35: 2015-10-03 | C35: 328 | D35: 25 | E35: MC
A36: 17819 | B36: 2015-10-03 | C36: 40 | E36: Used- No tax
A37: 17820 | B37: 2015-10-03 | C37: 250.6 | D37: 19.1 | E37: Visa | F37: =+C28+C30+C31+C33+24.45+C35+C37 -> 1130.23 | G37: 1117.54
A38: 17821 | B38: 2015-10-05 | C38: 145.6 | D38: 11.1
A39: 17822 | B39: 2015-10-05 | C39: 215.42 | D39: 16.42 | E39: Visa
A40: 17823 | B40: 2015-10-05 | C40: 16.67 | D40: 1.27
A41: 17824 | B41: 2015-10-05 | C41: 11 | D41: 0.84
A42: 17825 | B42: 2015-10-05 | C42: 271.17 | D42: 20.67 | E42: Visa
A43: 17826 | B43: 2015-10-05 | C43: 10.77 | D43: 0.82 | E43: Visa
A44: 17827 | B44: 2015-10-05 | C44: 160 | E44: Due, Chris F - resale
A45: 17828 | B45: 2015-10-05 | C45: 12.61 | D45: 0.96
A46: 17829 | B46: 2015-10-05 | C46: 330.16 | D46: 25.16 | E46: Discover
A47: 17830 | B47: 2015-10-05 | C47: 173.2 | D47: 13.2 | E47: Visa
A48: 17831 | B48: 2015-10-05 | C48: 65 | E48: Johnny - Resale
A49: 17832 | B49: 2015-10-05 | C49: 265.21 | D49: 20.21
A50: 17833 | B50: 2015-10-05 | C50: 46.49 | D50: 3.54 | E50: Visa
A51: 17834 | B51: 2015-10-05 | C51: 74.69 | D51: 5.69 | E51: MC
A52: 17835 | B52: 2015-10-05 | C52: 57.37 | D52: 4.37 | E52: $22.58 Due, Chgr | F52: =+C39+C42+C43+C46+C47+C50+C51 -> 1121.9 | G52: 1106.2
A53: 17836 | B53: 2015-10-06 | C53: 7.29 | E53: Visa
A54: 17837 | B54: 2015-10-06 | C54: 24.46 | D54: 1.86 | E54: MC
A55: 17838 | B55: 2015-10-06 | C55: 84.44 | D55: 6.44 | E55: Visa
A56: 17839 | B56: 2015-10-06 | C56: 230.57 | D56: 17.57 | E56: Due, Vespa
A57: 17840 | B57: 2015-10-06 | C57: 70.36 | D57: 5.36
A58: 17841 | B58: 2015-10-06 | C58: 8 | D58: 0.61
A59: 17842 | B59: 2015-10-06 | C59: 21.65 | D59: 1.65 | E59: Visa
A60: 17843 | B60: 2015-10-06 | C60: 5 | E60: J.Rangel - resale
A61: 17844 | B61: 2015-10-06 | C61: 37.18 | E61: J.Rangel - resale
A62: 17845 | B62: 2015-10-06 | C62: 11.99 | D62: 0.91
A63: 17846 | B63: 2015-10-06 | C63: 306.85 | D63: 23.39 | E63: Visa
A64: 17847 | B64: 2015-10-06 | C64: 19.43 | D64: 1.48
A65: 17848 | B65: 2015-10-06 | C65: 32.48 | D65: 2.48
A66: 17849 | B66: 2015-10-06 | C66: 26.3 | D66: 2 | E66: Visa
A67: 17850 | B67: 2015-10-06 | C67: 200 | E67: Deposit only | F67: =+C53+C54+C59+C63+C66 -> 386.55 | G67: 383.37
A68: 17851 | B68: 2015-10-07 | C68: 32.48 | D68: 2.48 | E68: Visa
A69: 17852 | B69: 2015-10-07 | C69: 18.35 | D69: 1.4 | E69: Visa
A70: 17853 | B70: 2015-10-07 | C70: 15 | D70: 1.14 | E70: Visa
A71: 17854 | B71: 2015-10-07 | C71: 8 | D71: 0.61 | E71: Visa
A72: 17855 | B72: 2015-10-07 | C72: 1.14 | D72: 0.09
A73: 17856 | B73: 2015-10-07 | C73: 20 | D73: 1.52 | E73: Visa
A74: 17857 | B74: 2015-10-07 | C74: 117 | E74: Carlos - resale MX
A75: 17858 | B75: 2015-10-07 | C75: 200.37 | D75: 15.27 | E75: Visa
A76: 17859 | B76: 2015-10-07 | C76: 266.19 | D76: 20.29
A77: 17860 | B77: 2015-10-07 | C77: 521.71 | D77: 39.76 | E77: Visa, $200 dep, bal due
A78: 17861 | B78: 2015-10-07 | C78: 25.44 | D78: 1.94 | E78: Visa | F78: =+C69+C70+C71+C73+C75+200+C78 -> 487.16 | G78: 480.02
A79: 17862 | B79: 2015-10-08 | C79: 2.7 | D79: 0.21
A80: 17863 | B80: 2015-10-08 | C80: 216 | D80: 16.46
A81: 17864 | B81: 2015-10-08 | C81: 43.3 | D81: 3.3
A82: 17865 | B82: 2015-10-08 | C82: 741.51 | D82: 56.51 | E82: Visa
A83: 17866 | B83: 2015-10-08 | C83: 10 | E83: Done Rite - resale
A84: 17867 | B84: 2015-10-08 | C84: 24.63 | D84: 1.88
A85: 17868 | B85: 2015-10-08 | C85: 296.61 | D85: 22.61 | E85: Check
A86: 17869 | B86: 2015-10-08 | C86: 360 | D86: 27.44 | E86: Due
A87: 17870 | B87: 2015-10-08 | C87: 10.83 | D87: 0.83
A88: 17871 | B88: 2015-10-08 | C88: 32.48 | D88: 2.48 | F88: =C55+C82 -> 825.95 | G88: 822.5
A89: 17872 | B89: 2015-10-09 | C89: 102.62 | D89: 7.82 | E89: Visa
A90: 17873 | B90: 2015-10-09 | C90: 31 | E90: Due, Chris F - resale
A91: 17874 | B91: 2015-10-09 | C91: 235 | D91: 17.91
A92: 17875 | B92: 2015-10-09 | C92: 64.95 | D92: 4.95
A93: 17876 | B93: 2015-10-09 | C93: 46.49 | D93: 3.54 | E93: Visa
A94: 17877 | B94: 2015-10-09 | C94: 9.69 | D94: 0.74
A95: 17878 | B95: 2015-10-09 | C95: 637.29 | E95: Check
A96: 17879 | B96: 2015-10-09 | C96: 16.24 | D96: 1.24 | F96: =+C93+C68+C89 -> 181.59 | G96: 179.39
A97: 17880 | B97: 2015-10-10 | C97: 309.05 | D97: 23.55 | E97: Visa
A98: 17881 | B98: 2015-10-10 | C98: 14.56 | D98: 1.11
A99: 17882 | B99: 2015-10-10 | C99: 19.43 | D99: 1.48
A100: 17883 | B100: 2015-10-10 | C100: 7.52 | D100: 0.57
A101: 17884 | B101: 2015-10-10 | C101: 21.6 | D101: 1.65
A102: 17885 | B102: 2015-10-10 | C102: 86.6 | D102: 6.6 | E102: Visa
A103: 17886 | B103: 2015-10-10 | C103: 113.66 | D103: 8.66 | E103: Visa
A104: 17887 | B104: 2015-10-10 | C104: 36.81 | D104: 2.81
A105: 17888 | B105: 2015-10-10 | C105: 17.32 | D105: 1.32 | E105: Visa
A106: 17889 | B106: 2015-10-10 | C106: 16.18 | D106: 1.23 | F106: =+C97+C102+C103+C105 -> 526.63 | G106: 521.38
A107: 17890 | B107: 2015-10-12 | C107: 29.23 | D107: 2.23
A108: 17891 | B108: 2015-10-12 | C108: 64.95 | D108: 4.95 | E108: Visa
A109: 17892 | B109: 2015-10-12 | C109: 113.66 | D109: 8.66
A110: 17893 | B110: 2015-10-12 | C110: 73.56 | D110: 5.61
A111: 17894 | B111: 2015-10-12 | C111: 93.1 | D111: 7.1 | E111: MC
A112: 17895 | B112: 2015-10-12 | E112: Backed sale out
A113: 17896 | B113: 2015-10-12 | C113: 351.27 | D113: 26.77 | E113: Visa
A114: 17897 | B114: 2015-10-12 | C114: 10 | D114: 0.76 | E114: Visa
A115: 17898 | B115: 2015-10-12 | C115: 21.6 | D115: 1.65
A116: 17899 | B116: 2015-10-12 | C116: 10.72 | D116: 0.82
A117: 17900 | B117: 2015-10-12 | C117: 275 | E117: Due, Chris F - resale | F117: =+C108+80+C111+C114+C113 -> 599.32 | G117: 595.17
A118: 17901 | B118: 2015-10-13 | C118: 62.79 | D118: 4.79 | E118: Discover
A119: 17902 | B119: 2015-10-13 | C119: 43.3 | D119: 3.3 | E119: Visa
A120: 17903 | B120: 2015-10-13 | C120: 16.24 | D120: 1.24
A121: 17904 | B121: 2015-10-13 | C121: 15.16 | D121: 1.16
A122: 17905 | B122: 2015-10-13 | C122: 514.21 | D122: 38.81 | E122: Due, Paul - Yamaha
A123: 17906 | B123: 2015-10-13 | C123: 6.62 | D123: 0.12 | E123: Visa
A124: 17907 | B124: 2015-10-13 | C124: 54.13 | D124: 4.13
A125: 17908 | B125: 2015-10-13 | C125: 37.89 | D125: 2.89 | E125: Visa
A126: 17909 | B126: 2015-10-13 | C126: 166.71 | D126: 12.71 | E126: Visa, Blk HD w/LEDs
A127: 17910 | B127: 2015-10-13 | C127: 16.67 | D127: 1.27 | F127: =+C118+C119+C123+50 -> 162.71 | G127: 160.02
A128: 17911 | B128: 2015-10-14 | C128: 37.17 | E128: Visa, ESG Custom - resale
A129: 17912 | B129: 2015-10-14 | C129: 51.96 | D129: 3.96
A130: 17913 | B130: 2015-10-14 | C130: 16.24 | D130: 1.24 | E130: $10 cash, $6.24 Visa
A131: 17914 | B131: 2015-10-14 | C131: 295.52 | D131: 22.52
A132: 17915 | B132: 2015-10-14 | C132: 28.15 | D132: 2.15 | E132: Visa
A133: 17916 | B133: 2015-10-14 | C133: 18 | D133: 1.37
A134: 17917 | B134: 2015-10-14 | C134: 65.82 | D134: 5.02 | E134: MC
A135: 17918 | B135: 2015-10-14 | C135: 64.95 | D135: 4.95 | E135: Discover
A136: 17919 | B136: 2015-10-14 | C136: 139 | D136: 10.59 | F136: =+C125+C132+C134+6.24+C128+C135+C126 -> 406.93 | G136: 401.55
A137: 17920 | B137: 2015-10-15 | C137: 109.87 | D137: 8.37 | E137: Visa
A138: 17921 | B138: 2015-10-15 | C138: 29.23 | D138: 2.23
A139: 17922 | B139: 2015-10-15 | C139: 7.01 | D139: 0.53 | E139: Visa
A140: 17923 | B140: 2015-10-15 | C140: 313.38 | D140: 23.88 | E140: Visa
A141: 17924 | B141: 2015-10-15 | C141: 61.95 | D141: 3.2 | E141: MC
A142: 17925 | B142: 2015-10-15 | C142: 83.82 | E142: J. Rangel - resale
A143: 17926 | B143: 2015-10-15 | C143: -233.19 | D143: -17.77
A144: 17927 | B144: 2015-10-15 | C144: 142 | E144: Due, Done Rite - resale
A145: 17928 | B145: 2015-10-15 | C145: 184.03 | D145: 14.03 | E145: MC
A146: 17929 | B146: 2015-10-15 | C146: 124 | D146: 9.45 | F146: =+C137+C139+C141+C140+C145 -> 676.24 | G146: 664.34
A147: 17930 | B147: 2015-10-16 | C147: 30.31 | D147: 2.31 | E147: Visa
A148: 17931 | B148: 2015-10-16 | C148: 64.9 | D148: 4.95 | E148: Visa
A149: 17932 | B149: 2015-10-16 | C149: 42 | E149: J.Rangel - resale
A150: 17933 | B150: 2015-10-16 | C150: 10.83 | D150: 0.83
A151: 17934 | B151: 2015-10-16 | C151: 88 | D151: 6.71 | E151: Visa
A152: 17935 | B152: 2015-10-16 | C152: 53.53 | D152: 4.08
A153: 17936 | B153: 2015-10-16 | C153: 59.54 | D153: 4.54 | E153: Visa
A154: 17937 | B154: 2015-10-16 | C154: 33.56 | D154: 2.56 | E154: Visa
A155: 17938 | B155: 2015-10-16 | C155: 5.41 | D155: 0.41
A156: 17939 | B156: 2015-10-16 | C156: 102.84 | D156: 7.84
A157: 17940 | B157: 2015-10-16 | C157: 28.15 | D157: 2.15
A158: 17941 | B158: 2015-10-16 | C158: 82.27 | D158: 6.27 | E158: Visa | F158: =+C147+C148+C151+C153+C154+C34+C158 -> 374.82 | G158: 368.3
A159: 17942 | B159: 2015-10-17 | C159: 282 | D159: 21.49
A160: 17943 | B160: 2015-10-17 | C160: 12.004925 | D160: 0.914925
A161: 17944 | B161: 2015-10-17 | C161: 139.59 | D161: 10.64 | E161: Visa
A162: 17945 | B162: 2015-10-17 | C162: 263.05 | D162: 20.05 | E162: Visa
A163: 17946 | B163: 2015-10-17 | C163: 306.89 | D163: 23.39 | E163: Visa
A164: 17947 | B164: 2015-10-17 | C164: 16.24 | D164: 1.24 | E164: Visa
A165: 17948 | B165: 2015-10-17 | C165: 10 | D165: 0.76
A166: 17949 | B166: 2015-10-17 | C166: 128.6 | D166: 9.8
A167: 17950 | B167: 2015-10-17 | C167: 140.73 | D167: 10.73 | E167: $70.73 Visa
A168: 17951 | B168: 2015-10-17 | C168: 37.89 | D168: 2.89
A169: 17952 | B169: 2015-10-17 | C169: 140.62 | D169: 10.72 | E169: Visa
A170: 17953 | B170: 2015-10-17 | C170: 5 | D170: 0.38
A171: 17954 | B171: 2015-10-17 | C171: 199 | E171: J.Rangel - resale | F171: =+C161+C162+C164+70.73+C169+C163 -> 937.12 | G171: 932.01
A172: 17955 | B172: 2015-10-19 | C172: 36.81 | D172: 2.81 | E172: Visa
A173: 17956 | B173: 2015-10-19 | C173: 221.8 | D173: 16.9 | E173: MC
A174: 17957 | B174: 2015-10-19 | C174: 37.89 | D174: 2.89 | E174: Visa
A175: 17958 | B175: 2015-10-19 | C175: 147.22 | D175: 11.22 | E175: Visa
A176: 17959 | B176: 2015-10-19 | C176: 45.03 | D176: 3.43 | E176: Discover
A177: 17960 | B177: 2015-10-19 | C177: 10.83 | D177: 0.83
A178: 17961 | B178: 2015-10-19 | C178: 101.76 | D178: 7.76 | E178: Visa
A179: 17962 | B179: 2015-10-19 | C179: 8.61 | D179: 0.66
A180: 17963 | B180: 2015-10-19 | C180: 27.01 | D180: 2.06
A181: 17964 | B181: 2015-10-19 | C181: 250.6 | D181: 19.1 | E181: Visa
A182: 17965 | B182: 2015-10-19 | C182: 242.74 | D182: 33.74
A183: 17966 | B183: 2015-10-19 | C183: 10.72 | D183: 0.82 | F183: =+C172+C174+C175+C173+C176+C178+C181 -> 841.11 | G183: 826.48
A184: 17967 | B184: 2015-10-20 | C184: 205.35 | D184: 15.65 | E184: Visa
A185: 17968 | B185: 2015-10-20 | C185: 10 | E185: Due, Done Rite - resale
A186: 17969 | B186: 2015-10-20 | C186: 75 | D186: 5.72
A187: 17970 | B187: 2015-10-20 | C187: 377.36 | D187: 28.76 | E187: Due
A188: 17971 | B188: 2015-10-20 | C188: 24.9 | D188: 1.9
A189: 17972 | B189: 2015-10-20 | C189: 184 | D189: 14.02
A190: 17973 | B190: 2015-10-20 | C190: 53.04 | D190: 4.04
A191: 17974 | B191: 2015-10-20 | C191: 36.81 | D191: 2.81 | E191: Visa
A192: 17975 | B192: 2015-10-20 | C192: 211.09 | D192: 16.09 | E192: Visa
A193: 17976 | B193: 2015-10-20 | C193: 100 | E193: Gift Cert, J. Rangel
A194: 17977 | B194: 2015-10-20 | C194: 195.93 | D194: 14.93 | E194: Discover
A195: 17978 | B195: 2015-10-20 | C195: 10.78 | D195: 0.82
A196: 17979 | B196: 2015-10-20 | C196: 10.8 | E196: Due, J. Rangel - resale | F196: =+C184+C191+C194 -> 438.09 | G196: 432.04
A197: 17980 | B197: 2015-10-21 | C197: 148.3 | D197: 11.3 | E197: Visa
A198: 17981 | B198: 2015-10-21 | C198: 281.45 | D198: 21.45 | E198: Visa
A199: 17982 | B199: 2015-10-21 | C199: 68.2 | D199: 5.2
A200: 17983 | B200: 2015-10-21 | C200: 64.95 | D200: 4.95 | E200: Visa
... 110 more rows

Sheet Sep-15
A1: Invoice | C1: =SUM(C3:C453) -> 25679.55953 | D1: =SUM(D3:D453) -> 1574.669525 | F1: =SUM(F3:F254) -> 12756.15 | H1: =TODAY() -> 2016-02-05
A2: Number | B2: Date | C2: Amount | D2: Tax | E2: Terms
A3: 17534 | B3: 2015-09-01 | C3: 54.13 | D3: 4.13 | E3: Visa
A4: 17535 | B4: 2015-09-01 | C4: -21.65 | D4: -1.65 | E4: Visa
A5: 17536 | B5: 2015-09-01 | C5: 14.02 | D5: 1.07
A6: 17537 | B6: 2015-09-01 | C6: 211.09 | D6: 16.09 | E6: MC
A7: 17538 | B7: 2015-09-01 | C7: 6.5 | D7: 0.5 | E7: Visa
A8: 17539 | B8: 2015-09-01 | C8: 10 | E8: Revolution - resale
A9: 17540 | B9: 2015-09-01 | C9: 259.8 | D9: 19.8
A10: 17541 | B10: 2015-09-01 | C10: 58.46 | D10: 4.46 | E10: Visa
A11: 17542 | B11: 2015-09-01 | C11: 97.43 | D11: 7.43 | E11: Due
A12: 17543 | B12: 2015-09-01 | C12: 8.61 | D12: 0.66 | E12: Visa
A13: 17544 | B13: 2015-09-01 | C13: 2.5 | E13: Visa
A14: 17545 | B14: 2015-09-01 | C14: 5.95 | D14: 0.45
A15: 17546 | B15: 2015-09-01 | C15: 85.52 | D15: 6.52 | F15: =+C3+C4+C7+C10+C12+C6+C13 -> 319.64 | G15: 312.41
A16: 17547 | B16: 2015-09-02 | C16: 53.04 | D16: 4.04
A17: 17548 | B17: 2015-09-02 | C17: 19 | D17: 1.45
A18: 17549 | B18: 2015-09-02 | C18: 37.89 | D18: 2.89 | E18: Due
A19: 17550 | B19: 2015-09-02 | C19: 27.48 | D19: 2.09
A20: 17551 | B20: 2015-09-02 | C20: 37.89 | D20: 2.89
A21: 17552 | B21: 2015-09-02 | C21: 17.44 | E21: Visa, ESG Customs - Resale
A22: 17553 | B22: 2015-09-02 | C22: 23.71 | D22: 1.81 | E22: Visa
A23: 17554 | B23: 2015-09-02 | C23: 414 | E23: Dons - Falfurious, resale | F23: =+C21+C22 -> 41.15 | G23: 40.18
A24: 17555 | B24: 2015-09-03 | C24: 77.94 | D24: 5.94
A25: 17556 | B25: 2015-09-03 | C25: 44.38 | D25: 3.38 | E25: MC
A26: 17557 | B26: 2015-09-03 | C26: 12.94 | D26: 0.99 | E26: Visa
A27: 17558 | B27: 2015-09-03 | C27: 29.23 | D27: 2.23 | E27: MC
A28: 17559 | B28: 2015-09-03 | C28: 9.69 | D28: 0.74
A29: 17560 | B29: 2015-09-03 | C29: 32.48 | D29: 2.48
A30: 17561 | B30: 2015-09-03 | C30: 33 | E30: Visa, Danny MotorSports - resale
A31: 17562 | B31: 2015-09-03 | C31: 7 | D31: 0.53 | E31: MC | F31: =+C25+C26+C27+C30+C31+83.2 -> 209.75 | G31: 205.34
A32: 17563 | B32: 2015-09-04 | C32: 139.64 | D32: 10.64
A33: 17564 | B33: 2015-09-04 | C33: 16.24 | D33: 1.24
A34: 17565 | B34: 2015-09-04 | C34: 160 | D34: 12.19
A35: 17566 | B35: 2015-09-04 | C35: 45 | E35: Visa, James Ind. - resale
A36: 17567 | B36: 2015-09-04 | C36: 269.54 | D36: 20.54 | E36: Visa
A37: 17568 | B37: 2015-09-04 | C37: 58.46 | D37: 4.46 | E37: Visa
A38: 17569 | B38: 2015-09-04 | C38: 29.23 | D38: 2.23
A39: 17570 | B39: 2015-09-04 | C39: -85.52 | D39: -6.52
A40: 17571 | B40: 2015-09-04 | C40: 80 | D40: 6.1
A41: 17572 | B41: 2015-09-04 | C41: 9.69 | D41: 0.74 | F41: =100+C35+C36+C37 -> 473 | G41: 468.58
A42: 17573 | B42: 2015-09-05 | C42: 135.31 | D42: 10.31
A43: 17574 | B43: 2015-09-05 | C43: 665.2 | D43: 50.7 | E43: $565.20 Visa
A44: 17575 | B44: 2015-09-05 | C44: 2.7 | D44: 0.21
A45: 17576 | B45: 2015-09-05 | C45: 91 | E45: Dirty Daves, resale
A46: 17577 | B46: 2015-09-05 | C46: 10.83 | D46: 0.83
A47: 17578 | B47: 2015-09-05 | C47: 499.03 | D47: 38.03 | E47: MC
A48: 17579 | B48: 2015-09-05 | C48: 54.13 | D48: 4.13 | E48: MC | F48: =+C47+C48 -> 553.16 | G48: 536.97
A49: 17580 | B49: 2015-09-07 | C49: 43.19 | D49: 3.29 | E49: Visa
A50: 17581 | B50: 2015-09-07 | C50: 132.07 | D50: 10.07
A51: 17582 | B51: 2015-09-07 | C51: 51.6 | D51: 1.65 | E51: Visa
A52: 17583 | B52: 2015-09-07 | C52: 142.89 | D52: 10.89
A53: 17584 | B53: 2015-09-07 | C53: 56.29 | D53: 4.29 | E53: Visa
A54: 17585 | B54: 2015-09-07 | C54: 24.9 | D54: 1.9
A55: 17586 | B55: 2015-09-07 | C55: 25.98 | D55: 1.98 | E55: Visa
A56: 17587 | B56: 2015-09-07 | C56: 64.95 | D56: 4.95
A57: 17588 | B57: 2015-09-07 | C57: 192.69 | D57: 14.69 | E57: Visa
A58: 17589 | B58: 2015-09-07 | C58: 172 | D58: 13.11 | E58: Visa
A59: 17590 | B59: 2015-09-07 | C59: 369 | D59: 28.12 | E59: $169 due | F59: =+C49+C51+C53+C55+565.2+C57+C58 -> 1106.95 | G59: 1086.39
A60: 17591 | B60: 2015-09-08 | C60: 5.39 | D60: 0.41
A61: 17592 | B61: 2015-09-08 | C61: 6 | D61: 0.46
A62: 17593 | B62: 2015-09-08 | C62: 15.7 | D62: 1.2
A63: 17594 | B63: 2015-09-08 | C63: 141.81 | D63: 10.81 | E63: Visa
A64: 17595 | B64: 2015-09-08 | C64: 25.98 | D64: 1.98 | E64: Visa
A65: 17596 | B65: 2015-09-08 | C65: 50.88 | D65: 3.88
A66: 17597 | B66: 2015-09-08 | C66: 74.69 | D66: 5.69 | E66: Visa
A67: 17598 | B67: 2015-09-08 | C67: 38.79 | E67: Visa, ESG Customs - resale
A68: 17599 | B68: 2015-09-08 | C68: 120 | D68: 9.15
A69: 17600 | B69: 2015-09-08 | C69: 42.22 | D69: 3.22 | E69: Visa | F69: =70+C66+C64+C67+C69 -> 251.68 | G69: 248.77
A70: 17601 | B70: 2015-09-09 | C70: 35.72 | D70: 2.72 | E70: Visa
A71: 17602 | B71: 2015-09-09 | C71: 33.5 | D71: 2.55 | E71: Visa
A72: 17603 | B72: 2015-09-09 | C72: 16.18 | D72: 1.23 | E72: Visa
A73: 17604 | B73: 2015-09-09 | C73: 26 | E73: MC, Revolution - resale
A74: 17605 | B74: 2015-09-09 | C74: 32.48 | D74: 2.48 | E74: Due
A75: 17606 | B75: 2015-09-09 | C75: 214.34 | D75: 16.34 | E75: $114.34 due
A76: 17607 | B76: 2015-09-09 | C76: 23 | D76: 1.75 | F76: =+C70+C71+C72 -> 85.4 | G76: 83.63
A77: 17608 | B77: 2015-09-10 | C77: 293.9 | D77: 22.4
A78: 17609 | B78: 2015-09-10 | C78: 129.9 | D78: 9.9
A79: 17610 | B79: 2015-09-10 | C79: 7.58 | D79: 0.58 | E79: Visa
A80: 17611 | B80: 2015-09-10 | C80: 0 | D80: 0
A81: 17612 | B81: 2015-09-10 | C81: 10 | D81: 0.76
A82: 17613 | B82: 2015-09-10 | C82: 6.67 | E82: Visa
A83: 17614 | B83: 2015-09-10 | C83: 90.88 | D83: 6.93 | E83: Visa
A84: 17615 | B84: 2015-09-10 | C84: 143.97 | D84: 10.97 | E84: MC
A85: 17616 | B85: 2015-09-10 | C85: 301.48 | D85: 22.98
A86: 17617 | B86: 2015-09-10 | C86: 5.41 | D86: 0.41
A87: 17618 | B87: 2015-09-10 | C87: 206.22 | D87: 15.72
A88: 17619 | B88: 2015-09-10 | C88: 4 | E88: MC, Revolution - resale
A89: 17620 | B89: 2015-09-10 | C89: 30.04 | D89: 2.29
A90: 17621 | B90: 2015-09-10 | C90: 12.99 | D90: 0.99
A91: 17622 | B91: 2015-09-10 | C91: 413.52 | D91: 31.52 | E91: $313.52 due
A92: 17623 | B92: 2015-09-10 | C92: 25.98 | D92: 1.98 | E92: MC | F92: =+C79+C82+C83+C73+C88+C84+C92 -> 305.08 | G92: 300.01
A93: 17624 | B93: 2015-09-11 | C93: 138.56 | D93: 10.56 | E93: Visa
A94: 17625 | B94: 2015-09-11 | C94: 7.84 | E94: Adrenaline, resale
A95: 17626 | B95: 2015-09-11 | C95: 6.5 | E95: MC, Revolution - resale
A96: 17627 | B96: 2015-09-11 | C96: 369 | D96: 28.12 | E96: $169 due
A97: 17628 | B97: 2015-09-11 | C97: 38.43 | D97: 2.93 | E97: Visa
A98: 17629 | B98: 2015-09-11 | C98: 8.93
A99: 17630 | B99: 2015-09-11 | C99: 320.42 | D99: 24.42 | E99: $40.42 bal due
A100: 17631 | B100: 2015-09-11 | C100: 113.66 | D100: 8.66 | E100: Due | F100: =+C93+269.91+C95+C97 -> 453.4 | G100: 448.65
A101: 17632 | B101: 2015-09-12 | C101: 11.85 | D101: 0.9
A102: 17633 | B102: 2015-09-12 | C102: 57.37 | D102: 4.37 | E102: Due
A103: 17634 | B103: 2015-09-12 | C103: 16.16 | D103: 1.23
A104: 17635 | B104: 2015-09-12 | C104: 33.56 | D104: 2.56
A105: 17636 | B105: 2015-09-12 | C105: 333.41 | D105: 25.41 | E105: Visa
A106: 17637 | B106: 2015-09-12 | C106: 6.96 | E106: Visa, ESG Customs - resale
A107: 17638 | B107: 2015-09-12 | C107: 108.2 | D107: 8.25 | E107: Visa
A108: 17639 | B108: 2015-09-12 | C108: 38.75 | D108: 2.95 | E108: Visa
A109: 17640 | B109: 2015-09-12 | C109: 22.73 | D109: 1.73
A110: 17641 | B110: 2015-09-12 | C110: 113 | D110: 8.61 | F110: =+C106+C107+C108 -> 153.91 | G110: 151.69
A111: 17642 | B111: 2015-09-14 | C111: 43.3 | D111: 3.3
A112: 17643 | B112: 2015-09-14 | C112: 113.66 | D112: 8.66
A113: 17644 | B113: 2015-09-14 | C113: 119.56 | D113: 9.11 | E113: $100 cash, $19.56 Visa
A114: 17645 | B114: 2015-09-14 | C114: 14.07 | D114: 1.07
A115: 17646 | B115: 2015-09-14 | C115: 128.76 | D115: 9.81 | E115: $8.76 Visa
A116: 17647 | B116: 2015-09-14 | C116: 67.12 | D116: 5.12 | E116: MC
A117: 17648 | B117: 2015-09-14 | C117: 24.994925 | D117: 1.904925
A118: 17649 | B118: 2015-09-14 | C118: 119 | D118: 9.07 | E118: Visa
A119: 17650 | B119: 2015-09-14 | C119: 46.87 | D119: 3.57 | E119: Visa
A120: 17651 | B120: 2015-09-14 | C120: 29.23 | D120: 2.23 | E120: Visa
A121: 17652 | B121: 2015-09-14 | C121: 69 | D121: 5.26
A122: 17653 | B122: 2015-09-14 | C122: 94 | E122: Due, Carlos G - resale
A123: 17654 | B123: 2015-09-14 | C123: 43.3 | D123: 3.3
A124: 17655 | B124: 2015-09-14 | C124: 43.3 | D124: 3.3
A125: 17656 | B125: 2015-09-14 | C125: 225 | E125: Visa, Auto Depot - resale | F125: =+C116+C118+C119+C120+8.76 -> 270.98 | G125: 266.86
A126: 17657 | B126: 2015-09-15 | C126: 216.5 | D126: 16.5 | E126: Visa
A127: 17658 | B127: 2015-09-15 | C127: 43.3 | D127: 3.3
A128: 17659 | B128: 2015-09-15 | C128: 4.5 | E128: Visa
A129: 17660 | B129: 2015-09-15 | C129: 108.57 | D129: 8.27 | E129: $8.57 due
A130: 17661 | B130: 2015-09-15 | C130: 154 | D130: 11.74
A131: 17662 | B131: 2015-09-15 | C131: 81.08 | D131: 6.18 | E131: MC | F131: =+C126+C128+C105+19.56+C131 -> 655.05 | G131: 641.36
A132: 17663 | B132: 2015-09-16 | C132: 20.0046 | D132: 1.5246
A133: 17664 | B133: 2015-09-16 | C133: 2495 | E133: Due, Border Patrol
A134: 17665 | B134: 2015-09-16 | C134: 362.64 | D134: 27.64 | E134: MC
A135: 17666 | B135: 2015-09-16 | C135: 21.65 | D135: 1.65 | E135: Visa
A136: 17667 | B136: 2015-09-16 | C136: 84.44 | D136: 6.44 | E136: MC
A137: 17668 | B137: 2015-09-16 | C137: 80 | D137: 6.1 | F137: =+C134+C135+15 -> 399.29 | G137: 390.86
A138: 17669 | B138: 2015-09-17 | C138: 737.02 | D138: 56.17 | E138: Check, Addl to Inv 17529
A139: 17670 | B139: 2015-09-17 | C139: 65.82 | D139: 5.02 | E139: Discover
A140: 17671 | B140: 2015-09-17 | C140: 16.24 | D140: 1.24
A141: 17672 | B141: 2015-09-17 | C141: 458 | E141: Visa, Chris F - resale
A142: 17673 | B142: 2015-09-17 | C142: 80.11 | D142: 6.11 | E142: MC
A143: 17674 | B143: 2015-09-17 | C143: 25.97 | D143: 1.98 | E143: Due
A144: 17675 | B144: 2015-09-17 | C144: 48.71 | D144: 3.71 | E144: Visa | F144: =71.81+C141+C142+C144 -> 658.63 | G144: 647.45
A145: 17676 | B145: 2015-09-18 | C145: 132.07 | D145: 10.07
A146: 17677 | B146: 2015-09-18 | C146: 2.44 | D146: 0.19 | E146: Discover
A147: 17678 | B147: 2015-09-18 | C147: 10.83 | D147: 0.83
A148: 17679 | B148: 2015-09-18 | C148: 10 | D148: 0.76
A149: 17680 | B149: 2015-09-18 | C149: 7 | E149: Danny - resale | F149: =65.82+C146 -> 68.26 | G149: 66.49
A150: 17681 | B150: 2015-09-19 | C150: 5.36 | D150: 0.41
A151: 17682 | B151: 2015-09-19 | C151: 60.62 | D151: 4.62
A152: 17683 | B152: 2015-09-19 | C152: 42.22 | D152: 3.22 | E152: Visa
A153: 17684 | B153: 2015-09-19 | C153: 196.15 | D153: 14.95 | E153: MC
A154: 17685 | B154: 2015-09-19 | C154: 85.52 | D154: 6.52 | E154: Visa
A155: 17686 | B155: 2015-09-19 | C155: 46.49 | D155: 3.54 | E155: Visa
A156: 17687 | B156: 2015-09-19 | C156: 16.18 | D156: 1.23
A157: 17688 | B157: 2015-09-19 | C157: 74.69 | D157: 5.69 | E157: Visa
A158: 17689 | B158: 2015-09-19 | C158: 6 | E158: Visa
A159: 17690 | B159: 2015-09-19 | C159: 135.31 | D159: 10.31 | E159: Visa
A160: 17691 | B160: 2015-09-19 | C160: 21 | E160: J.Rangel - resale
A161: 17692 | B161: 2015-09-19 | C161: 32.42 | D161: 2.47 | E161: MC
A162: 17693 | B162: 2015-09-19 | C162: 190 | D162: 14.48 | F162: =+C125+C152+C153+C154+C155+C157+C158+C159+C161 -> 843.8 | G162: 828.13
A163: 17694 | B163: 2015-09-21 | C163: 176.99 | D163: 13.49
A164: 17695 | B164: 2015-09-21 | C164: 27.06 | D164: 2.06 | E164: MC
A165: 17696 | B165: 2015-09-21 | C165: 518 | D165: 39.48
A166: 17697 | B166: 2015-09-21 | C166: 20.57 | D166: 1.57
A167: 17698 | B167: 2015-09-21 | C167: 151 | D167: 11.51 | E167: Visa
A168: 17699 | B168: 2015-09-21 | C168: 13 | E168: Due, Done Rite - resale
A169: 17700 | B169: 2015-09-21 | C169: 10.83 | D169: 0.83
A170: 17701 | B170: 2015-09-21 | C170: 262 | D170: 19.97
A171: 17702 | B171: 2015-09-21 | C171: 11 | D171: 0.84
A172: 17703 | B172: 2015-09-21 | C172: 0 | D172: 0 | F172: =+C164+C167 -> 178.06 | G172: 176.61
A173: 17704 | B173: 2015-09-22 | C173: 17 | D173: 1.3
A174: 17705 | B174: 2015-09-22 | C174: 20 | D174: 1.52
A175: 17706 | B175: 2015-09-22 | C175: 10 | D175: 0.76
A176: 17707 | B176: 2015-09-22 | C176: 7.09 | E176: Visa, ESG Customs - resale
A177: 17708 | B177: 2015-09-22 | C177: 15.7 | D177: 1.2 | E177: MC
A178: 17709 | B178: 2015-09-22 | C178: 18.5 | D178: 1.41 | E178: MC
A179: 17710 | B179: 2015-09-22 | C179: 64.73 | D179: 4.93 | E179: Visa | F179: =+C176+C177+C178+C179 -> 106.02 | G179: 103.31
A180: 17711 | B180: 2015-09-23 | C180: 256.01 | D180: 19.51 | E180: Visa
A181: 17712 | B181: 2015-09-23 | C181: 30.69 | D181: 2.34 | E181: Visa
A182: 17713 | B182: 2015-09-23 | C182: 227.87 | D182: 17.37
A183: 17714 | B183: 2015-09-23 | C183: 8.01 | E183: MC, Revolution - resale
A184: 17715 | B184: 2015-09-23 | C184: -20.57 | D184: -1.57
A185: 17716 | B185: 2015-09-23 | C185: 10.74 | E185: Visa, ESG - resale
A186: 17717 | B186: 2015-09-23 | C186: 296.06 | D186: 22.56 | E186: Visa
A187: 17718 | B187: 2015-09-23 | C187: 285.78 | D187: 21.78 | E187: MC
A188: 17719 | B188: 2015-09-23 | C188: 101 | E188: MC
A189: 17720 | B189: 2015-09-23 | C189: 107.17 | D189: 8.17 | E189: $100. Cash, $7.17 Visa
A190: 17721 | B190: 2015-09-23 | C190: -84.44 | D190: -6.44 | E190: MC
A191: 17722 | B191: 2015-09-23 | C191: 16.78 | D191: 1.28
A192: 17723 | B192: 2015-09-23 | C192: 30 | D192: 2.29
A193: 17724 | B193: 2015-09-23 | C193: 77.94 | D193: 5.94 | E193: Visa | F193: =120+C181+C183+C185+2495+C190+7.17+C193+C187 -> 2950.89 | G193: 3167.99 | H193: ??
A194: 17725 | B194: 2015-09-24 | C194: 5.36 | D194: 0.41
A195: 17726 | B195: 2015-09-24 | C195: 192 | E195: Due, Done Rite - resale
A196: 17727 | B196: 2015-09-24 | C196: 2.71 | D196: 0.21
A197: 17728 | B197: 2015-09-24 | C197: 11 | D197: 0.84
A198: 17729 | B198: 2015-09-24 | C198: 206.22 | D198: 15.72
A199: 17730 | B199: 2015-09-24 | C199: 47.68 | D199: 3.63
A200: 17731 | B200: 2015-09-24 | C200: 510.4 | D200: 38.9 | E200: $250 MC, bal cash
... 54 more rows

Sheet Aug-15
A1: Invoice | C1: =SUM(C3:C394) -> 23885.75 | D1: =SUM(D3:D394) -> 1412.88 | F1: =SUM(F3:F209) -> 13382.6 | H1: =TODAY() -> 2016-02-05
A2: Number | B2: Date | C2: Amount | D2: Tax | E2: Terms
A3: 17326 | B3: 2015-08-01 | C3: 20.57 | D3: 1.57 | E3: MC
A4: 17327 | B4: 2015-08-01 | C4: 41.14 | D4: 3.14 | E4: Due
A5: 17328 | B5: 2015-08-01 | C5: 67.91 | D5: 5.18
A6: 17329 | B6: 2015-08-01 | C6: 40 | D6: 3.05
A7: 17330 | B7: 2015-08-01 | C7: 9.74 | D7: 0.74
A8: 17331 | B8: 2015-08-01 | C8: 320.91 | D8: 24.46 | E8: MC
A9: 17332 | B9: 2015-08-01 | C9: 41.14 | D9: 3.14 | E9: Visa
A10: 17333 | B10: 2015-08-01 | C10: 60.62 | D10: 4.62 | E10: Visa
A11: 17334 | B11: 2015-08-01 | C11: 117.99 | D11: 8.99 | E11: Visa
A12: 17335 | B12: 2015-08-01 | C12: 70.31 | D12: 5.36 | E12: MC
A13: 17336 | B13: 2015-08-01 | C13: 19.38 | D13: 1.48
A14: 17337 | B14: 2015-08-01 | C14: 59.54 | D14: 4.54 | E14: Visa | F14: =+C3+C8+C10+C11+C12+C14+C9 -> 691.08 | G14: 681.83
A15: 17338 | B15: 2015-08-03 | C15: 72.9 | D15: 4.95 | E15: Due
A16: 17339 | B16: 2015-08-03 | C16: 4.06 | D16: 0.31
A17: 17340 | B17: 2015-08-03 | C17: 37.83 | D17: 2.88 | E17: Visa
A18: 17341 | B18: 2015-08-03 | C18: 80.06 | D18: 6.1
A19: 17342 | B19: 2015-08-03 | C19: 1 | D19: 0.08
A20: 17343 | B20: 2015-08-03 | C20: 75.78 | D20: 5.78 | E20: Visa
A21: 17344 | B21: 2015-08-03 | C21: 7.39 | D21: 0.56 | F21: =+C17+C20 -> 113.61 | G21: 112.01
A22: 17345 | B22: 2015-08-04 | C22: 5.41 | D22: 0.41
A23: 17346 | B23: 2015-08-04 | C23: 21.6 | D23: 1.65
A24: 17347 | B24: 2015-08-04 | C24: 81.19 | D24: 6.19 | E24: Due, Rebel
A25: 17348 | B25: 2015-08-04 | C25: 97.35 | E25: ESG Kustoms - resale
A26: 17349 | B26: 2015-08-04 | C26: 2.11 | D26: 0.16 | E26: Visa
A27: 17350 | B27: 2015-08-04 | C27: 113.66 | D27: 8.66
A28: 17351 | B28: 2015-08-04 | C28: 95.26 | D28: 7.26 | F28: =+C26 -> 2.11 | G28: 2.07
A29: 17352 | B29: 2015-08-05 | C29: 35.72 | D29: 2.72
A30: 17353 | B30: 2015-08-05 | C30: 8.61 | D30: 0.66
A31: 17354 | B31: 2015-08-05 | C31: 148.3 | D31: 11.3 | E31: Visa
A32: 17355 | B32: 2015-08-05 | C32: 333 | E32: Due, Carlos G
A33: 17356 | B33: 2015-08-05 | C33: 27.01 | D33: 2.06 | F33: =+C31+41.14 -> 189.44 | G33: 185.82
A34: 17357 | B34: 2015-08-06 | C34: 1816 | E34: Visa, Border Patrol
A35: 17358 | B35: 2015-08-06 | C35: 58.46 | D35: 4.46
A36: 17359 | B36: 2015-08-06 | C36: 290.65 | D36: 22.15 | E36: Discover
A37: 17360 | B37: 2015-08-06 | C37: 399.44 | D37: 30.44 | E37: Visa
A38: 17361 | B38: 2015-08-06 | C38: 24.24 | E38: Visa | F38: =+C38+C37+C36+72.9 -> 787.23 | G38: 771.25
A39: 17362 | B39: 2015-08-07 | C39: 182.94 | D39: 13.94 | E39: Visa
A40: 17363 | B40: 2015-08-07 | C40: 5.36 | D40: 0.41
A41: 17364 | B41: 2015-08-07 | C41: 29.23 | D41: 2.23 | E41: MC
A42: 17365 | B42: 2015-08-07 | C42: 9.69 | D42: 0.74 | E42: Visa
A43: 17366 | B43: 2015-08-07 | C43: 90 | D43: 6.86 | F43: =+C39+C41+C42 -> 221.86 | G43: 219.1
A44: 17367 | B44: 2015-08-08 | C44: 140 | D44: 10.67
A45: 17368 | B45: 2015-08-08 | C45: 284.7 | D45: 21.7 | E45: MC
A46: 17369 | B46: 2015-08-08 | C46: 48.71 | D46: 3.71 | E46: Due, Big Jon
A47: 17370 | B47: 2015-08-08 | C47: 215.36 | D47: 16.41 | E47: Visa
A48: 17371 | B48: 2015-08-08 | C48: 547.75 | D48: 41.75 | E48: Visa, $267.75 due
A49: 17372 | B49: 2015-08-08 | C49: 285.78 | D49: 21.78 | E49: Visa
A50: 17373 | B50: 2015-08-08 | C50: 9.69 | D50: 0.74
A51: 17374 | B51: 2015-08-08 | C51: -11.37 | D51: -0.87
A52: 17375 | B52: 2015-08-08 | C52: 196.47 | D52: 14.97 | E52: Visa
A53: 17376 | B53: 2015-08-08 | C53: 35.67 | D53: 2.72 | E53: MC
A54: 17377 | B54: 2015-08-08 | C54: 145.06 | D54: 11.06 | F54: =+C45+100+280+C49+C52+C53 -> 1182.62 | G54: 1170.97
A55: 17378 | B55: 2015-08-10 | C55: 279.83 | D55: 21.33 | E55: Visa
A56: 17379 | B56: 2015-08-10 | C56: 21.6 | D56: 1.65
A57: 17380 | B57: 2015-08-10 | C57: 562.36 | D57: 42.86 | E57: Visa
A58: 17381 | B58: 2015-08-10 | C58: 35 | E58: Bike Rods - resale
A59: 17382 | B59: 2015-08-10 | C59: 56.29 | D59: 4.29 | E59: MC
A60: 17383 | B60: 2015-08-10 | C60: 78 | E60: Carlos G - resale MX
A61: 17384 | B61: 2015-08-10 | C61: 147.14 | D61: 11.14 | E61: Due
A62: 17385 | B62: 2015-08-10 | C62: 16.18 | D62: 1.23
A63: 17386 | B63: 2015-08-10 | C63: 32.26 | D63: 2.46 | F63: =+C55+C57+60.3+C59 -> 958.78 | G63: 944.72
A64: 17387 | B64: 2015-08-11 | C64: 55.21 | D64: 4.21
A65: 17388 | B65: 2015-08-11 | C65: 232.47 | D65: 17.72 | E65: Visa
A66: 17389 | B66: 2015-08-11 | C66: 281.45 | D66: 21.45 | E66: Visa
A67: 17390 | B67: 2015-08-11 | C67: 48.71 | D67: 3.71
A68: 17391 | B68: 2015-08-11 | C68: 285.73 | D68: 21.78 | E68: Visa
A69: 17392 | B69: 2015-08-11 | C69: 58.46 | D69: 4.46 | E69: Visa | F69: =+C65+C68+C66+C69 -> 858.11 | G69: 846.03
A70: 17393 | B70: 2015-08-12 | C70: 327.02 | D70: 24.92 | E70: Visa
A71: 17394 | B71: 2015-08-12 | C71: 130 | E71: Dirty Daves - resale
A72: 17395 | B72: 2015-08-12 | C72: 181 | E72: L&D Outboard - resale
A73: 17396 | B73: 2015-08-12 | C73: 105 | D73: 8
A74: 17397 | B74: 2015-08-12 | C74: 374 | D74: 28.5 | E74: Discover | F74: =160+C74 -> 534 | G74: 523.02
A75: 17398 | B75: 2015-08-13 | C75: 15.38 | D75: 1.17
A76: 17399 | B76: 2015-08-13 | C76: 6.5 | D76: 0.5 | E76: Visa
A77: 17400 | B77: 2015-08-13 | C77: 89.52 | D77: 6.52 | E77: $19.52 Visa, Bal cash
A78: 17401 | B78: 2015-08-13 | C78: 32 | E78: Visa, ESG Customs - resale
A79: 17402 | B79: 2015-08-13 | C79: 14.07 | D79: 1.07
A80: 17403 | B80: 2015-08-13 | C80: 262.51 | D80: 20.01 | E80: Visa
A81: 17404 | B81: 2015-08-13 | C81: 215 | E81: Revolution - resale
A82: 17405 | B82: 2015-08-13 | C82: 47.63 | D82: 3.63 | E82: Visa
A83: 17406 | B83: 2015-08-13 | C83: 110 | E83: Revolution - resale
A84: 17407 | B84: 2015-08-13 | C84: 21.6 | D84: 1.65 | E84: Visa | F84: =+C76+C78+240.58+C82+C84+19.84+C80 -> 630.66 | G84: 622.55
A85: 17408 | B85: 2015-08-14 | C85: 19.78 | D85: 1.51
A86: 17409 | B86: 2015-08-14 | C86: 47.63 | D86: 3.63 | E86: Visa
A87: 17410 | B87: 2015-08-14 | C87: 119.29 | D87: 9.09 | E87: $15.15 Visa
A88: 17411 | B88: 2015-08-14 | C88: 16.18 | D88: 1.23
A89: 17412 | B89: 2015-08-14 | C89: 203.51 | D89: 15.51 | E89: Visa
A90: 17413 | B90: 2015-08-14 | C90: 24.84 | D90: 1.89 | E90: Visa
A91: 17414 | B91: 2015-08-14 | C91: 30.31 | D91: 2.31 | E91: Visa
A92: 17415 | B92: 2015-08-14 | C92: 38.97 | D92: 2.97
A93: 17416 | B93: 2015-08-14 | C93: 220.29 | D93: 16.79 | F93: =+C86+C89+C90+C91+81.19 -> 387.48 | G93: 379.83
A94: 17417 | B94: 2015-08-15 | C94: 19 | E94: Visa
A95: 17418 | B95: 2015-08-15 | C95: 26 | E95: Visa
A96: 17419 | B96: 2015-08-15 | C96: 20.57 | D96: 1.57 | E96: Visa
A97: 17420 | B97: 2015-08-15 | C97: 505.53 | D97: 38.53 | E97: $305.53 due
A98: 17421 | B98: 2015-08-15 | C98: 10.83 | D98: 0.83
A99: 17422 | B99: 2015-08-15 | C99: 30.31 | D99: 2.31
A100: 17423 | B100: 2015-08-15 | C100: 75.78 | D100: 5.78
A101: 17424 | B101: 2015-08-15 | C101: 59.54 | D101: 4.54
A102: 17425 | B102: 2015-08-15 | C102: 53.04 | D102: 4.04
A103: 17426 | B103: 2015-08-15 | C103: 20 | E103: Dirty Daves - resale | F103: =+C94+C95+C96 -> 65.57 | G103: 64.13
A104: 17427 | B104: 2015-08-17 | C104: 101.97 | D104: 7.77 | E104: Visa
A105: 17428 | B105: 2015-08-17 | C105: 28.15 | D105: 2.15 | E105: Visa
A106: 17429 | B106: 2015-08-17 | C106: 166.5 | D106: 12.69 | E106: Visa
A107: 17430 | B107: 2015-08-17 | C107: 9.69 | D107: 0.74
A108: 17431 | B108: 2015-08-17 | C108: 10 | D108: 0.76 | E108: Visa
A109: 17432 | B109: 2015-08-17 | C109: 250.6 | D109: 19.1
A110: 17433 | B110: 2015-08-17 | C110: 25.93 | D110: 1.98
A111: 17434 | B111: 2015-08-17 | C111: 18.35 | D111: 1.4 | F111: =+C104+C105+C106+C108 -> 306.62 | G111: 304.16
A112: 17435 | B112: 2015-08-18 | C112: 17.32 | D112: 1.32 | E112: Due, Roller
A113: 17436 | B113: 2015-08-18 | C113: 24.9 | D113: 1.9
A114: 17437 | B114: 2015-08-18 | C114: 22.68 | D114: 1.73
A115: 17438 | B115: 2015-08-18 | C115: 114 | D115: 8.69
A116: 17439 | B116: 2015-08-18 | C116: 311.76 | D116: 23.76 | E116: MC
A117: 17440 | B117: 2015-08-18 | C117: 21.65 | D117: 1.65
A118: 17441 | B118: 2015-08-18 | C118: 27.06 | D118: 2.06 | E118: Visa
A119: 17442 | B119: 2015-08-18 | C119: 53.04 | D119: 4.04
A120: 17443 | B120: 2015-08-18 | C120: 5.41 | D120: 0.41 | E120: Visa | F120: =15.15+C116+C118+C120 -> 359.38 | G120: 351
A121: 17444 | B121: 2015-08-19 | C121: 285.37 | D121: 21.37 | E121: Due, HD Dyna
A122: 17445 | B122: 2015-08-19 | C122: 97.43 | D122: 7.43
A123: 17446 | B123: 2015-08-19 | C123: 146.53 | E123: Visa, ESG Customs - resale
A124: 17447 | B124: 2015-08-19 | C124: 12.29 | D124: 0.94
A125: 17448 | B125: 2015-08-19 | C125: 145
A126: 17449 | B126: 2015-08-19 | C126: 259 | D126: 19.74 | F126: =+C123 -> 146.53 | G126: 145.71
A127: 17450 | B127: 2015-08-20 | C127: 10.81 | D127: 0.82
A128: 17451 | B128: 2015-08-20 | C128: 51.96 | D128: 3.96
A129: 17452 | B129: 2015-08-20 | C129: 16 | E129: ESG Customs - Acct
A130: 17453 | B130: 2015-08-20 | C130: 6.5 | D130: 0.5
A131: 17454 | B131: 2015-08-20 | C131: 258.72 | D131: 19.72 | E131: $178.72 due
A132: 17455 | B132: 2015-08-20 | C132: 150 | D132: 11.43
A133: 17456 | B133: 2015-08-20 | C133: 27.06 | D133: 2.06 | F133: 0 | G133: =+F133*0.97831 -> 0
A134: 17457 | B134: 2015-08-21 | C134: 48.71 | D134: 3.71 | E134: Randy, $38.71 due
A135: 17458 | B135: 2015-08-21 | C135: 5 | D135: 0.38
A136: 17459 | B136: 2015-08-21 | C136: 214.88 | D136: 16.38
A137: 17460 | B137: 2015-08-21 | C137: 10.83 | D137: 0.83
A138: 17461 | B138: 2015-08-21 | C138: 58.46 | D138: 4.46
A139: 17462 | B139: 2015-08-21 | C139: 321.5 | D139: 24.5 | E139: Visa
A140: 17463 | B140: 2015-08-21 | C140: 20 | D140: 1.52
A141: 17464 | B141: 2015-08-21 | C141: 45 | D141: 3.43 | E141: Visa | F141: =+C139+365.37+1+C141 -> 732.87 | G141: 722.33
A142: 17465 | B142: 2015-08-22 | C142: 59.43 | D142: 4.53 | E142: Visa
A143: 17466 | B143: 2015-08-22 | C143: 217 | D143: 16.54
A144: 17467 | B144: 2015-08-22 | C144: 199 | D144: 15.17
A145: 17468 | B145: 2015-08-22 | C145: 84 | E145: Dirty Daves - resale
A146: 17469 | B146: 2015-08-22 | C146: 122.32 | D146: 9.32
A147: 17470 | B147: 2015-08-22 | C147: 0 | D147: 0
A148: 17471 | B148: 2015-08-22 | C148: 30.42 | D148: 2.32
A149: 17472 | B149: 2015-08-22 | C149: 2.7 | D149: 0.21
A150: 17473 | B150: 2015-08-22 | C150: 17.32 | D150: 1.32 | E150: Due
A151: 17474 | B151: 2015-08-22 | C151: 21.65 | D151: 1.65 | E151: Visa
A152: 17475 | B152: 2015-08-22 | C152: 45 | D152: 3.43
A153: 17476 | B153: 2015-08-22 | C153: 48.44 | D153: 3.69 | E153: Visa
A154: 17477 | B154: 2015-08-22 | C154: 11.85 | D154: 0.9
A155: 17478 | B155: 2015-08-22 | C155: 456.82 | D155: 34.82 | F155: =+C142+C151+C153+167.02 -> 296.54 | G155: 292.96
A156: 17479 | B156: 2015-08-24 | C156: 117.99 | D156: 8.99 | E156: Visa
A157: 17480 | B157: 2015-08-24 | C157: 7.52 | D157: 0.57
A158: 17481 | B158: 2015-08-24 | C158: 23.82 | D158: 1.82 | E158: Visa
A159: 17482 | B159: 2015-08-24 | C159: 90.93 | D159: 6.93 | E159: Visa
A160: 17483 | B160: 2015-08-24 | C160: 10.83 | D160: 0.83
A161: 17484 | B161: 2015-08-24 | C161: 10.83 | D161: 0.83 | E161: Visa
A162: 17485 | B162: 2015-08-24 | C162: 16.24 | D162: 1.24 | F162: =+C156+C158+C159+C161 -> 243.57 | G162: 239.69
A163: 17486 | B163: 2015-08-25 | C163: 36.75 | D163: 2.8
A164: 17487 | B164: 2015-08-25 | C164: 21.65 | D164: 1.65 | E164: Visa
A165: 17488 | B165: 2015-08-25 | C165: 806.46 | D165: 61.46 | E165: Due
A166: 17489 | B166: 2015-08-25 | C166: 1096 | E166: Due, Carlos G - Resale MX
A167: 17490 | B167: 2015-08-25 | C167: 54.29 | D167: 4.14
A168: 17491 | B168: 2015-08-25 | C168: 62.79 | D168: 4.79 | E168: MC
A169: 17492 | B169: 2015-08-25 | C169: 277.66 | D169: 21.16 | E169: Visa
A170: 17493 | B170: 2015-08-25 | C170: 60.62 | D170: 4.62 | F170: =+C34+0.03+C164+C168+C169 -> 2178.13 | G170: 2118.85 | H170: $12+ low, why?
A171: 17494 | B171: 2015-08-26 | C171: 17.27 | D171: 1.32
A172: 17495 | B172: 2015-08-26 | C172: 113.55 | D172: 8.65 | E172: Due
A173: 17496 | B173: 2015-08-26 | C173: 180.12 | D173: 13.73
A174: 17497 | B174: 2015-08-26 | C174: 18.4 | D174: 1.4 | E174: Visa
A175: 17498 | B175: 2015-08-26 | C175: 297.69 | D175: 22.69 | E175: MC | F175: =+C174+C175+23.55 -> 339.64 | G175: 334.62
A176: 17499 | B176: 2015-08-27 | C176: 54.13 | D176: 4.13 | E176: $34.13 MC
A177: 17500 | B177: 2015-08-27 | C177: 19.43 | D177: 1.48
A178: 17501 | B178: 2015-08-27 | C178: 166.71 | D178: 12.71 | E178: Visa
A179: 17502 | B179: 2015-08-27 | C179: 109.28 | D179: 8.33 | E179: MC | F179: =178.72+34.13+C178+606.46+C179 -> 1095.3 | G179: 1089.98
A180: 17503 | B180: 2015-08-28 | C180: 63 | D180: 4.8
A181: 17504 | B181: 2015-08-28 | C181: 74.71 | D181: 5.69 | E181: Visa
A182: 17505 | B182: 2015-08-28 | C182: 162.38 | D182: 12.38 | E182: Visa ($36.81), bal Store Credit
A183: 17506 | B183: 2015-08-28 | C183: 12.99 | D183: 0.99
A184: 17507 | B184: 2015-08-28 | C184: 21.65 | D184: 1.65 | F184: =+C181+36.81 -> 111.52 | G184: 109.75
A185: 17508 | B185: 2015-08-29 | C185: 396.09 | D185: 30.19 | E185: Visa
A186: 17509 | B186: 2015-08-29 | C186: 34.64 | D186: 2.64 | E186: Visa
A187: 17510 | B187: 2015-08-29 | C187: 282 | E187: Due, Carlos G - Resale MX
A188: 17511 | B188: 2015-08-29 | C188: 9.69 | D188: 0.74
A189: 17512 | B189: 2015-08-29 | C189: 18.33 | D189: 1.4
A190: 17514 | B190: 2015-08-29 | C190: 124.43 | D190: 9.48
A191: 17515 | B191: 2015-08-29 | C191: 10.83 | D191: 0.83
A192: 17516 | B192: 2015-08-29 | C192: 19.49 | D192: 1.49
A193: 17517 | B193: 2015-08-29 | C193: 94 | E193: J.Rangel - resale
A194: 17518 | B194: 2015-08-29 | C194: 93.23
A195: 17519 | B195: 2015-08-29 | C195: 27 | E195: Due, J.Rangel - resale | F195: =+C185+C186-0.48 -> 430.25 | G195: 428.15
A196: 17520 | B196: 2015-08-31 | C196: 37.78 | D196: 2.88 | E196: MC
A197: 17521 | B197: 2015-08-31 | C197: 42 | D197: 3.2
A198: 17522 | B198: 2015-08-31 | C198: 10 | D198: 0.76 | E198: MC
A199: 17523 | B199: 2015-08-31 | C199: 48.71 | D199: 3.71 | E199: MC
A200: 17524 | B200: 2015-08-31 | C200: 208 | E200: Dirty Daves - resale
... 9 more rows

Sheet Jul-15
A1: Invoice | C1: =SUM(C3:C436) -> 25794.60567 | D1: =SUM(D3:D436) -> 1763.355675 | F1: =SUM(F3:F238) -> 13194.44 | H1: =TODAY() -> 2016-02-05
A2: Number | B2: Date | C2: Amount | D2: Tax | E2: Terms
A3: 17090 | B3: 2015-07-01 | C3: 125 | D3: 9.53
A4: 17091 | B4: 2015-07-01 | C4: 144.95 | D4: 11.05 | E4: MC
A5: 17092 | B5: 2015-07-01 | C5: 210 | D5: 16
A6: 17093 | B6: 2015-07-01 | C6: 112.58 | D6: 8.58 | E6: Visa
A7: 17094 | B7: 2015-07-01 | C7: 36.5 | D7: 2.78
A8: 17095 | B8: 2015-07-01 | C8: 33.5 | D8: 2.55 | E8: MC
A9: 17096 | B9: 2015-07-01 | C9: 116.91 | D9: 8.91
A10: 17097 | B10: 2015-07-01 | C10: 139.64 | D10: 10.64 | E10: MC
A11: 17098 | B11: 2015-07-01 | C11: 30 | D11: 2.29
A12: 17099 | B12: 2015-07-01 | C12: 10.83 | D12: 0.83
A13: 17100 | B13: 2015-07-01 | C13: 150.47 | D13: 11.47 | E13: Visa
A14: 17101 | B14: 2015-07-01 | C14: 150.002025 | D14: 11.432025
A15: 17102 | B15: 2015-07-01 | C15: 31.39 | D15: 2.39 | E15: Due
A16: 17103 | B16: 2015-07-01 | C16: 9.69 | D16: 0.74
A17: 17104 | B17: 2015-07-01 | C17: 25 | D17: 1.91 | E17: Visa | F17: =+C4+C6+C8+C10+C13+C17 -> 606.14 | G17: 597.59
A18: 17105 | B18: 2015-07-02 | C18: 196.47 | D18: 14.97 | E18: Visa
A19: 17106 | B19: 2015-07-02 | C19: 88.77 | D19: 6.77 | E19: $37.94 due
A20: 17107 | B20: 2015-07-02 | C20: 54.02 | D20: 4.12 | E20: Discover
A21: 17108 | B21: 2015-07-02 | C21: 43.03 | D21: 3.28 | E21: Visa | F21: =+C18+C20+483.88+C21 -> 777.4 | G21: 764.99
A22: 17109 | B22: 2015-07-03 | C22: 167 | E22: The Car Store - resale
A23: 17110 | B23: 2015-07-03 | C23: 155 | E23: J.Rangel - resale
A24: 17111 | B24: 2015-07-03 | C24: 649.5 | D24: 49.5 | E24: $349.50 due
A25: 17112 | B25: 2015-07-03 | C25: 42.22 | D25: 3.22
A26: 17113 | B26: 2015-07-03 | C26: 212 | D26: 16.16
A27: 17114 | B27: 2015-07-03 | C27: 119.08 | D27: 9.08 | E27: MC
A28: 17115 | B28: 2015-07-03 | C28: 126.65 | D28: 9.65 | E28: $26.65 MC
A29: 17116 | B29: 2015-07-03 | C29: 181.5 | D29: 13.83 | F29: =322.2+C27+149.39+26.65 -> 617.32 | G29: 610.26
A30: 17117 | B30: 2015-07-06 | C30: 62.79 | D30: 4.79 | E30: Visa
A31: 17118 | B31: 2015-07-06 | C31: 18.35 | D31: 1.4
A32: 17119 | B32: 2015-07-06 | C32: 238.1 | D32: 18.15
A33: 17120 | B33: 2015-07-06 | C33: 48 | D33: 3.66
A34: 17121 | B34: 2015-07-06 | C34: 108.2 | D34: 8.25 | E34: MC
A35: 17122 | B35: 2015-07-06 | C35: 54.13 | D35: 4.13 | E35: MC
A36: 17123 | B36: 2015-07-06 | C36: 63.87 | D36: 4.87 | E36: Due
A37: 17124 | B37: 2015-07-06 | C37: 257.64 | D37: 19.64 | E37: MC | F37: =+C34+C30+C35+C37 -> 482.76 | G37: 472.4
A38: 17125 | B38: 2015-07-07 | C38: 123.41 | D38: 9.41 | E38: Due
A39: 17126 | B39: 2015-07-07 | C39: 218.67 | D39: 16.67 | E39: Visa
A40: 17127 | B40: 2015-07-07 | C40: 27.06 | D40: 2.06 | E40: Visa
A41: 17128 | B41: 2015-07-07 | C41: 100.67 | D41: 7.67
A42: 17129 | B42: 2015-07-07 | C42: 172.04 | D42: 13.11 | E42: MC
A43: 17130 | B43: 2015-07-07 | C43: 8.66 | D43: 0.66 | E43: MC
A44: 17131 | B44: 2015-07-07 | C44: 47.63 | D44: 3.63 | E44: Due
A45: 17132 | B45: 2015-07-07 | C45: 221.28 | E45: MC
A46: 17133 | B46: 2015-07-07 | C46: 31.39 | D46: 2.39 | F46: =+C40+218.67+C42+C43+C45 -> 647.71 | G46: 639.97
A47: 17134 | B47: 2015-07-08 | C47: 390 | D47: 29.72
A48: 17135 | B48: 2015-07-08 | C48: 113.66 | D48: 8.66
A49: 17136 | B49: 2015-07-08 | C49: 92.12 | D49: 7.02 | E49: Visa
A50: 17137 | B50: 2015-07-08 | C50: 16.18 | D50: 1.23
A51: 17138 | B51: 2015-07-08 | C51: 50 | D51: 3.82 | E51: Visa | F51: =+C51+C49 -> 142.12 | G51: 140.32
A52: 17139 | B52: 2015-07-09 | C52: 5 | E52: Visa, Border Patrol
A53: 17140 | B53: 2015-07-09 | C53: 75.78 | D53: 5.78 | E53: Visa
A54: 17141 | B54: 2015-07-09 | C54: 25.42 | D54: 1.94 | E54: Visa
A55: 17142 | B55: 2015-07-09 | C55: 142.89 | D55: 10.89 | E55: Visa
A56: 17143 | B56: 2015-07-09 | C56: 31.39 | D56: 2.39 | E56: Visa
A57: 17144 | B57: 2015-07-09 | C57: 17.32 | D57: 1.32 | E57: Due
A58: 17145 | B58: 2015-07-09 | C58: 295 | D58: 22.48
A59: 17146 | B59: 2015-07-09 | C59: 80 | D59: 6.1 | F59: =+C52+C53+C54+C55+C56 -> 280.48 | G59: 277.2
A60: 17147 | B60: 2015-07-10 | C60: 327.02 | D60: 24.92 | E60: Visa
A61: 17148 | B61: 2015-07-10 | C61: 11.6 | E61: Visa, James Ind - resale
A62: 17149 | B62: 2015-07-10 | C62: 5.39 | D62: 0.41
A63: 17150 | B63: 2015-07-10 | C63: 162.38 | D63: 12.38 | E63: Visa
A64: 17151 | B64: 2015-07-10 | C64: 21.65 | D64: 1.65
A65: 17152 | B65: 2015-07-10 | C65: 76.32 | D65: 5.82 | E65: MC
A66: 17153 | B66: 2015-07-10 | C66: 43 | E66: Univ Auto Repair - resale
A67: 17154 | B67: 2015-07-10 | C67: 35.72 | D67: 2.72 | E67: Visa
A68: 17155 | B68: 2015-07-10 | C68: 16.24 | D68: 1.24
A69: 17156 | B69: 2015-07-10 | C69: 30.31 | D69: 2.31 | E69: Visa
A70: 17157 | B70: 2015-07-10 | C70: 8 | E70: Resale
A71: 17158 | B71: 2015-07-10 | C71: 48.66 | D71: 3.71
A72: 17159 | B72: 2015-07-10 | C72: 117.99 | D72: 8.99 | E72: Due
A73: 17160 | B73: 2015-07-10 | C73: 165.62 | D73: 12.62 | E73: Visa | F73: =100+C61+C44+C63+C65+C67+C69+100.37+C73+166.24 -> 896.19 | G73: 887.32
A74: 17161 | B74: 2015-07-11 | C74: 8.66 | D74: 0.66
A75: 17162 | B75: 2015-07-11 | C75: 128.82 | D75: 9.82 | E75: MC
A76: 17163 | B76: 2015-07-11 | C76: 84.44 | D76: 6.44
A77: 17164 | B77: 2015-07-11 | C77: 478 | D77: 36.43 | E77: Due
A78: 17165 | B78: 2015-07-11 | C78: 17.27 | D78: 1.32
A79: 17166 | B79: 2015-07-11 | C79: 10 | D79: 0.76
A80: 17167 | B80: 2015-07-11 | C80: 5 | D80: 0.38
A81: 17168 | B81: 2015-07-11 | C81: 3.25 | D81: 0.25
A82: 17169 | B82: 2015-07-11 | C82: 11 | D82: 0.84
A83: 17170 | B83: 2015-07-11 | C83: 138 | D83: 0 | E83: Chris F - resale, no profit
A84: 17171 | B84: 2015-07-11 | C84: 1.62 | D84: 0.12
A85: 17172 | B85: 2015-07-11 | C85: 64.84 | D85: 4.94 | E85: Visa
A86: 17173 | B86: 2015-07-11 | C86: 10.83 | D86: 0.83 | E86: Due
A87: 17174 | B87: 2015-07-11 | C87: 16.24 | D87: 1.24 | F87: =+C75+77.25 -> 206.07 | G87: =+F87*0.97831 -> 201.6003417 | H87: 269.39
A88: 17175 | B88: 2015-07-13 | C88: 70.58 | D88: 5.38 | E88: Visa
A89: 17176 | B89: 2015-07-13 | C89: 94 | E89: Due, Revolution - resale
A90: 17177 | B90: 2015-07-13 | C90: 407 | D90: 31.02 | E90: $207. due
A91: 17178 | B91: 2015-07-13 | C91: 34.64 | D91: 2.64
A92: 17179 | B92: 2015-07-13 | C92: 106
A93: 17180 | B93: 2015-07-13 | C93: 769.13 | D93: 58.62 | E93: Discover | F93: =+C88+C93 -> 839.71 | G93: 823.11
A94: 17181 | B94: 2015-07-14 | C94: 16.18 | D94: 1.23 | E94: Discover
A95: 17182 | B95: 2015-07-14 | C95: 187.27 | D95: 14.27 | E95: M/C
A96: 17183 | B96: 2015-07-14 | C96: 26 | D96: 1.98
A97: 17184 | B97: 2015-07-14 | C97: 10.83 | D97: 0.83
A98: 17185 | B98: 2015-07-14 | C98: 399.44 | D98: 30.44 | E98: Visa
A99: 17186 | B99: 2015-07-14 | C99: 74.69 | D99: 5.69 | E99: Visa
A100: 17187 | B100: 2015-07-14 | C100: 440.36 | D100: 33.56 | F100: =+C94+C95+C98+C99 -> 677.58 | G100: =+F100*0.97831 -> 662.8832898 | H100: 600.5
A101: 17188 | B101: 2015-07-15 | C101: 145.6 | D101: 11.1
A102: 17189 | B102: 2015-07-15 | C102: 60.62 | D102: 4.62
A103: 17190 | B103: 2015-07-15 | C103: 42.16 | D103: 3.21
A104: 17191 | B104: 2015-07-15 | C104: 0 | D104: 0 | E104: N/a
A105: 17192 | B105: 2015-07-15 | C105: 254.66 | D105: 19.41 | E105: Visa
A106: 17193 | B106: 2015-07-15 | C106: 10.77 | D106: 0.82
A107: 17194 | B107: 2015-07-15 | C107: 99.97 | D107: 7.62 | F107: =+C105 -> 254.66 | G107: 253.47
A108: 17195 | B108: 2015-07-16 | C108: 7.58 | D108: 0.58
A109: 17196 | B109: 2015-07-16 | C109: 253.85 | D109: 19.35 | E109: N/A
A110: 17197 | B110: 2015-07-16 | C110: 10.83 | D110: 0.83 | E110: Visa
A111: 17198 | B111: 2015-07-16 | C111: 43.24 | D111: 3.3
A112: 17199 | B112: 2015-07-16 | C112: 43.7 | D112: 3.33
A113: 17200 | B113: 2015-07-16 | C113: 232.74 | D113: 17.74
A114: 17201 | B114: 2015-07-16 | C114: 15.05 | D114: 1.15 | E114: M/C
A115: 17202 | B115: 2015-07-16 | C115: 37.89 | D115: 2.89 | E115: Visa | F115: =+C110+C114+C115 -> 63.77 | G115: =+F115*0.97831 -> 62.3868287 | H115: 284.39
A116: 17203 | B116: 2015-07-17 | C116: 11.85 | D116: 0.9 | E116: Visa
A117: 17204 | B117: 2015-07-17 | C117: 32.42 | D117: 2.47
A118: 17205 | B118: 2015-07-17 | C118: 21.64 | D118: 1.65
A119: 17206 | B119: 2015-07-17 | C119: 224.62 | D119: 17.12
A120: 17207 | B120: 2015-07-17 | C120: 516.89 | D120: 39.39 | E120: Visa
A121: 17208 | B121: 2015-07-17 | C121: 10 | D121: 0.76
A122: 17209 | B122: 2015-07-17 | C122: 75.78 | D122: 5.78 | E122: Visa
A123: 17210 | B123: 2015-07-17 | C123: 29.23 | D123: 2.23 | E123: Visa
A124: 17211 | B124: 2015-07-17 | E124: Visa ($10.83)
A125: 17212 | B125: 2015-07-17 | C125: 64.84 | D125: 4.94
A126: 17213 | B126: 2015-07-17 | C126: 172.12 | D126: 13.12
A127: 17214 | B127: 2015-07-17 | C127: 113.66 | D127: 8.66 | E127: Visa | F127: =+C116+C120+C122+C123+C124 -> 633.75 | G127: =+F127*0.97831 -> 620.0039625 | H127: 753.74
A128: 17215 | B128: 2015-07-18 | C128: 64.84 | D128: 4.94 | E128: Visa
A129: 17216 | B129: 2015-07-18 | C129: 78
A130: 17217 | B130: 2015-07-18 | C130: 303.1 | D130: 23.1 | E130: Visa
A131: 17218 | B131: 2015-07-18 | C131: 296.06 | D131: 22.56 | E131: Due
A132: 17219 | B132: 2015-07-18 | C132: 12.99 | D132: 0.99
A133: 17220 | B133: 2015-07-18 | C133: 41.14 | D133: 3.14 | E133: Visa
A134: 17221 | B134: 2015-07-18 | C134: 200 | E134: Visa
A135: 17222 | B135: 2015-07-18 | C135: 33.56 | D135: 2.56 | E135: MC
A136: 17223 | B136: 2015-07-18 | C136: 42 | D136: 3.2 | F136: =+C128+C130+C133+C134+C135 -> 642.64 | G136: 631.14
A137: 17224 | B137: 2015-07-20 | C137: 130 | D137: 9.91 | E137: MC
A138: 17225 | B138: 2015-07-20 | C138: 165.08 | D138: 12.58
A139: 17226 | B139: 2015-07-20 | C139: 15.16 | D139: 1.16 | E139: MC
A140: 17227 | B140: 2015-07-20 | C140: 44.5 | E140: MC, Revolution - resale
A141: 17228 | B141: 2015-07-20 | C141: 29.23 | D141: 2.23
A142: 17229 | B142: 2015-07-20 | C142: -75.78 | D142: -5.78 | E142: Visa | F142: =+C137+C139+C142 -> 69.38 | G142: 66.88
A143: 17230 | B143: 2015-07-21 | C143: 75.78 | D143: 5.78 | E143: MC
A144: 17231 | B144: 2015-07-21 | C144: 8.66 | D144: 0.66
A145: 17232 | B145: 2015-07-21 | C145: 1105 | D145: 84.22
A146: 17233 | B146: 2015-07-21 | C146: 0 | D146: 0 | E146: Cust mis-understanding
A147: 17234 | B147: 2015-07-21 | C147: 43.19 | D147: 3.29 | F147: =95.5+C140+C143+137.27 -> 353.05 | G147: 351.21
A148: 17235 | B148: 2015-07-22 | C148: 29.17 | D148: 2.22
A149: 17236 | B149: 2015-07-22 | C149: 31.64 | D149: 2.41
A150: 17237 | B150: 2015-07-22 | C150: 244 | E150: Due, J.Rangel - resale
A151: 17238 | B151: 2015-07-22 | C151: 56.83 | D151: 4.33 | E151: Visa
A152: 17239 | B152: 2015-07-22 | C152: 32.48 | D152: 2.48 | E152: Visa
A153: 17240 | B153: 2015-07-22 | C153: 363.18 | D153: 27.68 | E153: Visa
A154: 17241 | B154: 2015-07-22 | C154: 26.3 | D154: 2 | E154: Visa
A155: 17242 | B155: 2015-07-22 | C155: 136.38 | D155: 10.39 | E155: Due, Pegs (Randy) | F155: =+C151+C152+C153+C154 -> 478.79 | G155: 475.53
A156: 17243 | B156: 2015-07-23 | C156: 7.74 | D156: 0.59 | E156: Visa
A157: 17244 | B157: 2015-07-23 | C157: 85.52 | D157: 6.52
A158: 17245 | B158: 2015-07-23 | C158: 44.91 | D158: 3.42 | E158: Visa
A159: 17246 | B159: 2015-07-23 | C159: 487.13 | D159: 37.13
A160: 17247 | B160: 2015-07-23 | C160: 0 | E160: Randy - $75. Scooter sale
A161: 17248 | B161: 2015-07-23 | C161: 38.92 | D161: 2.97 | E161: Visa
A162: 17249 | B162: 2015-07-23 | C162: 16.66 | D162: 0.66
A163: 17250 | B163: 2015-07-23 | C163: 140 | E163: J.Rangel - resale
A164: 17251 | B164: 2015-07-23 | C164: 128.82 | D164: 9.82
A165: 17252 | B165: 2015-07-23 | C165: 204.59 | D165: 15.59 | E165: $139.59 Visa | F165: =+C158+C161+139.59 -> 223.42 | G165: 221.1
A166: 17253 | B166: 2015-07-24 | C166: 16.18 | D166: 1.23 | E166: MC
A167: 17254 | B167: 2015-07-24 | C167: 90.03 | D167: 6.86
A168: 17255 | B168: 2015-07-24 | C168: 21.65 | D168: 1.65 | E168: Visa
A169: 17256 | B169: 2015-07-24 | C169: 46 | D169: 3.51
A170: 17257 | B170: 2015-07-24 | C170: 16.18 | D170: 1.23 | E170: Visa
A171: 17258 | B171: 2015-07-24 | C171: 81.19 | D171: 6.19 | E171: Visa
A172: 17259 | B172: 2015-07-24 | C172: 15.1 | D172: 1.15 | E172: MC
A173: 17260 | B173: 2015-07-24 | C173: 327.89 | D173: 24.99 | E173: Visa
A174: 17261 | B174: 2015-07-24 | C174: 25.93 | D174: 1.98
A175: 17262 | B175: 2015-07-24 | C175: 50 | D175: 3.81 | E175: Visa
A176: 17263 | B176: 2015-07-24 | C176: 83.89 | D176: 6.39
A177: 17264 | B177: 2015-07-24 | C177: 192.69 | D177: 14.69
A178: 17265 | B178: 2015-07-24 | C178: 5 | D178: 0.38
A179: 17266 | B179: 2015-07-24 | C179: 21.6 | D179: 1.65
A180: 17267 | B180: 2015-07-24 | C180: 52 | E180: Due, Carlos G - resale
A181: 17268 | B181: 2015-07-24 | C181: 20.57 | D181: 1.57
A182: 17269 | B182: 2015-07-24 | C182: 231.91 | D182: 16.91 | E182: Due
A183: 17270 | B183: 2015-07-24 | C183: 78.86 | D183: 6.01 | E183: Due
A184: 17271 | B184: 2015-07-24 | C184: 5.62 | D184: 0.43 | E184: Due, Randy | F184: =+C166+C156+C168+C170+C172+296.06+C173+C175+C171 -> 831.99 | G184: 825.52
A185: 17272 | B185: 2015-07-25 | C185: 50.88 | D185: 3.88
A186: 17273 | B186: 2015-07-25 | C186: 31.34 | D186: 2.39 | E186: Visa
A187: 17274 | B187: 2015-07-25 | C187: 2.71 | E187: ESG - Resale
A188: 17275 | B188: 2015-07-25 | C188: 9.69 | D188: 0.74
A189: 17276 | B189: 2015-07-25 | C189: 122 | D189: 9.3
A190: 17277 | B190: 2015-07-25 | C190: 46.49 | D190: 3.54 | E190: MC
A191: 17278 | B191: 2015-07-25 | C191: 429.75 | D191: 32.75 | E191: $200 dep Visa
A192: 17279 | B192: 2015-07-25 | C192: 5.36 | D192: 0.41 | E192: Visa
A193: 17280 | B193: 2015-07-25 | C193: 19.49 | D193: 1.49 | E193: MC | F193: =+C186+C190+200+C192+C193+C182 -> 534.59 | G193: 524.98
A194: 17281 | B194: 2015-07-27 | C194: 17.21 | D194: 1.31
A195: 17282 | B195: 2015-07-27 | C195: 16.24 | D195: 1.24 | E195: Visa
A196: 17283 | B196: 2015-07-27 | C196: 12.99 | D196: 0.99
A197: 17284 | B197: 2015-07-27 | C197: 348.5 | E197: Carlos G - Resale MX
A198: 17285 | B198: 2015-07-27 | C198: 468.72 | D198: 35.72 | E198: Visa
A199: 17286 | B199: 2015-07-27 | C199: 103.92 | D199: 7.92 | E199: Visa
A200: 17287 | B200: 2015-07-27 | C200: 128 | E200: J.Rangel - resale
... 38 more rows

Sheet Jun-15
A1: Invoice | C1: =SUM(C3:C491) -> 24655.89683 | D1: =SUM(D294:D491) -> 0 | H1: =TODAY() -> 2016-02-05
A2: Number | B2: Date | C2: Amount | D2: Tax | E2: Terms
A3: 16799 | B3: 2015-06-01 | C3: 30 | D3: 2.29 | E3: Visa
A4: 16800 | B4: 2015-06-01 | C4: 11.8 | D4: 0.9
A5: 16801 | B5: 2015-06-01 | C5: 20.51 | D5: 1.56 | E5: Visa
A6: 16802 | B6: 2015-06-01 | C6: -81.13 | D6: -6.18 | E6: Visa
A7: 16803 | B7: 2015-06-01 | C7: 111.5 | D7: 8.5 | E7: Visa
A8: 16804 | B8: 2015-06-01 | C8: 97.43 | D8: 7.43 | E8: Visa
A9: 16805 | B9: 2015-06-01 | C9: 10.5 | E9: Done Rite - resale
A10: 16806 | B10: 2015-06-01 | C10: 33.56 | D10: 2.56 | E10: Visa | F10: =+C3+C5+C6+C7+C10 -> 114.44 | G10: 112.31
A11: 16807 | B11: 2015-06-02 | C11: 25.98 | D11: 1.98
A12: 16808 | B12: 2015-06-02 | C12: 15.05 | D12: 1.15
A13: 16809 | B13: 2015-06-02 | C13: 31.61 | D13: 2.41 | E13: MC
A14: 16810 | B14: 2015-06-02 | C14: 26.47 | D14: 2.02
A15: 16811 | B15: 2015-06-02 | C15: 250.501325 | D15: 19.091325 | E15: MC
A16: 16812 | B16: 2015-06-02 | C16: 184 | D16: 14.02
A17: 16813 | B17: 2015-06-02 | C17: 17.32 | D17: 1.32 | E17: MC
A18: 16814 | B18: 2015-06-02 | C18: 5.39 | D18: 0.41
A19: 16815 | B19: 2015-06-02 | C19: 483.75 | D19: 36.87 | E19: MC
A20: 16816 | B20: 2015-06-02 | C20: 81.19 | D20: 6.19 | E20: MC
A21: 16817 | B21: 2015-06-02 | C21: 210 | E21: Due, Done Rite - resale
A22: 16818 | B22: 2015-06-02 | C22: 62.79 | E22: MC
A23: 16819 | B23: 2015-06-02 | C23: 7.31
A24: 16820 | B24: 2015-06-02 | C24: 399.44 | D24: 30.44 | E24: Visa | F24: =+C13+C8+C15+C17+C22+C20+C24+C19 -> 1424.031325 | G24: 1402.17
A25: 16821 | B25: 2015-06-03 | C25: 19.7 | D25: 1.5
A26: 16822 | B26: 2015-06-03 | C26: 60 | D26: 4.58
A27: 16823 | B27: 2015-06-03 | C27: 5 | D27: 0.38
A28: 16824 | B28: 2015-06-03 | C28: 85.52 | D28: 6.52 | E28: Visa
A29: 16825 | B29: 2015-06-03 | C29: 2.7 | D29: 0.21
A30: 16826 | B30: 2015-06-03 | C30: 27.5
A31: 16827 | B31: 2015-06-03 | C31: 21.6 | D31: 1.65
A32: 16828 | B32: 2015-06-03 | C32: 143 | D32: 10.9
A33: 16829 | B33: 2015-06-03 | C33: 128.82 | D33: 9.82 | E33: Visa
A34: 16830 | B34: 2015-06-03 | C34: 47.63 | D34: 3.63
A35: 16831 | B35: 2015-06-03 | C35: 9.74 | D35: 0.74
A36: 16832 | B36: 2015-06-03 | C36: 26.85 | D36: 2.05 | E36: MC
A37: 16833 | B37: 2015-06-03 | C37: 50 | D37: 3.81
A38: 16834 | B38: 2015-06-03 | C38: 11 | D38: 0.84
A39: 16835 | B39: 2015-06-03 | C39: -31 | E39: Due, Done Rite - resale
A40: 16836 | B40: 2015-06-03 | C40: 22.73 | D40: 1.73
A41: 16837 | B41: 2015-06-03 | C41: 9.74 | D41: 0.74
A42: 16838 | B42: 2015-06-03 | C42: 63.87 | D42: 4.87 | E42: Visa, Addl to Inv 16746
A43: 16839 | B43: 2015-06-03 | C43: 356.67 | D43: 57.67 | E43: Due, Apes
A44: 16840 | B44: 2015-06-03 | C44: 19.05 | D44: 1.45
A45: 16841 | B45: 2015-06-03 | C45: 10.72 | D45: 0.82
A46: 16842 | B46: 2015-06-03 | C46: 16.24 | D46: 1.24 | E46: MC | F46: =+C33+C28+C36+160+C46 -> 417.43 | G46: 411.06
A47: 16843 | B47: 2015-06-04 | C47: 32.48 | D47: 2.48 | E47: Discover
A48: 16844 | B48: 2015-06-04 | C48: 21.6 | D48: 1.65
A49: 16845 | B49: 2015-06-04 | C49: 32.48 | D49: 2.48
A50: 16846 | B50: 2015-06-04 | C50: 97.3 | D50: 7.42 | E50: Visa
A51: 16847 | B51: 2015-06-04 | C51: 40 | D51: 3.05 | E51: Visa
A52: 16848 | B52: 2015-06-04 | C52: 12.94 | D52: 0.99
A53: 16849 | B53: 2015-06-04 | C53: 54.5 | E53: Due, J Rangel - resale
A54: 16850 | B54: 2015-06-04 | C54: 82.27 | D54: 6.27 | E54: Visa | F54: =+C47+C50+C54 -> 212.05 | G54: 208.51
A55: 16851 | B55: 2015-06-05 | C55: 101.76 | D55: 7.76 | E55: Visa
A56: 16852 | B56: 2015-06-05 | C56: 119.08 | D56: 9.08
A57: 16853 | B57: 2015-06-05 | C57: 73.07 | D57: 5.57 | E57: Visa
A58: 16854 | B58: 2015-06-05 | C58: 60.62 | D58: 4.62 | E58: Visa
A59: 16855 | B59: 2015-06-05 | C59: 260 | D59: 19.82
A60: 16856 | B60: 2015-06-05 | C60: 48.71 | D60: 3.71
A61: 16857 | B61: 2015-06-05 | C61: 164.54 | D61: 12.54 | F61: =+C55+C57+C58 -> 235.45 | G61: 232.64
A62: 16858 | B62: 2015-06-06 | C62: 43.3 | D62: 3.3
A63: 16859 | B63: 2015-06-06 | C63: 246.27 | D63: 18.77 | E63: $100 cash, $146.27 Visa
A64: 16860 | B64: 2015-06-06 | C64: 105 | E64: J.Rangel - resale
A65: 16861 | B65: 2015-06-06 | C65: 130 | E65: J.Rangel - resale
A66: 16862 | B66: 2015-06-06 | C66: 108.99 | D66: 7.01 | E66: Visa
A67: 16863 | B67: 2015-06-06 | C67: 48.71 | D67: 3.71 | E67: Due, Hondamatic
A68: 16864 | B68: 2015-06-06 | C68: 8 | D68: 0.61
A69: 16865 | B69: 2015-06-06 | C69: 105 | D69: 8 | E69: Visa
A70: 16866 | B70: 2015-06-06 | C70: 265 | D70: 20.2
A71: 16867 | B71: 2015-06-06 | C71: 9.69 | D71: 0.74 | F71: =146.27+C69 -> 251.27 | G71: 248.8
A72: 16868 | B72: 2015-06-08 | C72: 12.99 | D72: 0.99 | E72: Visa
A73: 16869 | B73: 2015-06-08 | C73: 320.96 | D73: 24.46 | E73: Visa
A74: 16870 | B74: 2015-06-08 | C74: 125 | D74: 9.53
A75: 16871 | B75: 2015-06-08 | C75: 27 | D75: 2.06
A76: 16872 | B76: 2015-06-08 | C76: 181.86 | D76: 13.86 | E76: Visa
A77: 16873 | B77: 2015-06-08 | C77: 25.98 | D77: 1.98
A78: 16874 | B78: 2015-06-08 | C78: 0 | D78: 0 | E78: Pd to Randy
A79: 16875 | B79: 2015-06-08 | C79: 96.34 | D79: 7.34 | E79: Visa
A80: 16876 | B80: 2015-06-08 | C80: 16.18 | D80: 1.23 | F80: =+C72+C73+C76+C79 -> 612.15 | G80: 604.4
A81: 16877 | B81: 2015-06-09 | C81: 153.17 | D81: 11.67 | E81: Visa
A82: 16878 | B82: 2015-06-09 | C82: 22 | E82: The Car Store - resale
A83: 16879 | B83: 2015-06-09 | C83: 32.42 | D83: 2.47
A84: 16880 | B84: 2015-06-09 | C84: 10.83 | D84: 0.83 | E84: Visa
A85: 16881 | B85: 2015-06-09 | C85: 32.48 | D85: 2.48 | E85: Visa
A86: 16882 | B86: 2015-06-09 | C86: 543.31 | D86: 41.41
A87: 16883 | B87: 2015-06-09 | C87: 283.62 | D87: 21.62
A88: 16884 | B88: 2015-06-09 | C88: 126.65 | D88: 9.65 | E88: Visa
A89: 16885 | B89: 2015-06-09 | C89: 30.31 | D89: 2.31 | E89: Visa
A90: 16886 | B90: 2015-06-09 | C90: 64.84 | D90: 4.94 | E90: Visa
A91: 16887 | B91: 2015-06-09 | C91: 137 | D91: 10.44
A92: 16888 | B92: 2015-06-09 | C92: 12 | D92: 0.91
A93: 16889 | B93: 2015-06-09 | C93: 0 | E93: Detail - Bobbi | F93: =+C81+C84+C85+C88+C89+C90 -> 418.28 | G93: 411.8
A94: 16890 | B94: 2015-06-10 | C94: 13.53 | D94: 1.03
A95: 16891 | B95: 2015-06-10 | C95: 125 | D95: 9.53 | E95: Visa
A96: 16892 | B96: 2015-06-10 | C96: 5 | D96: 0.38 | E96: Visa
A97: 16893 | B97: 2015-06-10 | C97: 120 | D97: 9.15 | E97: Visa
A98: 16894 | B98: 2015-06-10 | C98: 69.23 | D98: 5.28
A99: 16895 | B99: 2015-06-10 | C99: 34.64 | D99: 2.64
A100: 16896 | B100: 2015-06-10 | C100: 5 | D100: 0.38
A101: 16897 | B101: 2015-06-10 | C101: 87.68 | D101: 6.68 | E101: Due
A102: 16898 | B102: 2015-06-10 | C102: 8.66 | D102: 0.66 | E102: Visa
A103: 16899 | B103: 2015-06-10 | C103: 42 | D103: 3.2
A104: 16900 | B104: 2015-06-10 | C104: 10.78 | D104: 0.82
A105: 16901 | B105: 2015-06-10 | C105: 20 | D105: 1.52 | F105: =+C95+C96+C97+C102+C66+C51 -> 407.65 | G105: 402.49
A106: 16902 | B106: 2015-06-11 | C106: 21.65 | D106: 1.65
A107: 16903 | B107: 2015-06-11 | C107: 21.6 | D107: 1.65
A108: 16904 | B108: 2015-06-11 | C108: 97.43 | D108: 7.43 | E108: Due
A109: 16905 | B109: 2015-06-11 | C109: 8.66 | D109: 0.66
A110: 16906 | B110: 2015-06-11 | C110: 88 | D110: 6.71 | E110: Visa
A111: 16907 | B111: 2015-06-11 | C111: 20.57 | D111: 1.57 | E111: Visa
A112: 16908 | B112: 2015-06-11 | C112: 17.32 | D112: 1.32
A113: 16909 | B113: 2015-06-11 | C113: 140 | E113: Due, Carlos G
A114: 16910 | B114: 2015-06-11 | C114: 45 | D114: 3.43
A115: 16911 | B115: 2015-06-11 | C115: 32.48 | D115: 2.48
A116: 16912 | B116: 2015-06-11 | C116: 168 | D116: 12.8 | E116: MC | F116: =+C110+C111+C116 -> 276.57 | G116: 271.47
A117: 16913 | B117: 2015-06-12 | C117: 5.41 | D117: 0.41
A118: 16914 | B118: 2015-06-12 | C118: 54.13 | D118: 4.13
A119: 16915 | B119: 2015-06-12 | C119: 83.35 | D119: 6.35 | E119: Due
A120: 16916 | B120: 2015-06-12 | C120: 1.62 | D120: 0.12
A121: 16917 | B121: 2015-06-12 | C121: 9.69 | D121: 0.74
A122: 16918 | B122: 2015-06-12 | C122: 189.98 | D122: 14.48 | E122: Visa
A123: 16919 | B123: 2015-06-12 | C123: 12.99 | D123: 0.99
A124: 16920 | B124: 2015-06-12 | C124: 75.78 | D124: 5.78 | E124: Check
A125: 16921 | B125: 2015-06-12 | C125: 453.57 | D125: 34.57 | E125: MC
A126: 16922 | B126: 2015-06-12 | C126: 213.25 | D126: 16.25 | E126: Due
A127: 16923 | B127: 2015-06-12 | C127: 40.11 | D127: 3.06 | E127: Visa
A128: 16924 | B128: 2015-06-12 | C128: 16.18 | D128: 1.23 | E128: Visa
A129: 16925 | B129: 2015-06-12 | C129: 53.04 | D129: 4.04 | F129: =+C122+C125+C127+C128 -> 699.84 | G129: 695.95
A130: 16926 | B130: 2015-06-13 | C130: 59 | E130: Due, Carlos G
A131: 16927 | B131: 2015-06-13 | C131: 12.99 | D131: 0.99
A132: 16928 | B132: 2015-06-13 | C132: 194.8 | D132: 14.85
A133: 16929 | B133: 2015-06-13 | C133: 25.98 | D133: 1.98 | E133: Visa
A134: 16930 | B134: 2015-06-13 | C134: 8.66 | D134: 0.66
A135: 16931 | B135: 2015-06-13 | C135: 85.52 | D135: 6.52 | E135: Visa | F135: =213.25+C133+C135+100 -> 424.75 | G135: 420.03
A136: 16932 | B136: 2015-06-15 | C136: 347.48 | D136: 26.48 | E136: Due, Chevo
A137: 16933 | B137: 2015-06-15 | C137: 41.14 | D137: 3.14 | E137: Visa
A138: 16934 | B138: 2015-06-15 | C138: 5.39 | D138: 0.41 | E138: Visa
A139: 16935 | B139: 2015-06-15 | C139: 10.78 | D139: 0.82
A140: 16936 | B140: 2015-06-15 | C140: 6.44 | D140: 0.49
A141: 16937 | B141: 2015-06-15 | C141: 86.6 | D141: 6.6
A142: 16938 | B142: 2015-06-15 | C142: 8.61 | D142: 0.66
A143: 16939 | B143: 2015-06-15 | C143: 25.87 | D143: 1.97
A144: 16940 | B144: 2015-06-15 | C144: 89.85 | D144: 6.85 | E144: Discover
A145: 16941 | B145: 2015-06-15 | C145: 213.25 | D145: 16.25
A146: 16942 | B146: 2015-06-15 | C146: 67.12 | D146: 5.12 | E146: Visa
A147: 16943 | B147: 2015-06-15 | C147: 162.38 | D147: 12.38
A148: 16944 | B148: 2015-06-15 | C148: 20.78 | D148: 1.58 | E148: Visa
A149: 16945 | B149: 2015-06-15 | C149: 112.58 | D149: 8.58 | E149: Due | F149: =+C137+C138+C144+C148 -> 157.16 | G149: 153.97
A150: 16946 | B150: 2015-06-16 | C150: 3.25 | D150: 0.25
A151: 16947 | B151: 2015-06-16 | C151: 166.71 | D151: 12.71 | E151: Discover
A152: 16948 | B152: 2015-06-16 | C152: 85.52 | D152: 6.52 | E152: Visa
A153: 16949 | B153: 2015-06-16 | C153: 77 | D153: 5.87
A154: 16950 | B154: 2015-06-16 | C154: 108.25 | D154: 8.25 | E154: Visa
A155: 16951 | B155: 2015-06-16 | C155: 150 | E155: Deposit only
A156: 16952 | B156: 2015-06-16 | C156: 27.06 | D156: 2.06 | E156: Visa
A157: 16953 | B157: 2015-06-16 | C157: -49.78 | E157: J. Rangel - resale
A158: 16954 | B158: 2015-06-16 | C158: 119.08 | D158: 9.08 | E158: MC
A159: 16955 | B159: 2015-06-16 | C159: 36.75 | D159: 2.8
A160: 16956 | B160: 2015-06-16 | C160: -120 | D160: -9.15 | E160: Visa
A161: 16957 | B161: 2015-06-16 | C161: 7.2 | E161: J. Rangel - resale
A162: 16958 | B162: 2015-06-16 | C162: 345.32 | D162: 26.32 | E162: MC | F162: =112.58+C151+C152+C154+C156+C158+C160+C162 -> 844.52 | G162: 830.17
A163: 16959 | B163: 2015-06-17 | C163: 48.71 | D163: 3.71 | E163: Visa
A164: 16960 | B164: 2015-06-17 | E164: N/A, Info only
A165: 16961 | B165: 2015-06-17 | C165: 105.9984 | D165: 8.0784 | E165: Cln Up
A166: 16962 | B166: 2015-06-17 | C166: -4.33 | D166: -0.33 | E166: Cash
A167: 16963 | B167: 2015-06-17 | C167: 258.71 | D167: 19.72 | E167: M/C
A168: 16964 | B168: 2015-06-17 | C168: 37.83 | D168: 2.88
A169: 16965 | B169: 2015-06-17 | C169: -10.83 | D169: -0.83
A170: 16966 | B170: 2015-06-17 | C170: 5 | D170: 0.38
A171: 16967 | B171: 2015-06-17 | C171: 2.7 | D171: 0.21
A172: 16968 | B172: 2015-06-17 | C172: 53.04 | D172: 4.04 | E172: Due | F172: =+C167+C163 -> 307.42 | G172: 301.9
A173: 16969 | B173: 2015-06-18 | C173: 250.06 | D173: 19.06 | E173: Due
A174: 16970 | B174: 2015-06-18 | C174: 109 | D174: 8.31
A175: 16971 | B175: 2015-06-18 | C175: 160.5 | D175: 12.23
A176: 16972 | B176: 2015-06-18 | C176: 77 | D176: 5.87 | E176: Visa
A177: 16973 | B177: 2015-06-18 | C177: 109.49 | D177: 8.34
A178: 16974 | B178: 2015-06-18 | C178: 42.22 | D178: 3.22
A179: 16975 | B179: 2015-06-18 | C179: 20.46 | D179: 1.56
A180: 16976 | B180: 2015-06-18 | C180: 21.43 | D180: 1.63
A181: 16977 | B181: 2015-06-18 | C181: 81.19 | D181: 6.19 | E181: MC, $31.19 due
A182: 16978 | B182: 2015-06-18 | C182: 23.65 | D182: 1.8 | E182: Visa
A183: 16979 | B183: 2015-06-18 | C183: 21.65 | D183: 1.65
A184: 16980 | B184: 2015-06-18 | C184: 140 | E184: Pueblo - resale
A185: 16981 | B185: 2015-06-18 | C185: 279.83 | D185: 21.33 | E185: MC
A186: 16982 | B186: 2015-06-18 | C186: 10 | D186: 0.76
A187: 16983 | B187: 2015-06-18 | C187: 58.46 | D187: 4.46
A188: 16984 | B188: 2015-06-18 | C188: 354 | D188: 26.98
A189: 16985 | B189: 2015-06-18 | C189: 74 | E189: Resale - Mexico | F189: =50+C182+C185+60.5 -> 413.98 | G189: 407.54
A190: 16986 | B190: 2015-06-19 | C190: 74.69 | D190: 5.69
A191: 16987 | B191: 2015-06-19 | C191: 265 | D191: 20.2
A192: 16988 | B192: 2015-06-19 | C192: 10.8 | D192: 0.82 | E192: Visa
A193: 16989 | B193: 2015-06-19 | C193: 10.83 | D193: 0.83 | E193: Visa
A194: 16990 | B194: 2015-06-19 | C194: 30.05 | D194: 1.15
A195: 16991 | B195: 2015-06-19 | C195: 104 | D195: 7.93 | E195: Discover
A196: 16992 | B196: 2015-06-19 | C196: 27.06 | D196: 2.06 | E196: Visa
A197: 16993 | B197: 2015-06-19 | C197: 171.04 | D197: 13.04 | E197: Visa
A198: 16994 | B198: 2015-06-19 | C198: 208.92 | D198: 15.92 | E198: Visa
A199: 16995 | B199: 2015-06-19 | C199: 54.02 | D199: 4.12 | E199: Visa
A200: 16996 | B200: 2015-06-19 | C200: 42.22 | D200: 3.22 | E200: Due | F200: =+C192+C193+C195+C196+C197+C176+C199-22.89 -> 431.86 | G200: 425.23
... 93 more rows

Sheet May-15
A1: Invoice | C1: =SUM(C3:C472) -> 32227.1164 | D1: =SUM(D275:D472) -> 0 | H1: =TODAY() -> 2016-02-05
A2: Number | B2: Date | C2: Amount | D2: Tax | E2: Terms
A3: 16528 | B3: 2015-05-01 | C3: 24.9 | D3: 1.9 | E3: MC
A4: 16529 | B4: 2015-05-01 | C4: 112.58 | D4: 8.58 | E4: Visa
A5: 16530 | B5: 2015-05-01 | C5: 45.41 | D5: 3.46 | E5: MC
A6: 16531 | B6: 2015-05-01 | C6: 22 | D6: 1.68 | E6: Visa
A7: 16532 | B7: 2015-05-01 | C7: -125.57 | D7: -9.57 | E7: Due
A8: 16533 | B8: 2015-05-01 | C8: 48.71 | D8: 3.71 | E8: Visa
A9: 16534 | B9: 2015-05-01 | C9: 114.47 | D9: 8.72
A10: 16535 | B10: 2015-05-01 | C10: 25.68 | D10: 1.96
A11: 16536 | B11: 2015-05-01 | C11: 6.93 | E11: Visa
A12: 16537 | B12: 2015-05-01 | C12: 24.84 | D12: 1.89 | E12: MC
A13: 16538 | B13: 2015-05-01 | C13: 145 | E13: J.Rangel - resale
A14: 16539 | B14: 2015-05-01 | C14: 337.74 | D14: 25.74 | E14: CC
A15: 16540 | B15: 2015-05-01 | C15: 156.96 | D15: 11.96
A16: 16541 | B16: 2015-05-01 | C16: 18.5 | E16: J.Rangel - resale | F16: =+C3+C4+C5+C6+C8+C11+C12+237.74+28 -> 551.11 | G16: 545.47
A17: 16542 | B17: 2015-05-02 | C17: 9.74 | D17: 0.74
A18: 16543 | B18: 2015-05-02 | C18: 11 | D18: 0.84
A19: 16544 | B19: 2015-05-02 | C19: 47.42 | D19: 3.61 | E19: Visa
A20: 16545 | B20: 2015-05-02 | C20: 329.59 | D20: 25.12 | E20: Visa
A21: 16546 | B21: 2015-05-02 | C21: 10.83 | D21: 0.83
A22: 16547 | B22: 2015-05-02 | C22: 27.06 | D22: 2.06
A23: 16548 | B23: 2015-05-02 | C23: 21.65 | D23: 1.65 | E23: Visa
A24: 16549 | B24: 2015-05-02 | C24: 111.39 | D24: 8.49 | E24: MC
A25: 16550 | B25: 2015-05-02 | C25: 97.43 | D25: 7.43 | E25: Discover
A26: 16551 | B26: 2015-05-02 | C26: 286.86 | D26: 21.86
A27: 16552 | B27: 2015-05-02 | C27: 41.14 | D27: 3.14 | E27: Visa
A28: 16553 | B28: 2015-05-02 | C28: 23.82 | D28: 1.82 | E28: Visa | F28: =93.48+72.42+C20+C23+C24+C25+C27+C28 -> 790.92 | G28: 783.04
A29: 16554 | B29: 2015-05-04 | C29: 280.37 | D29: 21.37 | E29: Discover
A30: 16555 | B30: 2015-05-04 | C30: 92.01 | D30: 7.01 | E30: Visa
A31: 16556 | B31: 2015-05-04 | C31: 97.37 | D31: 7.42
A32: 16557 | B32: 2015-05-04 | C32: 73.61 | D32: 5.61 | E32: Due
A33: 16558 | B33: 2015-05-04 | C33: 56 | D33: 4.27
A34: 16559 | B34: 2015-05-04 | C34: 87.68 | D34: 6.68 | E34: $37.68 due, Ray
A35: 16560 | B35: 2015-05-04 | C35: 199.18 | D35: 15.18
A36: 16561 | B36: 2015-05-04 | C36: 13 | D36: 0.99
A37: 16562 | B37: 2015-05-04 | C37: 135 | D37: 10.29 | F37: =+C29+48.71+C30+67.37 -> 488.46 | G37: 480.37
A38: 16563 | B38: 2015-05-05 | C38: 57 | E38: Visa, Border Patrol
A39: 16564 | B39: 2015-05-05 | C39: 101.76 | D39: 7.76
A40: 16565 | B40: 2015-05-05 | C40: 86.6 | D40: 6.6 | E40: Visa
A41: 16566 | B41: 2015-05-05 | C41: 43.19 | D41: 3.29
A42: 16567 | B42: 2015-05-05 | C42: 9.34 | D42: 0.71 | E42: Visa
A43: 16568 | B43: 2015-05-05 | C43: 35 | D43: 2.67
A44: 16569 | B44: 2015-05-05 | C44: 129.9 | D44: 9.9
A45: 16570 | B45: 2015-05-05 | C45: 108.25 | D45: 8.25 | E45: Mike - V-Star 650
A46: 16571 | B46: 2015-05-05 | C46: 90 | E46: Dirty Daves - resale
A47: 16572 | B47: 2015-05-05 | C47: 5.36 | D47: 0.41
A48: 16573 | B48: 2015-05-05 | C48: 189.98 | D48: 14.48 | E48: $89.98 due
A49: 16574 | B49: 2015-05-05 | C49: 98 | D49: 7.47
A50: 16575 | B50: 2015-05-05 | C50: 572.1 | D50: 43.6 | E50: Visa (in Sys as $609.99)
A51: 16576 | B51: 2015-05-05 | C51: 0 | D51: 0 | E51: Addl to Inv 16575
A52: 16577 | B52: 2015-05-05 | C52: 40.59 | D52: 3.09
A53: 16578 | B53: 2015-05-05 | C53: 0 | D53: 0 | E53: Due, Big Jon
A54: 16579 | B54: 2015-05-05 | C54: 41.76 | E54: J.Rangel - resale
A55: 16580 | B55: 2015-05-05 | C55: 8 | D55: 0.61 | F55: =360+C38+C40+C42 -> 512.94 | G55: 502.91
A56: 16581 | B56: 2015-05-06 | C56: 21.58 | E56: J.Rangel - resale
A57: 16582 | B57: 2015-05-06 | C57: 289.75 | D57: 22.08 | E57: Randy, $189.75+ due
A58: 16583 | B58: 2015-05-06 | C58: 207 | D58: 15.78 | E58: Visa
A59: 16584 | B59: 2015-05-06 | C59: 17.04 | E59: ESG Kustoms - resale
A60: 16585 | B60: 2015-05-06 | C60: 105 | D60: 8
A61: 16586 | B61: 2015-05-06 | C61: 331.79 | D61: 25.29 | E61: Visa
A62: 16587 | B62: 2015-05-06 | C62: -23.82 | D62: -1.82 | E62: Visa
A63: 16588 | B63: 2015-05-06 | C63: 16.18 | D63: 1.23 | E63: MC
A64: 16589 | B64: 2015-05-06 | C64: 56 | D64: 4.27
A65: 16590 | B65: 2015-05-06 | C65: 40 | D65: 3.3 | E65: Visa | F65: =609.99+C58+C61+C62+C63+C65 -> 1181.14 | G65: 1159.54
A66: 16591 | B66: 2015-05-07 | C66: 187.27 | D66: 14.27 | E66: MC
A67: 16592 | B67: 2015-05-07 | C67: 56.29 | D67: 4.29 | E67: MC
A68: 16593 | B68: 2015-05-07 | C68: 9.69 | D68: 0.74
A69: 16594 | B69: 2015-05-07 | C69: 4.33 | D69: 0.33 | E69: Due
A70: 16595 | B70: 2015-05-07 | C70: 365.72 | D70: 27.87 | E70: MC, D. Young
A71: 16596 | B71: 2015-05-07 | C71: 81.19 | D71: 6.19
A72: 16597 | B72: 2015-05-07 | C72: 331.25 | D72: 25.25 | E72: Visa
A73: 16598 | B73: 2015-05-07 | C73: 53 | D73: 4.04
A74: 16599 | B74: 2015-05-07 | C74: 3.5 | E74: ESG Kustoms - resale
A75: 16600 | B75: 2015-05-07 | C75: 171 | D75: 13.03 | E75: Visa | F75: =100+C67+C70+C72 -> 853.26 | G75: 840.59
A76: 16601 | B76: 2015-05-08 | C76: 132.61 | D76: 10.11 | E76: Visa
A77: 16602 | B77: 2015-05-08 | C77: 53.04 | D77: 4.04
A78: 16603 | B78: 2015-05-08 | C78: 303.64 | D78: 23.14 | E78: Visa
A79: 16604 | B79: 2015-05-08 | C79: 10.5 | D79: 0.8
A80: 16605 | B80: 2015-05-08 | C80: 140 | E80: Due, Carlos G
A81: 16606 | B81: 2015-05-08 | C81: 113.66 | D81: 8.66 | E81: MC
A82: 16607 | B82: 2015-05-08 | C82: 42.22 | D82: 3.22
A83: 16608 | B83: 2015-05-08 | C83: 9.69 | D83: 0.74
A84: 16609 | B84: 2015-05-08 | C84: 22.73 | D84: 1.73 | E84: Visa
A85: 16610 | B85: 2015-05-08 | C85: 181.86 | D85: 13.86 | E85: $91.86 Visa
A86: 16611 | B86: 2015-05-08 | C86: 21.65 | D86: 1.65 | E86: Discover
A87: 16612 | B87: 2015-05-08 | C87: 15.17 | D87: 1.16
A88: 16613 | B88: 2015-05-08 | C88: 427.59 | D88: 32.59 | E88: $127.59 Visa | F88: =+C75+C76+C78+C81+C84+C86 -> 765.29 | G88: 759.29
A89: 16614 | B89: 2015-05-09 | C89: 37.89 | D89: 2.89
A90: 16615 | B90: 2015-05-09 | C90: 333.41 | D90: 25.41 | E90: Due
A91: 16616 | B91: 2015-05-09 | C91: 16.45 | D91: 1.25
A92: 16617 | B92: 2015-05-09 | C92: 64.9 | D92: 4.95 | E92: Visa
A93: 16618 | B93: 2015-05-09 | C93: 170 | D93: 11.8
A94: 16619 | B94: 2015-05-09 | C94: 6.5 | D94: 0.5
A95: 16620 | B95: 2015-05-09 | C95: 21 | E95: James Ind - resale
A96: 16621 | B96: 2015-05-09 | C96: 10.83 | D96: 0.83 | E96: MC
A97: 16622 | B97: 2015-05-09 | C97: 16.24 | D97: 1.24 | F97: =91.86+127.59+C92+556.32 -> 840.67 | G97: 833.47
A98: 16623 | B98: 2015-05-11 | C98: 12.99 | D98: 0.99
A99: 16624 | B99: 2015-05-11 | C99: 77.94 | D99: 5.94
A100: 16625 | B100: 2015-05-11 | C100: 25 | D100: 1.91
A101: 16626 | B101: 2015-05-11 | C101: 55.21 | D101: 4.21 | E101: MC
A102: 16627 | B102: 2015-05-11 | C102: 10 | D102: 0.76
A103: 16628 | B103: 2015-05-11 | C103: 93 | D103: 7.09
A104: 16629 | B104: 2015-05-11 | C104: 35.45 | D104: 2.7
A105: 16630 | B105: 2015-05-11 | C105: 142 | E105: J.Rangel - resale
A106: 16631 | B106: 2015-05-11 | C106: 15.16 | D106: 1.16 | E106: Visa
A107: 16632 | B107: 2015-05-11 | C107: 23.47 | D107: 1.79 | E107: MC, Randy
A108: 16633 | B108: 2015-05-11 | C108: 3.24 | D108: 0.25
A109: 16634 | B109: 2015-05-11 | C109: 14.29 | D109: 1.09
A110: 16635 | B110: 2015-05-11 | C110: 16.13 | D110: 1.23 | E110: $10.77 Visa
A111: 16636 | B111: 2015-05-11 | C111: 8 | D111: 0.61 | E111: Visa
A112: 16637 | B112: 2015-05-11 | C112: 140.73 | D112: 10.73 | E112: Visa
A113: 16638 | B113: 2015-05-11 | C113: 50 | D113: 3.81
A114: 16639 | B114: 2015-05-11 | C114: 21.6 | D114: 1.65
A115: 16640 | B115: 2015-05-11 | C115: 57 | D115: 4.34 | F115: =+C101+C106+C107+76.53+10.77+8+87.27+0.01 -> 276.42 | G115: 271.1
A116: 16641 | B116: 2015-05-12 | C116: 129.85 | D116: 9.9 | E116: Visa, Rocker C
A117: 16642 | B117: 2015-05-12 | C117: 168.33 | D117: 12.83 | E117: Visa
A118: 16643 | B118: 2015-05-12 | C118: 283.62 | D118: 21.62 | E118: Discover
A119: 16644 | B119: 2015-05-12 | C119: 371.3 | D119: 28.3 | E119: MC, Vespa (Blue)
A120: 16645 | B120: 2015-05-12 | C120: 20.57 | D120: 1.57 | F120: =+C117+C118+C119 -> 823.25 | G120: 811.26
A121: 16646 | B121: 2015-05-13 | C121: 86.6 | D121: 6.6 | E121: Due
A122: 16647 | B122: 2015-05-13 | C122: 49.78 | E122: Due, J. Rangel - resale
A123: 16648 | B123: 2015-05-13 | C123: 242 | D123: 18.44 | E123: $42. bal due
A124: 16649 | B124: 2015-05-13 | C124: 6.63 | E124: MC, ESG Kustom - resale
A125: 16650 | B125: 2015-05-13 | C125: 10.5 | D125: 0.8
A126: 16651 | B126: 2015-05-13 | C126: 64.95 | D126: 4.95 | E126: Check, Honda Rebel
A127: 16652 | B127: 2015-05-13 | C127: 158.4 | E127: Due, Carlos G - resale
A128: 16653 | B128: 2015-05-13 | C128: 10.83 | D128: 0.83 | E128: Visa | F128: =89.98+C124+C128 -> 107.44 | G128: =+F128*0.97831 -> 105.1096264 | H128: 312.83 ?
A129: 16654 | B129: 2015-05-14 | C129: 49 | E129: J. Rangel - resale
A130: 16655 | B130: 2015-05-14 | C130: 70 | E130: Due, Fred - Bike Rods, resale
A131: 16656 | B131: 2015-05-14 | C131: 16.08 | D131: 1.23
A132: 16657 | B132: 2015-05-14 | C132: 269.54 | D132: 20.54
A133: 16658 | B133: 2015-05-14 | C133: 17.21 | D133: 1.31
A134: 16659 | B134: 2015-05-14 | C134: 21.9964 | D134: 1.6764
A135: 16660 | B135: 2015-05-14 | C135: 21.6 | D135: 1.65 | E135: MC
A136: 16661 | B136: 2015-05-14 | C136: 3 | D136: 0.23
A137: 16662 | B137: 2015-05-14 | C137: 42.22 | D137: 3.22 | E137: Visa | F137: =+C116+C112+C135+C137 -> 334.4 | G137: 331.84
A138: 16663 | B138: 2015-05-15 | C138: 140.73 | D138: 10.73 | E138: Visa
A139: 16664 | B139: 2015-05-15 | C139: 216.5 | D139: 16.5 | E139: $180 cash, $36.50 MC
A140: 16665 | B140: 2015-05-15 | C140: 60.54 | D140: 4.61 | E140: Due, Randy
A141: 16666 | B141: 2015-05-15 | C141: 16.24 | D141: 1.24
A142: 16667 | B142: 2015-05-15 | C142: 103 | E142: Done Rite - resale
A143: 16668 | B143: 2015-05-15 | C143: 98.99 | D143: 7.54 | E143: MC
A144: 16669 | B144: 2015-05-15 | C144: 24.9 | D144: 1.9 | E144: MC
A145: 16670 | B145: 2015-05-15 | C145: 460 | D145: 35.06
A146: 16671 | B146: 2015-05-15 | C146: 107 | D146: 8.15
A147: 16672 | B147: 2015-05-15 | C147: 22.73 | D147: 1.73 | E147: Visa
A148: 16673 | B148: 2015-05-15 | C148: 148.69 | E148: Visa, ESG Customs - resale
A149: 16674 | B149: 2015-05-15 | C149: 202.43 | D149: 15.43 | E149: Visa
A150: 16675 | B150: 2015-05-15 | C150: 38.1 | D150: 2.9
A151: 16676 | B151: 2015-05-15 | C151: 29.23 | D151: 2.23
A152: 16677 | B152: 2015-05-15 | C152: 250 | D152: 19.05 | F152: =+C138+C143+36.5+C144+C147+C148+C149 -> 674.97 | G152: 666.48
A153: 16678 | B153: 2015-05-16 | C153: 166.71 | D153: 12.71
A154: 16679 | B154: 2015-05-16 | C154: 8 | D154: 0.61
A155: 16680 | B155: 2015-05-16 | C155: 161.29 | D155: 12.29
A156: 16681 | B156: 2015-05-16 | C156: 41.5 | D156: 3.16
A157: 16682 | B157: 2015-05-16 | C157: 206.76 | D157: 15.76 | E157: Due
A158: 16683 | B158: 2015-05-16 | C158: 261.97 | D158: 19.97 | E158: $161.97 due
A159: 16684 | B159: 2015-05-16 | C159: 173.15 | D159: 13.2 | E159: Visa
A160: 16685 | B160: 2015-05-16 | C160: 215.2 | D160: 16.4 | E160: MC
A161: 16686 | B161: 2015-05-16 | C161: 194.85 | D161: 14.85 | E161: $94.85 MC | F161: =+C159+C160+94.85 -> 483.2 | G161: 477.64
A162: 16687 | B162: 2015-05-18 | C162: 45 | D162: 3.43
A163: 16688 | B163: 2015-05-18 | C163: 272.25 | D163: 20.75
A164: 16689 | B164: 2015-05-18 | C164: 11.91 | D164: 0.91
A165: 16690 | B165: 2015-05-18 | C165: 36.81 | D165: 2.81
A166: 16691 | B166: 2015-05-18 | C166: 12 | D166: 0.91
A167: 16692 | B167: 2015-05-18 | C167: 11.91 | D167: 0.91 | E167: Visa
A168: 16693 | B168: 2015-05-18 | C168: 20 | D168: 1.52
A169: 16694 | B169: 2015-05-18 | C169: 8 | D169: 0.61
A170: 16695 | B170: 2015-05-18 | C170: 258.72 | D170: 19.72 | E170: Visa | F170: =+C167+C170 -> 270.63 | G170: 265.04
A171: 16696 | B171: 2015-05-19 | C171: 51.36 | D171: 3.91
A172: 16697 | B172: 2015-05-19 | C172: 68.2 | D172: 5.2
A173: 16698 | B173: 2015-05-19 | C173: 21 | E173: Palacios - resale
A174: 16699 | B174: 2015-05-19 | C174: 43.25 | D174: 3.3 | E174: Visa
A175: 16700 | B175: 2015-05-19 | C175: 167.79 | D175: 12.79 | E175: Visa
A176: 16701 | B176: 2015-05-19 | C176: 90.82 | D176: 6.92 | E176: Visa
A177: 16702 | B177: 2015-05-19 | C177: 31.39 | D177: 2.39 | E177: Due
A178: 16703 | B178: 2015-05-19 | C178: 62.79 | D178: 4.79
A179: 16704 | B179: 2015-05-19 | C179: 14.07 | D179: 1.07
A180: 16705 | B180: 2015-05-19 | C180: 221.37 | D180: 16.87
A181: 16706 | B181: 2015-05-19 | C181: 255 | D181: 19.43
A182: 16707 | B182: 2015-05-19 | C182: 500 | E182: Visa, Deposit only
A183: 16708 | B183: 2015-05-19 | C183: 400 | E183: Deposit Only | F183: =+C174+C176+C175+C182 -> 801.86 | G183: 796.03
A184: 16709 | B184: 2015-05-20 | C184: 339.91 | D184: 25.91 | E184: Due, Oscar
A185: 16710 | B185: 2015-05-20 | C185: 12.15 | D185: 0.93 | E185: Due, Randy
A186: 16711 | B186: 2015-05-20 | C186: 14.07 | D186: 1.07 | E186: Visa
A187: 16712 | B187: 2015-05-20 | C187: 74.69 | D187: 5.69
A188: 16713 | B188: 2015-05-20 | C188: 126 | E188: Due
A189: 16714 | B189: 2015-05-20 | C189: 37.89 | D189: 2.89 | E189: Due
A190: 16715 | B190: 2015-05-20 | C190: 0 | E190: Brant, Tax only
A191: 16716 | B191: 2015-05-20 | C191: 81.19 | D191: 6.19 | E191: Visa
A192: 16717 | B192: 2015-05-20 | C192: 8.66 | D192: 0.66
A193: 16718 | B193: 2015-05-20 | C193: 146.14 | D193: 11.14 | E193: Visa | F193: =31.76+C186+C191+C193 -> 273.16 | G193: 270.78
A194: 16719 | B194: 2015-05-21 | C194: 474.14 | D194: 36.14 | E194: Visa
A195: 16720 | B195: 2015-05-21 | C195: 583.36 | D195: 44.46 | E195: MC
A196: 16721 | B196: 2015-05-21 | C196: 26 | E196: Due
A197: 16722 | B197: 2015-05-21 | C197: 45.47 | D197: 3.47 | E197: Due
A198: 16723 | B198: 2015-05-21 | C198: 74.69 | D198: 5.69 | E198: MC | F198: =+C194+C195 -> 1057.5 | G198: 1036.12
A199: 16724 | B199: 2015-05-22 | C199: 379 | D199: 28.88
A200: 16725 | B200: 2015-05-22 | C200: 150.47 | D200: 11.47 | E200: Visa $90, $60.47 due
... 73 more rows

Sheet Apr-15
A1: Invoice | C1: =SUM(C3:C511) -> 38137.361 | D1: =SUM(D207:D511) -> 994.7385 | H1: =TODAY() -> 2016-02-05
A2: Number | B2: Date | C2: Amount | D2: Tax | E2: Terms
A3: 16209 | B3: 2015-04-01 | C3: 68 | E3: Visa, Border Patrol
A4: 16210 | B4: 2015-04-01 | C4: 139.64 | D4: 10.64
A5: 16211 | B5: 2015-04-01 | C5: 78 | E5: Visa, Border Patrol
A6: 16212 | B6: 2015-04-01 | C6: 95.26 | D6: 7.26
A7: 16213 | B7: 2015-04-01 | C7: 27.06 | D7: 2.06 | E7: Visa
A8: 16214 | B8: 2015-04-01 | C8: 331.25 | D8: 25.25 | E8: Visa
A9: 16215 | B9: 2015-04-01 | C9: 48.66 | D9: 3.71 | E9: Visa
A10: 16216 | B10: 2015-04-01 | C10: 529.88 | D10: 40.38
A11: 16217 | B11: 2015-04-01 | C11: 75 | E11: Gift Cert
A12: 16218 | B12: 2015-04-01 | C12: 13.6 | E12: Visa
A13: 16219 | B13: 2015-04-01 | C13: 12.99 | D13: 0.99
A14: 16220 | B14: 2015-04-01 | C14: 23.82 | D14: 1.82
A15: 16221 | B15: 2015-04-01 | C15: 117.99 | D15: 8.99 | E15: Visa
A16: 16222 | B16: 2015-04-01 | C16: 280.37 | D16: 21.37 | E16: Visa
A17: 16223 | B17: 2015-04-01 | C17: 13.48 | D17: 1.03
A18: 16224 | B18: 2015-04-01 | C18: 17.32 | D18: 1.32 | E18: MC
A19: 16225 | B19: 2015-04-01 | C19: 5 | D19: 0.41 | E19: Visa | F19: =+C5+C9+C12+C7+C15+20+C8+C16+C18+C19 -> 939.25 | G19: 927.4
A20: 16226 | B20: 2015-04-02 | C20: 12.99 | D20: 0.99
A21: 16227 | B21: 2015-04-02 | C21: 253.31 | D21: 19.31 | E21: Visa
A22: 16228 | B22: 2015-04-02 | C22: 140.73 | D22: 10.73
A23: 16229 | B23: 2015-04-02 | C23: 182 | E23: Due, Chris F - resale
A24: 16230 | B24: 2015-04-02 | C24: 54 | E24: Dirty Daves - resale
A25: 16231 | B25: 2015-04-02 | C25: 43.3 | D25: 3.3
A26: 16232 | B26: 2015-04-02 | C26: 38.7 | D26: 2.95 | E26: Visa
A27: 16233 | B27: 2015-04-02 | C27: 436.25 | D27: 33.25 | E27: Visa
A28: 16234 | B28: 2015-04-02 | C28: 141.16 | D28: 10.76 | F28: =+C21+C26+200 -> 492.01 | G28: 482.36
A29: 16235 | B29: 2015-04-03 | C29: 171.04 | D29: 13.04 | E29: Visa
A30: 16236 | B30: 2015-04-03 | C30: 291.19 | D30: 22.19
A31: 16237 | B31: 2015-04-03 | C31: 10 | D31: 0.76
A32: 16238 | B32: 2015-04-03 | C32: 18.35 | D32: 1.4 | E32: MC
A33: 16239 | B33: 2015-04-03 | C33: 20 | D33: 1.52
A34: 16240 | B34: 2015-04-03 | C34: 9.2 | D34: 0.7
A35: 16241 | B35: 2015-04-03 | C35: 60.62 | D35: 4.62 | E35: MC
A36: 16242 | B36: 2015-04-03 | C36: 265.75 | D36: 20.25 | E36: Visa
A37: 16243 | B37: 2015-04-03 | C37: 221.91 | D37: 16.91 | E37: MC
A38: 16244 | B38: 2015-04-03 | C38: 20.57 | D38: 1.57 | E38: MC
A39: 16245 | B39: 2015-04-03 | C39: 51.96 | D39: 3.96
A40: 16246 | B40: 2015-04-03 | C40: 44.81 | E40: J.Rangel - Resale
A41: 16247 | B41: 2015-04-03 | C41: 51.96 | D41: 3.96 | E41: Visa
A42: 16248 | B42: 2015-04-03 | C42: 31.39 | D42: 2.39
A43: 16249 | B43: 2015-04-03 | C43: 285.78 | D43: 21.78
A44: 16250 | B44: 2015-04-03 | C44: 156.96 | D44: 11.96 | E44: Visa
A45: 16251 | B45: 2015-04-03 | C45: 8 | D45: 0.61 | F45: =+C29+C32+C35+C36+C37+C38+C41+C44+C3 -> 1035.16 | G45: 1024.72
A46: 16252 | B46: 2015-04-04 | C46: 11 | D46: 0.84
A47: 16253 | B47: 2015-04-04 | C47: 8.5 | E47: Done Rite - Resale
A48: 16254 | B48: 2015-04-04 | C48: 48.86 | D48: 3.72
A49: 16255 | B49: 2015-04-04 | C49: 179 | E49: Due, Derick - resale
A50: 16256 | B50: 2015-04-04 | C50: 403.77 | D50: 30.77 | E50: Check
A51: 16257 | B51: 2015-04-04 | C51: -51.96 | D51: -3.96
A52: 16258 | B52: 2015-04-04 | C52: 497.95 | D52: 37.95 | E52: Visa
A53: 16259 | B53: 2015-04-04 | C53: 68.41 | D53: 5.21 | E53: Visa
A54: 16260 | B54: 2015-04-04 | C54: 18 | D54: 1.37
A55: 16261 | B55: 2015-04-04 | C55: 160.47 | D55: 12.23 | E55: Visa
A56: 16262 | B56: 2015-04-04 | C56: 182.94 | D56: 13.94 | E56: Visa
A57: 16263 | B57: 2015-04-04 | C57: 40.05 | D57: 3.05 | E57: Visa
A58: 16264 | B58: 2015-04-04 | C58: 25.93 | D58: 1.98 | E58: Visa | F58: =250+C53+C55+C56+C57+C58 -> 727.8 | G58: 717.55
A59: 16265 | B59: 2015-04-06 | C59: 48.71 | D59: 3.71
A60: 16266 | B60: 2015-04-06 | C60: 260 | D60: 19.81 | E60: Due
A61: 16267 | B61: 2015-04-06 | C61: 29.07 | D61: 2.22
A62: 16268 | B62: 2015-04-06 | C62: 16.24 | D62: 1.24
A63: 16269 | B63: 2015-04-06 | C63: 159.13 | D63: 12.13 | E63: Visa
A64: 16270 | B64: 2015-04-06 | C64: 14.07 | D64: 1.07 | E64: Visa
A65: 16271 | B65: 2015-04-06 | C65: 18.4 | D65: 1.4 | E65: Check
A66: 16272 | B66: 2015-04-06 | C66: 37 | E66: Visa, Done Rite - resale
A67: 16273 | B67: 2015-04-06 | C67: 32.42 | D67: 2.47 | E67: MC
A68: 16274 | B68: 2015-04-06 | C68: 196.47 | D68: 14.97 | E68: Visa
A69: 16275 | B69: 2015-04-06 | C69: 50.88 | D69: 3.88
A70: 16276 | B70: 2015-04-06 | C70: 20 | D70: 1.52
A71: 16277 | B71: 2015-04-06 | C71: 156.96 | D71: 11.96 | E71: Visa
A72: 16278 | B72: 2015-04-06 | C72: 25 | E72: J.Rangel - Resale
A73: 16279 | B73: 2015-04-06 | C73: 16.18 | D73: 1.23 | E73: Visa
A74: 16280 | B74: 2015-04-06 | C74: 114.69 | D74: 8.74 | E74: 1976 Goldwing | F74: =+C63+C64+C66+C67+C68+C71+C73 -> 612.23 | G74: 604.92
A75: 16281 | B75: 2015-04-07 | C75: 16.24 | D75: 1.24 | E75: Visa
A76: 16282 | B76: 2015-04-07 | C76: 12.99 | D76: 0.99 | E76: Visa
A77: 16283 | B77: 2015-04-07 | C77: 40 | D77: 3.05
A78: 16284 | B78: 2015-04-07 | C78: 10.77 | D78: 0.82 | E78: MC
A79: 16285 | B79: 2015-04-07 | C79: 414 | D79: 31.55
A80: 16286 | B80: 2015-04-07 | C80: 32 | E80: Visa, Done Rite - resale
A81: 16287 | B81: 2015-04-07 | C81: 218.34 | D81: 16.64 | E81: Orange Yamaha | F81: =+C75+C76+125.46+C80 -> 186.69 | G81: 183.59
A82: 16288 | B82: 2015-04-08 | C82: 74.69 | D82: 5.69
A83: 16289 | B83: 2015-04-08 | C83: 115 | D83: 8.76 | E83: MC
A84: 16290 | B84: 2015-04-08 | C84: 63.87 | D84: 4.87 | E84: Discover
A85: 16291 | B85: 2015-04-08 | C85: 20 | D85: 0 | E85: Chris F - resale
A86: 16292 | B86: 2015-04-08 | C86: 21.6 | D86: 1.65
A87: 16293 | B87: 2015-04-08 | C87: 9.69 | D87: 0.74 | E87: Visa
A88: 16294 | B88: 2015-04-08 | C88: 81.19 | D88: 6.19
A89: 16295 | B89: 2015-04-08 | C89: 70.36 | D89: 5.36 | E89: Visa
A90: 16296 | B90: 2015-04-08 | C90: 10.83 | D90: 0.83 | E90: Visa
A91: 16297 | B91: 2015-04-08 | C91: 37.83 | D91: 2.88
A92: 16298 | B92: 2015-04-08 | C92: 25.98 | D92: 1.98 | E92: MC
A93: 16299 | B93: 2015-04-08 | C93: 11.85 | D93: 0.9 | E93: Visa
A94: 16300 | B94: 2015-04-08 | C94: 100 | D94: 7.62
A95: 16301 | B95: 2015-04-08 | C95: 41.67 | D95: 3.18
A96: 16302 | B96: 2015-04-08 | C96: 17 | D96: 1.3
A97: 16303 | B97: 2015-04-08 | C97: 7 | E97: Done Rite - Resale
A98: 16304 | B98: 2015-04-08 | C98: 60.62 | D98: 4.62 | E98: Visa
A99: 16305 | B99: 2015-04-08 | C99: 28.27 | D99: 2.15
A100: 16306 | B100: 2015-04-08 | C100: 49.8 | D100: 3.8 | E100: Due
A101: 16307 | B101: 2015-04-08 | C101: 59.68 | E101: J.Rangel - Resale | F101: =+C84+C83+C87+C89+C90+C92+C93+C98+105.68 -> 473.88 | G101: 465.85
A102: 16308 | B102: 2015-04-09 | C102: 68.14 | D102: 5.19
A103: 16309 | B103: 2015-04-09 | C103: 41 | E103: Due
A104: 16310 | B104: 2015-04-09 | C104: 156.96 | D104: 11.96
A105: 16311 | B105: 2015-04-09 | C105: 100.51 | D105: 7.66 | E105: Visa
A106: 16312 | B106: 2015-04-09 | C106: 16.18 | D106: 1.23 | E106: Visa
A107: 16313 | B107: 2015-04-09 | C107: 25.93 | D107: 1.98
A108: 16314 | B108: 2015-04-09 | C108: 173.2 | D108: 13.2
A109: 16315 | B109: 2015-04-09 | C109: 6 | D109: 0.46
A110: 16316 | B110: 2015-04-09 | C110: 10 | D110: 0.76
A111: 16317 | B111: 2015-04-09 | C111: 31.28 | D111: 2.38 | E111: Visa
A112: 16318 | B112: 2015-04-09 | C112: 167.25 | D112: 12.75
A113: 16319 | B113: 2015-04-09 | C113: 444.69 | D113: 33.89 | E113: Visa
A114: 16320 | B114: 2015-04-09 | C114: 17 | E114: Visa, James Ind - Resale
A115: 16321 | B115: 2015-04-09 | C115: 12.94 | D115: 0.99 | E115: Visa
A116: 16322 | B116: 2015-04-09 | C116: 70 | E116: Fred Riddings - resale
A117: 16323 | B117: 2015-04-09 | C117: 104 | E117: Visa
A118: 16324 | B118: 2015-04-09 | C118: 170.98 | D118: 13.03 | E118: Visa
A119: 16325 | B119: 2015-04-09 | C119: -13 | E119: Visa
A120: 16326 | B120: 2015-04-09 | C120: 212.71 | D120: 16.21 | E120: Visa | F120: =236.25+C106+C111+C114+C115+C117+C118+C119+C120+C105 -> 888.85 | G120: 877.74
A121: 16327 | B121: 2015-04-10 | C121: 433 | D121: 33 | E121: Visa
A122: 16328 | B122: 2015-04-10 | C122: 7.58 | D122: 0.58 | E122: Visa
A123: 16329 | B123: 2015-04-10 | C123: 170 | D123: 12.96
A124: 16330 | B124: 2015-04-10 | C124: 188.36 | D124: 14.36 | E124: Visa
A125: 16331 | B125: 2015-04-10 | C125: 644.09 | D125: 49.09
A126: 16332 | B126: 2015-04-10 | C126: 188.36 | D126: 14.36 | E126: Visa
A127: 16333 | B127: 2015-04-10 | C127: 37.83 | D127: 2.88
A128: 16334 | B128: 2015-04-10 | C128: 167 | E128: J.Rangel - Resale
A129: 16335 | B129: 2015-04-10 | C129: 391.6 | E129: J.Rangel - Resale
A130: 16336 | B130: 2015-04-10 | C130: 12.99 | D130: 0.99 | E130: Visa
A131: 16337 | B131: 2015-04-10 | C131: 25.93 | D131: 1.98 | E131: Visa
A132: 16338 | B132: 2015-04-10 | C132: 401.61 | D132: 30.61 | E132: MC
A133: 16339 | B133: 2015-04-10 | C133: 35 | E133: J.Rangel - Resale | F133: =+C122+C126+C130+C131+C132 -> 636.47 | G133: 629.92
A134: 16340 | B134: 2015-04-11 | C134: 159.13 | D134: 12.13
A135: 16341 | B135: 2015-04-11 | C135: 21.65 | D135: 1.65 | E135: MC
A136: 16342 | B136: 2015-04-11 | C136: 125.57 | D136: 9.57 | E136: MC
A137: 16343 | B137: 2015-04-11 | C137: 266.84 | D137: 20.34 | E137: Visa
A138: 16344 | B138: 2015-04-11 | C138: 8.52 | E138: ESG - resale
A139: 16345 | B139: 2015-04-11 | C139: 0
A140: 16346 | B140: 2015-04-11 | C140: 43.3 | D140: 3.3 | E140: Visa
A141: 16347 | B141: 2015-04-11 | C141: 10 | D141: 0.76
A142: 16348 | B142: 2015-04-11 | C142: 43.3 | D142: 3.3 | E142: Discover
A143: 16349 | B143: 2015-04-11 | C143: 487.13 | D143: 37.13
A144: 16350 | B144: 2015-04-11 | C144: 431.92 | D144: 32.92 | E144: $200. dep, $231.92 due
A145: 16351 | B145: 2015-04-11 | C145: 10.83 | D145: 0.83
A146: 16352 | B146: 2015-04-11 | C146: 184.57 | D146: 14.07 | E146: Visa | F146: =+C135+C136+C137+C121+C142+C146+247.95+C140 -> 1366.18 | G146: 1345.77
A147: 16353 | B147: 2015-04-13 | C147: 113.66 | D147: 8.66
A148: 16354 | B148: 2015-04-13 | C148: 6.01 | D148: 0.46
A149: 16355 | B149: 2015-04-13 | C149: 43.84 | D149: 3.34 | E149: Visa
A150: 16356 | B150: 2015-04-13 | C150: 37.89 | D150: 2.89 | E150: MC
A151: 16357 | B151: 2015-04-13 | C151: 234.42 | D151: 17.87
A152: 16358 | B152: 2015-04-13 | C152: 8 | D152: 0.61
A153: 16359 | B153: 2015-04-13 | C153: 74.69 | D153: 5.69 | E153: Visa
A154: 16360 | B154: 2015-04-13 | C154: 74.69 | D154: 5.69 | E154: Visa
A155: 16361 | B155: 2015-04-13 | C155: 24.84 | D155: 1.89 | E155: Visa
A156: 16362 | B156: 2015-04-13 | C156: 40 | D156: 3.05
A157: 16363 | B157: 2015-04-13 | C157: 121.24 | D157: 9.24 | E157: Due | F157: =+C149+C150+C153+C154+C124+C155+9.8 -> 454.11 | G157: 450.65
A158: 16364 | B158: 2015-04-14 | C158: 36.6 | E158: Due, Done Rite - resale
A159: 16365 | B159: 2015-04-14 | C159: 83 | E159: Due, Dirty Daves - resale
A160: 16366 | B160: 2015-04-14 | C160: 55.15 | D160: 4.2 | E160: Visa
A161: 16367 | B161: 2015-04-14 | C161: 18.35 | D161: 1.4
A162: 16368 | B162: 2015-04-14 | C162: 42.22 | D162: 3.22 | E162: Visa
A163: 16369 | B163: 2015-04-14 | C163: 117.99 | D163: 8.99 | E163: Due
A164: 16370 | B164: 2015-04-14 | C164: 38.97 | D164: 2.97 | E164: Visa
A165: 16371 | B165: 2015-04-14 | C165: 375.63 | D165: 28.63
A166: 16372 | B166: 2015-04-14 | C166: 270.08 | D166: 20.58 | E166: MC, $140.08 due
A167: 16373 | B167: 2015-04-14 | C167: 200.8 | D167: 15.3 | E167: MC
A168: 16374 | B168: 2015-04-14 | C168: 30 | E168: J.Rangel - Resale | F168: =+C160+C162+C164+130+C167 -> 467.14 | G168: 460.01
A169: 16375 | B169: 2015-04-15 | C169: 19.97 | D169: 1.52
A170: 16376 | B170: 2015-04-15 | C170: 47.63 | D170: 3.63 | E170: M/C
A171: 16377 | B171: 2015-04-15 | C171: 15.1 | D171: 1.15
A172: 16378 | B172: 2015-04-15 | C172: 208.92 | D172: 15.92 | E172: $58.92 due
A173: 16379 | B173: 2015-04-15 | C173: 14.07 | D173: 1.07
A174: 16380 | B174: 2015-04-15 | C174: 117.99 | D174: 8.99 | E174: Visa
A175: 16381 | B175: 2015-04-15 | C175: 74.69 | D175: 5.69 | E175: Visa
A176: 16382 | B176: 2015-04-15 | C176: 10.83 | D176: 0.83 | E176: Visa
A177: 16383 | B177: 2015-04-15 | C177: 18.35 | D177: 1.4 | E177: Visa
A178: 16384 | B178: 2015-04-15 | C178: 18 | E178: J.Rangel - Resale
A179: 16385 | B179: 2015-04-15 | C179: 68 | D179: 5.18 | E179: Due
A180: 16386 | B180: 2015-04-15 | C180: 36.75 | D180: 2.8
A181: 16387 | B181: 2015-04-15 | C181: 7.52 | D181: 0.57
A182: 16388 | B182: 2015-04-15 | C182: 11.85 | D182: 0.9
A183: 16388 | B183: 2015-04-15 | C183: 260.8825 | D183: 19.8825 | E183: $180.88 due, Visa
A184: 16389 | B184: 2015-04-15 | C184: 70 | E184: Due, J.Rangel - Resale | F184: =+C170+C174+C176+C175+C177+80+121.24 -> 470.73 | G184: 467.21
A185: 16390 | B185: 2015-04-16 | C185: 260.88 | D185: 19.88 | E185: M/C
A186: 16391 | B186: 2015-04-16 | C186: 48.66 | D186: 3.71 | E186: M/C
A187: 16392 | B187: 2015-04-16 | C187: 41.03 | D187: 3.13 | E187: M/C
A188: 16393 | B188: 2015-04-16 | C188: 11.85 | D188: 0.9 | E188: Visa
A189: 16394 | B189: 2015-04-16 | C189: 396.2 | D189: 30.2 | E189: Visa
A190: 16395 | B190: 2015-04-16 | E190: See Inv 16398
A191: 16396 | B191: 2015-04-16 | C191: 44 | D191: 3.35
A192: 16397 | B192: 2015-04-16 | C192: 28.15 | D192: 2.15 | E192: Visa
A193: 16398 | B193: 2015-04-16 | C193: 163.4 | D193: 12.45 | E193: M/C | F193: =+C185+C186+C187+C188+C189+C190+C192+C174+C113 -> 1349.45 | G193: =+F193*0.97831 -> 1320.18043 | H193: 1394.86 | I193: 1487.79 deposited
A194: 16399 | B194: 2015-04-17 | C194: 29 | D194: 2.21
A195: 16400 | B195: 2015-04-17 | C195: 48.66 | D195: 3.71 | E195: Visa
A196: 16401 | B196: 2015-04-17 | C196: 11.94 | D196: 0.91
A197: 16402 | B197: 2015-04-17 | C197: 32.42 | D197: 2.47
A198: 16403 | B198: 2015-04-17 | C198: 15 | D198: 1.14
A199: 16404 | B199: 2015-04-17 | C199: 119.08 | D199: 9.08 | F199: =+C195 -> 48.66 | G199: =+F199*0.97831 -> 47.6045646 | H199: 210.98 | I199: 207.76 deposited
A200: 16405 | B200: 2015-04-18 | C200: 46.49 | D200: 3.54 | E200: Visa
... 136 more rows

Sheet Mar-15
A1: Invoice | C1: =SUM(C21:C528) -> 31400.17 | D1: =SUM(D21:D528) -> 2103.7 | H1: =TODAY() -> 2016-02-05
A2: Number | B2: Date | C2: Amount | D2: Tax | E2: Terms
A3: 15880 | B3: 2015-03-01 | C3: 156 | E3: Carlos G - Resale MX | F3: 0 | G3: =+F3*0.97831 -> 0
A4: 15881 | B4: 2015-03-02 | C4: 22.73 | D4: 1.73
A5: 15882 | B5: 2015-03-02 | C5: 42.22 | D5: 3.22
A6: 15883 | B6: 2015-03-02 | C6: 98.4 | D6: 7.5 | E6: MC
A7: 15884 | B7: 2015-03-02 | C7: 107.18 | E7: Visa, ESG - resale
A8: 15885 | B8: 2015-03-02 | C8: 5.36 | D8: 0.41
A9: 15886 | B9: 2015-03-02 | C9: 188.79 | D9: 14.39 | E9: Visa
A10: 15887 | B10: 2015-03-02 | C10: 19.43 | D10: 1.48
A11: 15888 | B11: 2015-03-02 | C11: 139.64 | D11: 10.64
A12: 15889 | B12: 2015-03-02 | C12: 205.94 | D12: 30.94
A13: 15890 | B13: 2015-03-02 | C13: 31.34 | D13: 2.39 | E13: MC
A14: 15891 | B14: 2015-03-02 | C14: 10.83 | D14: 0.83 | F14: =+C6+C7+C9+C13+38.24 -> 463.95 | G14: 457.66
A15: 15892 | B15: 2015-03-03 | C15: 27.06 | D15: 2.06
A16: 15893 | B16: 2015-03-03 | C16: 531.51 | D16: 40.51
A17: 15894 | B17: 2015-03-03 | C17: 120.05 | D17: 9.15
A18: 15895 | B18: 2015-03-03 | C18: 48.66 | D18: 3.71
A19: 15896 | B19: 2015-03-03 | C19: 435.17 | D19: 33.17 | E19: Visa
A20: 15897 | B20: 2015-03-03 | C20: 8.66 | D20: 0.66
A21: 15898 | B21: 2015-03-03 | C21: 84 | E21: Dirty Daves - resale
A22: 15899 | B22: 2015-03-03 | C22: 99 | E22: Dirty Daves - resale
A23: 15900 | B23: 2015-03-03 | C23: 30 | D23: 2.29 | E23: $10 cash, $20 trade
A24: 15901 | B24: 2015-03-03 | C24: 70.36 | D24: 5.36 | E24: Visa
A25: 15902 | B25: 2015-03-03 | C25: 85.52 | D25: 6.52 | E25: Visa
A26: 15903 | B26: 2015-03-03 | C26: 172.12 | D26: 13.12 | E26: MC
A27: 15904 | B27: 2015-03-03 | C27: 172.12 | D27: 13.12 | E27: Visa
A28: 15905 | B28: 2015-03-03 | C28: 15.59 | D28: 1.19 | E28: MC
A29: 15906 | B29: 2015-03-03 | C29: 31.39 | D29: 2.39 | E29: MC | F29: =+C19+C25+C24+C27+C28+C29 -> 810.15 | G29: 795.35
A30: 15907 | B30: 2015-03-04 | C30: 42.22 | D30: 3.22 | E30: Visa
A31: 15908 | B31: 2015-03-04 | C31: 17.55 | D31: 1.34
A32: 15909 | B32: 2015-03-04 | C32: 569.94 | D32: 43.44 | E32: Check
A33: 15910 | B33: 2015-03-04 | C33: 0 | D33: 0
A34: 15911 | B34: 2015-03-04 | C34: 299.85 | D34: 22.85 | E34: Visa
A35: 15912 | B35: 2015-03-04 | C35: 23 | E35: Revolution - resale
A36: 15913 | B36: 2015-03-04 | C36: 143.53 | E36: ESG - resale
A37: 15914 | B37: 2015-03-04 | C37: 37.83 | D37: 2.88
A38: 15915 | B38: 2015-03-04 | C38: 56.29 | D38: 4.29 | E38: Visa
A39: 15916 | B39: 2015-03-04 | C39: 10 | E39: J.Rangel - resale
A40: 15917 | B40: 2015-03-04 | C40: 95.26 | D40: 7.26 | E40: Visa
A41: 15918 | B41: 2015-03-04 | C41: 8.47 | E41: ESG - resale | F41: =+C30+C34+C38+C40 -> 493.62 | G41: 490.11
A42: 15919 | B42: 2015-03-05 | C42: 97.43 | D42: 7.43 | E42: Due, Blk Yamaha
A43: 15920 | B43: 2015-03-05 | C43: 15 | D43: 1.14 | E43: GL
A44: 15921 | B44: 2015-03-05 | C44: 24.84 | D44: 1.89 | E44: Check
A45: 15922 | B45: 2015-03-05 | C45: 14.34 | D45: 1.09
A46: 15923 | B46: 2015-03-05 | C46: 237.07 | D46: 18.07
A47: 15924 | B47: 2015-03-05 | C47: 41.14 | D47: 3.14 | E47: Visa
A48: 15925 | B48: 2015-03-05 | C48: 114.75 | D48: 8.75 | E48: Visa
A49: 15926 | B49: 2015-03-05 | C49: 64.95 | D49: 4.95 | E49: Due
A50: 15927 | B50: 2015-03-05 | C50: 35.72 | D50: 2.72
A51: 15928 | B51: 2015-03-05 | C51: 279.38 | D51: 21.29 | E51: MC
A52: 15929 | B52: 2015-03-05 | C52: 239.45 | D52: 18.25
A53: 15930 | B53: 2015-03-05 | C53: 42.22 | D53: 3.22
A54: 15931 | B54: 2015-03-05 | C54: 145 | E54: Due, J.Rangel - resale | F54: =+C47+C48+C51 -> 435.27 | G54: =+F54*0.97831 -> 425.8289937
A55: 15932 | B55: 2015-03-06 | C55: 38.7 | D55: 2.95 | E55: Visa
A56: 15933 | B56: 2015-03-06 | C56: 33.4 | D56: 2.55
A57: 15934 | B57: 2015-03-06 | C57: 48.66 | D57: 3.71 | E57: M/C
A58: 15935 | B58: 2015-03-06 | C58: 95.5 | D58: 7.28
A59: 15936 | B59: 2015-03-06 | C59: 54.07 | D59: 4.12
A60: 15937 | B60: 2015-03-06 | C60: 0
A61: 15938 | B61: 2015-03-06 | C61: 29.07 | D61: 2.22
A62: 15939 | B62: 2015-03-06 | C62: 185.65 | D62: 14.15 | E62: Due, Calaveras
A63: 15940 | B63: 2015-03-06 | C63: 50 | E63: Bike Rodz - resale
A64: 15941 | B64: 2015-03-06 | C64: 8 | D64: 0.61
A65: 15942 | B65: 2015-03-06 | C65: 97.37 | D65: 7.42 | E65: Visa
A66: 15943 | B66: 2015-03-06 | C66: 48 | E66: James Ind - resale
A67: 15944 | B67: 2015-03-06 | C67: 135.31 | D67: 10.31 | E67: Visa
A68: 15945 | B68: 2015-03-06 | C68: 5 | D68: 0.38
A69: 15946 | B69: 2015-03-06 | C69: 460.06 | D69: 35.06 | E69: MC ($300 only so far) | F69: =+C55+23.3+C57+200+C65+C67+300+G54+9.44 -> 1278.608994 | G69: 1261.24
A70: 15947 | B70: 2015-03-07 | C70: 4.87 | D70: 0.37
A71: 15948 | B71: 2015-03-07 | C71: 12.97 | D71: 0.99
A72: 15949 | B72: 2015-03-07 | C72: 16.5 | E72: J.Rangel - resale
A73: 15950 | B73: 2015-03-07 | C73: 260.23 | D73: 19.83 | E73: $90.23 due | F73: -200 | G73: -200
A74: 15951 | B74: 2015-03-09 | C74: 191.06 | D74: 14.56 | E74: Visa
A75: 15952 | B75: 2015-03-09 | C75: 45.47 | D75: 3.47
A76: 15953 | B76: 2015-03-09 | C76: 35.67 | D76: 2.72 | E76: Visa
A77: 15954 | B77: 2015-03-09 | C77: 19.38 | D77: 1.48 | E77: Visa
A78: 15955 | B78: 2015-03-09 | C78: 21.6 | D78: 1.65 | E78: Visa
A79: 15956 | B79: 2015-03-09 | C79: 111.44 | D79: 8.49
A80: 15957 | B80: 2015-03-09 | C80: 11 | D80: 0.84
A81: 15958 | B81: 2015-03-09 | C81: 154.8 | D81: 11.8 | E81: Visa
A82: 15959 | B82: 2015-03-09 | C82: 244.65 | D82: 18.65 | E82: Visa
A83: 15960 | B83: 2015-03-09 | C83: 60.62 | D83: 4.62 | E83: Visa | F83: =+C76+C77+C78+191.06+9.04+C81+C82+C83 -> 736.82 | G83: 729.3
A84: 15961 | B84: 2015-03-10 | C84: 41.14 | D84: 3.14 | E84: Visa
A85: 15962 | B85: 2015-03-10 | C85: 51.96 | D85: 3.96 | E85: Visa
A86: 15963 | B86: 2015-03-10 | C86: 35.72 | D86: 2.72
A87: 15964 | B87: 2015-03-10 | C87: 58.46 | D87: 4.46
A88: 15965 | B88: 2015-03-10 | C88: 70.36 | D88: 5.36
A89: 15966 | B89: 2015-03-10 | C89: 21.92 | D89: 1.67 | E89: Visa
A90: 15967 | B90: 2015-03-10 | C90: 240.32 | D90: 18.32 | E90: $140.32 due
A91: 15968 | B91: 2015-03-10 | C91: 96.34 | D91: 7.34
A92: 15969 | B92: 2015-03-10 | C92: 4.01 | D92: 0.31
A93: 15970 | B93: 2015-03-10 | C93: 160 | E93: J.Rangel - resale
A94: 15971 | B94: 2015-03-10 | C94: 38.1 | D94: 2.9 | E94: Addl to Inv 15760
A95: 15972 | B95: 2015-03-10 | C95: 318.26 | D95: 24.26 | E95: Visa
A96: 15973 | B96: 2015-03-10 | C96: 27.06 | D96: 2.06
A97: 15974 | B97: 2015-03-10 | C97: 38.97 | D97: 2.97 | E97: Visa | F97: =+C84+C85+C89+C95+C97 -> 472.25 | G97: 468.81
A98: 15975 | B98: 2015-03-11 | C98: 93.79 | E98: Due, J.Rangel - resale
A99: 15976 | B99: 2015-03-11 | C99: 269.54 | D99: 20.54 | E99: Visa
A100: 15977 | B100: 2015-03-11 | C100: 349.36 | D100: 57.11 | E100: Due, Victor
A101: 15978 | B101: 2015-03-11 | C101: 86.6 | D101: 6.6 | E101: Trade, Soap
A102: 15979 | B102: 2015-03-11 | C102: 102.84 | D102: 7.84 | E102: Visa
A103: 15980 | B103: 2015-03-11 | C103: 1.1 | D103: 0.08
A104: 15981 | B104: 2015-03-11 | C104: 404.86 | D104: 30.86 | E104: Visa
A105: 15982 | B105: 2015-03-11 | C105: 147.76 | D105: 11.26 | E105: Visa
A106: 15983 | B106: 2015-03-11 | E106: Consignment only
A107: 15984 | B107: 2015-03-11 | C107: 84.33 | D107: 6.43
A108: 15985 | B108: 2015-03-11 | C108: 143.97 | D108: 10.97
A109: 15986 | B109: 2015-03-11 | C109: 44.38 | D109: 3.38 | E109: Visa
A110: 15987 | B110: 2015-03-11 | C110: 20.5 | E110: Due, Chris F - resale
A111: 15988 | B111: 2015-03-11 | C111: 11.59 | D111: 0.88 | F111: =+C99+C102+C104+C105+C109 -> 969.38 | G111: 957.97
A112: 15989 | B112: 2015-03-12 | C112: 24.84 | D112: 1.89
A113: 15990 | B113: 2015-03-12 | C113: 169.9 | D113: 12.95
A114: 15991 | B114: 2015-03-12 | C114: 280 | D114: 21.34
A115: 15992 | B115: 2015-03-12 | C115: 53.97 | D115: 4.11
A116: 15993 | B116: 2015-03-12 | C116: 297 | E116: J.Rangel - resale
A117: 15994 | B117: 2015-03-12 | C117: 30 | E117: Done Rite - resale
A118: 15995 | B118: 2015-03-12 | C118: 84.44 | D118: 6.44 | E118: Visa
A119: 15996 | B119: 2015-03-12 | C119: 184.03 | D119: 14.03 | E119: Visa
A120: 15997 | B120: 2015-03-12 | C120: 10 | D120: 0.76
A121: 15998 | B121: 2015-03-12 | C121: 5 | D121: 0.38 | E121: Visa | F121: =396+C93+C54+C118+C119+C121+220.83 -> 1195.3 | G121: 1171.41
A122: 15999 | B122: 2015-03-13 | C122: 48.71 | D122: 3.71 | E122: MC
A123: 16000 | B123: 2015-03-13 | C123: 42.22 | D123: 3.22 | E123: MC
A124: 16001 | B124: 2015-03-13 | C124: 133 | D124: 10.14
A125: 16002 | B125: 2015-03-13 | C125: 11.85 | D125: 0.9 | E125: MC
A126: 16003 | B126: 2015-03-13 | C126: 250.6 | D126: 19.1 | E126: Visa
A127: 16004 | B127: 2015-03-13 | C127: 129.9 | D127: 9.9 | E127: Jorge (Randy)
A128: 16005 | B128: 2015-03-13 | C128: 21.6 | D128: 1.65 | E128: Visa
A129: 16006 | B129: 2015-03-13 | C129: 135.31 | D129: 10.31 | E129: Visa | F129: =+C122+C123+C125+C126+C128+C129 -> 510.29 | G129: 504.62
A130: 16007 | B130: 2015-03-14 | C130: 8 | E130: Trade, Chris F
A131: 16008 | B131: 2015-03-14 | C131: 28 | E131: Visa, Done Rite - resale
A132: 16009 | B132: 2015-03-14 | C132: 102.84 | D132: 7.84 | E132: Visa
A133: 16010 | B133: 2015-03-14 | C133: 21.6 | D133: 1.65
A134: 16011 | B134: 2015-03-14 | C134: 6.43 | D134: 0.49
A135: 16012 | B135: 2015-03-14 | C135: 12.99 | D135: 0.99 | E135: Visa
A136: 16013 | B136: 2015-03-14 | C136: 204 | D136: 15.55
A137: 16014 | B137: 2015-03-14 | C137: 45.74 | D137: 3.49 | E137: Visa
A138: 16015 | B138: 2015-03-14 | C138: 136.4 | D138: 10.4 | E138: Visa | F138: =+C131+C132+C135+C137+C138 -> 325.97 | G138: 323.26
A139: 16016 | B139: 2015-03-16 | C139: 77.94 | D139: 5.94 | E139: Due, Oscar
A140: 16017 | B140: 2015-03-16 | C140: 48.71 | D140: 3.71 | E140: Visa
A141: 16018 | B141: 2015-03-16 | C141: 20.57 | D141: 1.57
A142: 16019 | B142: 2015-03-16 | C142: 62.79 | D142: 4.79
A143: 16020 | B143: 2015-03-16 | C143: 27.01 | D143: 2.06
A144: 16021 | B144: 2015-03-16 | C144: 63.87 | D144: 4.87 | E144: MC (Addl $81.19 CC)
A145: 16022 | B145: 2015-03-16 | C145: 0 | D145: 0
A146: 16023 | B146: 2015-03-16 | C146: 153.17 | D146: 11.67 | E146: Due
A147: 16024 | B147: 2015-03-16 | C147: 48.5 | E147: Due, J.Rangel - resale
A148: 16025 | B148: 2015-03-16 | C148: 128.82 | D148: 9.82 | E148: Due
A149: 16026 | B149: 2015-03-16 | C149: 270.08 | D149: 20.58 | E149: Visa
A150: 16027 | B150: 2015-03-16 | C150: 96.34 | D150: 7.34 | E150: MC | F150: =+C149+C150+C144+C140+81.19 -> 560.19 | G150: 554.53
A151: 16028 | B151: 2015-03-17 | C151: 9.69 | D151: 0.74 | E151: MC
A152: 16029 | B152: 2015-03-17 | C152: 134 | E152: Carlos G - Resale MX
A153: 16030 | B153: 2015-03-17 | C153: 22.08 | E153: ESG Customs - resale
A154: 16031 | B154: 2015-03-17 | C154: 22 | D154: 1.68
A155: 16032 | B155: 2015-03-17 | C155: 233.82 | D155: 17.82 | E155: Visa
A156: 16033 | B156: 2015-03-17 | C156: 58.46 | D156: 4.46 | E156: Due
A157: 16034 | B157: 2015-03-17 | C157: 18.29 | D157: 1.39 | E157: Visa
A158: 16035 | B158: 2015-03-17 | C158: 92 | E158: Dirty Daves - resale
A159: 16036 | B159: 2015-03-17 | C159: 46.39 | D159: 3.54
A160: 16037 | B160: 2015-03-17 | C160: 16.24 | D160: 1.24 | E160: Visa
A161: 16038 | B161: 2015-03-17 | C161: 181 | E161: Visa
A162: 16039 | B162: 2015-03-17 | C162: 107.02 | D162: 8.16 | E162: MC
A163: 16040 | B163: 2015-03-17 | C163: 84.44 | D163: 6.44 | E163: Due, Roller | F163: =+C151+C157+C160+C161+C162 -> 332.24 | G163: 323.68
A164: 16041 | B164: 2015-03-18 | C164: 294 | D164: 22.41
A165: 16042 | B165: 2015-03-18 | C165: 145.27 | E165: ESG Customs - resale
A166: 16043 | B166: 2015-03-18 | C166: 36.81 | D166: 2.81 | E166: Visa
A167: 16044 | B167: 2015-03-18 | C167: 9.29 | E167: J.Rangel - resale | F167: =+C155+C166+15 -> 285.63 | G167: 280.43
A168: 16045 | B168: 2015-03-19 | C168: 253.2 | D168: 19.3 | E168: Due
A169: 16046 | B169: 2015-03-19 | C169: 13.53 | D169: 1.03 | E169: Due
A170: 16047 | B170: 2015-03-19 | C170: 420.01 | D170: 32.01 | E170: Visa
A171: 16048 | B171: 2015-03-19 | C171: 177.53 | D171: 13.53 | E171: MC
A172: 16049 | B172: 2015-03-19 | C172: 40 | D172: 3.05
A173: 16050 | B173: 2015-03-19 | C173: 12.99 | D173: 0.99 | E173: Due
A174: 16051 | B174: 2015-03-19 | C174: 84.44 | D174: 6.44 | E174: Due, Sal
A175: 16052 | B175: 2015-03-19 | C175: 137.48 | D175: 10.48
A176: 16053 | B176: 2015-03-19 | C176: 111.5 | D176: 8.5
A177: 16054 | B177: 2015-03-19 | C177: 169 | D177: 12.88
A178: 16055 | B178: 2015-03-19 | C178: 39 | D178: 2.97
A179: 16056 | B179: 2015-03-19 | C179: 870.87 | D179: 66.37 | E179: Visa | F179: =12.73+C170+C171+150+370.07-285.63 -> 844.71 | G179: 828.26
A180: 16057 | B180: 2015-03-20 | C180: 30 | D180: 2.29 | E180: Visa
A181: 16058 | B181: 2015-03-20 | C181: 49.8 | D181: 3.8 | E181: Visa
A182: 16059 | B182: 2015-03-20 | C182: 133.15 | D182: 10.15 | E182: Discover
A183: 16060 | B183: 2015-03-20 | C183: 270.63 | D183: 20.63 | E183: Due
A184: 16061 | B184: 2015-03-20 | C184: 11.85 | D184: 0.9 | E184: Visa
A185: 16062 | B185: 2015-03-20 | C185: 21.6 | D185: 1.65
A186: 16063 | B186: 2015-03-20 | C186: 11 | D186: 0.84
A187: 16064 | B187: 2015-03-20 | C187: 21.43 | D187: 1.63
A188: 16065 | B188: 2015-03-20 | C188: 163 | E188: J.Rangel - resale
A189: 16066 | B189: 2015-03-20 | C189: 384.29 | D189: 29.29 | E189: Due
A190: 16067 | B190: 2015-03-20 | C190: 19.69 | E190: J.Rangel - resale
A191: 16068 | B191: 2015-03-20 | C191: 47.63 | D191: 3.63 | E191: MC
A192: 16069 | B192: 2015-03-20 | C192: 27.98 | D192: 2.13
A193: 16070 | B193: 2015-03-20 | C193: 5.39 | D193: 0.41 | F193: =187.28+30+C181+C182+C184+51.06 -> 463.14 | G193: 453.88
A194: 16071 | B194: 2015-03-21 | C194: 35 | D194: 2.67
A195: 16072 | B195: 2015-03-21 | C195: 140 | E195: J.Rangel - resale
A196: 16073 | B196: 2015-03-21 | C196: 95 | E196: Visa
A197: 16074 | B197: 2015-03-21 | C197: 20.41 | D197: 1.56 | E197: Visa
A198: 16075 | B198: 2015-03-21 | C198: 85 | E198: J.Rangel - resale
A199: 16076 | B199: 2015-03-21 | C199: 99 | E199: Due, Chris F - resale
A200: 16077 | B200: 2015-03-21 | C200: 30 | E200: J.Rangel - resale
... 131 more rows

Sheet Feb-15
A1: Invoice | H1: =TODAY() -> 2016-02-05
A2: Number | B2: Date | C2: Amount | D2: Tax | E2: Terms
A3: 15576 | B3: 2015-02-02 | C3: 64.95 | D3: 4.95 | E3: Due, Chevo
A4: 15577 | B4: 2015-02-02 | C4: 92
A5: 15578 | B5: 2015-02-02 | C5: 246.27 | D5: 18.77 | E5: Visa
A6: 15579 | B6: 2015-02-02 | C6: 10.77 | D6: 0.82
A7: 15580 | B7: 2015-02-02 | C7: 923.91 | D7: 70.41 | E7: $423.91 due, $500 Deposit only pd
A8: 15581 | B8: 2015-02-02 | C8: 52 | E8: Carlos G - MX resale
A9: 15582 | B9: 2015-02-02 | C9: 100 | E9: Carlos G - MX resale
A10: 15583 | B10: 2015-02-02 | C10: 9.5 | E10: Carlos G - MX resale
A11: 15584 | B11: 2015-02-02 | C11: 202.37 | D11: 15.42 | F11: =+C5 -> 246.27 | G11: 242.75
A12: 15585 | B12: 2015-02-03 | C12: 8 | D12: 0.61
A13: 15586 | B13: 2015-02-03 | C13: 1018 | E13: Due, Border Patrol
A14: 15587 | B14: 2015-02-03 | C14: 396 | E14: Due, Border Patrol
A15: 15588 | B15: 2015-02-03 | C15: 40 | D15: 3.05
A16: 15589 | B16: 2015-02-03 | C16: 175.91 | D16: 13.41
A17: 15590 | B17: 2015-02-03 | C17: 69.28 | D17: 5.28 | E17: Due, Sylvia | F17: =+C11+102.84+57.37 -> 362.58 | G17: 359.33
A18: 15591 | B18: 2015-02-04 | C18: 101.7 | D18: 7.75 | E18: MC
A19: 15592 | B19: 2015-02-04 | C19: 68 | E19: Due
A20: 15593 | B20: 2015-02-04 | C20: 13.5 | D20: 1.03
A21: 15594 | B21: 2015-02-04 | C21: 49.69 | D21: 3.79 | E21: Visa
A22: 15595 | B22: 2015-02-04 | C22: 14.02 | D22: 1.07 | E22: Visa
A23: 15596 | B23: 2015-02-04 | C23: 85.52 | D23: 6.52 | E23: Visa
A24: 15597 | B24: 2015-02-04 | C24: 162.38 | D24: 12.38 | E24: Discover
A25: 15598 | B25: 2015-02-04 | C25: 134.23 | D25: 10.23 | E25: Visa
A26: 15599 | B26: 2015-02-04 | C26: 168.87 | D26: 12.87 | E26: MC
A27: 15600 | B27: 2015-02-04 | C27: 332.33 | D27: 25.33 | E27: Visa
A28: 15601 | B28: 2015-02-04 | C28: 17.27 | D28: 1.32 | E28: Discover
A29: 15602 | B29: 2015-02-04 | C29: 139 | D29: 10.59
A30: 15603 | B30: 2015-02-04 | C30: 449 | D30: 34.22 | E30: $249 bal due
A31: 15604 | B31: 2015-02-04 | C31: 300 | D31: 22.86 | F31: =+C18+C21+C22+C23+C25+C27+C26+C28+C24 -> 1066.01 | G31: 1046.6
A32: 15605 | B32: 2015-02-05 | C32: 71.45 | D32: 5.45
A33: 15606 | B33: 2015-02-05 | C33: 200.8 | D33: 15.3
A34: 15607 | B34: 2015-02-05 | C34: 15.1 | D34: 1.15 | E34: Visa
A35: 15608 | B35: 2015-02-05 | C35: 9.74 | D35: 0.74
A36: 15609 | B36: 2015-02-05 | C36: 16.24 | D36: 1.24 | E36: Visa
A37: 15610 | B37: 2015-02-05 | C37: 16.24 | D37: 1.24 | E37: MC
A38: 15611 | B38: 2015-02-05 | C38: 4.4 | E38: Due
A39: 15612 | B39: 2015-02-05 | C39: 32.48 | D39: 2.48 | E39: MC
A40: 15613 | B40: 2015-02-05 | C40: 21.65 | D40: 1.65
A41: 15614 | B41: 2015-02-05 | C41: 12.99 | D41: 0.99
A42: 15615 | B42: 2015-02-05 | C42: 154.8 | E42: Chris F - resale
A43: 15616 | B43: 2015-02-05 | C43: 0 | E43: Chris F - resale
A44: 15617 | B44: 2015-02-05 | C44: 108.25 | D44: 8.25 | E44: Due | F44: =130.8+C34+C36+C37+C39 -> 210.86 | G44: 207.18
A45: 15618 | B45: 2015-02-06 | C45: 14.02 | D45: 1.07
A46: 15619 | B46: 2015-02-06 | C46: 216.5 | D46: 16.5 | E46: Discover
A47: 15620 | B47: 2015-02-06 | C47: 20 | D47: 1.52
A48: 15621 | B48: 2015-02-06 | C48: 70 | D48: 5.33
A49: 15622 | B49: 2015-02-06 | C49: 27.01 | D49: 2.06 | E49: MC
A50: 15623 | B50: 2015-02-06 | C50: 223
A51: 15624 | B51: 2015-02-06 | C51: 31.95 | D51: 2.43
A52: 15625 | B52: 2015-02-06 | C52: 22.57 | D52: 1.72
A53: 15626 | B53: 2015-02-06 | C53: 44.98 | E53: MC - J.Rangle, resale
A54: 15627 | B54: 2015-02-06 | C54: 57.37 | D54: 4.37 | E54: Visa
A55: 15628 | B55: 2015-02-06 | C55: 27.06 | D55: 2.06 | E55: Due, Calaveras | F55: =+C46+C49+C53+C54 -> 345.86 | G55: 339.37
A56: 15629 | B56: 2015-02-07 | C56: 21.65 | D56: 1.65
A57: 15630 | B57: 2015-02-07 | C57: 10.83 | D57: 0.83
A58: 15631 | B58: 2015-02-07 | C58: 232.2 | D58: 17.7 | E58: Visa
A59: 15632 | B59: 2015-02-07 | C59: 180 | D59: 13.72
A60: 15633 | B60: 2015-02-07 | C60: 12.94 | D60: 0.99 | E60: Visa
A61: 15634 | B61: 2015-02-07 | C61: 17.27 | D61: 1.32
A62: 15635 | B62: 2015-02-07 | C62: 28.15 | D62: 2.15 | E62: Visa
A63: 15636 | B63: 2015-02-07 | C63: 17.27 | D63: 1.32
A64: 15637 | B64: 2015-02-07 | C64: 29.91 | D64: 2.28 | E64: Randy
A65: 15638 | B65: 2015-02-07 | C65: 30.31 | D65: 2.31 | E65: Visa
A66: 15639 | B66: 2015-02-07 | C66: 130 | D66: 9.91 | E66: Visa
A67: 15640 | B67: 2015-02-07 | C67: 139 | E67: J.Rangle - resale
A68: 15641 | B68: 2015-02-07 | C68: 85.52 | D68: 6.52 | E68: Due
A69: 15642 | B69: 2015-02-07 | C69: 20.51 | D69: 1.56
A70: 15643 | B70: 2015-02-07 | C70: 242.48 | D70: 18.48 | E70: $122.48 due
A71: 15644 | B71: 2015-02-07 | C71: 124 | E71: Due
A72: 15645 | B72: 2015-02-07 | C72: 20 | E72: J.Rangle - resale | F72: =+C58+C60+C62+C65+C66 -> 433.6 | G72: 426.92
A73: 15646 | B73: 2015-02-09 | C73: 409.19 | D73: 31.19 | E73: MC
A74: 15647 | B74: 2015-02-09 | C74: 8 | D74: 0.61 | E74: Visa
A75: 15648 | B75: 2015-02-09 | C75: 368.05 | D75: 28.05 | E75: MC
A76: 15649 | B76: 2015-02-09 | C76: 5 | D76: 0.38 | E76: Visa
A77: 15650 | B77: 2015-02-09 | C77: 694.97 | D77: 52.97 | E77: Visa
A78: 15651 | B78: 2015-02-09 | C78: 14.02 | D78: 1.07 | E78: Visa
A79: 15652 | B79: 2015-02-09 | C79: 28.15 | D79: 2.15
A80: 15653 | B80: 2015-02-09 | C80: 322.59 | D80: 24.59
A81: 15654 | B81: 2015-02-09 | C81: 193.23 | D81: 14.73 | E81: MC
A82: 15655 | B82: 2015-02-09 | C82: 40.05 | D82: 3.05 | E82: $20.05 MC, Bal Cash
A83: 15656 | B83: 2015-02-09 | C83: 30.31 | D83: 2.31 | E83: MC
A84: 15657 | B84: 2015-02-09 | C84: 280.37 | D84: 21.37 | E84: Visa
A85: 15658 | B85: 2015-02-09 | C85: 208 | E85: J.Rangle - resale | F85: =+C73+C74+C75+C76+C77+C78+C81+C83+C84+20.05 -> 2023.19 | G85: 1985.42
A86: 15659 | B86: 2015-02-10 | C86: 448.16 | D86: 34.16 | E86: $248.16 Due
A87: 15660 | B87: 2015-02-10 | C87: 97.43 | D87: 7.43 | E87: Visa
A88: 15661 | B88: 2015-02-10 | C88: 22.44 | E88: Due, J.Rangel - resale
A89: 15662 | B89: 2015-02-10 | C89: 37.89 | D89: 2.89
A90: 15663 | B90: 2015-02-10 | C90: 407.02 | D90: 31.02 | E90: Visa
A91: 15664 | B91: 2015-02-10 | C91: 27.01 | D91: 2.06 | E91: MC
A92: 15665 | B92: 2015-02-10 | C92: 49.8 | D92: 3.8
A93: 15666 | B93: 2015-02-10 | C93: 166 | E93: Done Rite - Slim
A94: 15667 | B94: 2015-02-10 | C94: 87.14 | D94: 6.64
A95: 15668 | B95: 2015-02-10 | C95: 24.84 | D95: 1.89
A96: 15669 | B96: 2015-02-10 | C96: 270.08 | D96: 20.58 | E96: Due
A97: 15670 | B97: 2015-02-10 | C97: 100 | D97: 7.62
A98: 15671 | B98: 2015-02-10 | C98: 5 | D98: 0.38
A99: 15672 | B99: 2015-02-10 | C99: 29 | E99: Revolution - resale
A100: 15673 | B100: 2015-02-10 | C100: 239.44 | D100: 14.44
A101: 15674 | B101: 2015-02-10 | C101: -43.3 | D101: -3.3 | E101: Due, '76 Goldwing
A102: 15675 | B102: 2015-02-10 | C102: 265.21 | D102: 20.21
A103: 15676 | B103: 2015-02-10 | C103: 44.38 | D103: 3.38 | F103: =+C90+C91+C87 -> 531.46 | G103: 527.25
A104: 15677 | B104: 2015-02-11 | C104: 30.31 | D104: 2.31 | E104: Due, XL1200X Brk Switch
A105: 15678 | B105: 2015-02-11 | C105: 59.54 | D105: 4.54
A106: 15679 | B106: 2015-02-11 | C106: 242.48 | D106: 18.48 | E106: MC
A107: 15680 | B107: 2015-02-11 | C107: 46.48 | E107: ESG Customs, resale
A108: 15681 | B108: 2015-02-11 | C108: 19.43 | D108: 1.48 | E108: Visa
A109: 15682 | B109: 2015-02-11 | C109: 84.44 | D109: 6.44 | E109: Visa
A110: 15683 | B110: 2015-02-11 | C110: 324 | E110: Visa, Done Rite - resale
A111: 15684 | B111: 2015-02-11 | C111: 16.18 | D111: 1.23
A112: 15685 | B112: 2015-02-11 | C112: 73 | E112: J.Rangel - resale
A113: 15686 | B113: 2015-02-11 | C113: 8.66 | D113: 0.66 | E113: Visa | F113: =+C108+C109+C113 -> 112.53 | G113: 109.96
A114: 15687 | B114: 2015-02-12 | C114: 205 | E114: Pd $100, $105 due
A115: 15688 | B115: 2015-02-12 | C115: 21.65 | D115: 1.65
A116: 15689 | B116: 2015-02-12 | C116: 27.06 | D116: 2.06 | E116: Due, Honda CMX250
A117: 15690 | B117: 2015-02-12 | C117: 145 | D117: 11.05
A118: 15691 | B118: 2015-02-12 | C118: 21.11 | D118: 1.61
A119: 15692 | B119: 2015-02-12 | C119: 176.99 | D119: 13.49
A120: 15693 | B120: 2015-02-12 | C120: 231.66 | D120: 17.66 | E120: Visa
A121: 15694 | B121: 2015-02-12 | C121: 27.06 | D121: 2.06
A122: 15695 | B122: 2015-02-12 | C122: 405.94 | D122: 30.94 | E122: Visa
A123: 15696 | B123: 2015-02-12 | C123: 101 | E123: Due, Chris F - resale
A124: 15697 | B124: 2015-02-12 | C124: 350.19 | D124: 26.69 | E124: Due, Red Ninja 250
A125: 15698 | B125: 2015-02-12 | C125: 48.71 | D125: 3.71 | E125: MC
A126: 15699 | B126: 2015-02-12 | C126: 24.9 | D126: 1.9 | E126: Due, Randy
A127: 15700 | B127: 2015-02-12 | C127: 150.47 | D127: 11.47 | E127: MC
A128: 15701 | B128: 2015-02-12 | C128: 158.15 | D128: 12.05 | E128: Due, w/Inv 15643, $280.63
A129: 15702 | B129: 2015-02-12 | C129: 27 | E129: Due, J.Rangel - resale | F129: =+C106+C110+C122+C125+C127 -> 1171.6 | G129: 1157.81
A130: 15703 | B130: 2015-02-13 | C130: 10.83 | D130: 0.83 | E130: Visa
A131: 15704 | B131: 2015-02-13 | C131: 79.02 | D131: 6.02 | E131: Visa
A132: 15705 | B132: 2015-02-13 | C132: 74.69 | D132: 5.69 | E132: Due
A133: 15706 | B133: 2015-02-13 | C133: 49.8 | D133: 3.8 | E133: Visa
A134: 15707 | B134: 2015-02-13 | C134: 3.79 | D134: 0.29
A135: 15708 | B135: 2015-02-13 | C135: 12 | D135: 0.91 | E135: Visa
A136: 15709 | B136: 2015-02-13 | C136: 159.13 | D136: 12.13
A137: 15710 | B137: 2015-02-13 | C137: 18.5 | E137: Done Rite - resale
A138: 15711 | B138: 2015-02-13 | C138: 22.62 | D138: 1.72 | E138: MC
A139: 15712 | B139: 2015-02-13 | C139: 458.98 | D139: 34.98 | E139: Visa
A140: 15713 | B140: 2015-02-13 | C140: 9.69 | D140: 0.74 | E140: MC
A141: 15714 | B141: 2015-02-13 | C141: 181.86 | D141: 13.86 | E141: Visa, $1.86 due
A142: 15715 | B142: 2015-02-13 | C142: 23 | E142: Due, Done Rite - resale | F142: =+C130+C131+C133+C135+C138+C139+C140+180 -> 822.94 | G142: 807
A143: 15716 | B143: 2015-02-14 | C143: 18.35 | D143: 1.4
A144: 15717 | B144: 2015-02-14 | C144: 11.85 | D144: 0.9 | E144: Visa
A145: 15718 | B145: 2015-02-14 | C145: 384.29 | D145: 29.29 | E145: Discover
A146: 15719 | B146: 2015-02-14 | C146: 80.11 | D146: 6.11
A147: 15720 | B147: 2015-02-14 | C147: 106 | D147: 8.08
A148: 15721 | B148: 2015-02-14 | C148: 11.91 | D148: 0.91
A149: 15722 | B149: 2015-02-14 | C149: 139.64 | D149: 10.64 | E149: Visa
A150: 15723 | B150: 2015-02-14 | C150: 19.49 | D150: 1.49
A151: 15724 | B151: 2015-02-14 | C151: 24.98 | D151: 1.9 | E151: Visa
A152: 15725 | B152: 2015-02-14 | C152: 3 | D152: 0.23 | E152: Visa
A153: 15726 | B153: 2015-02-14 | C153: 17.75 | D153: 1.35
A154: 15727 | B154: 2015-02-14 | C154: 20 | E154: Done Rite - resale | F154: =+C144+C145+278.74+C149+C151+C152+284.88 -> 1127.38 | G154: 1114.91
A155: 15728 | B155: 2015-02-16 | C155: 124.49 | D155: 9.49 | E155: Visa
A156: 15729 | B156: 2015-02-16 | C156: 369.13 | D156: 28.13 | E156: MC, Pd $150 down
A157: 15730 | B157: 2015-02-16 | C157: 33.5 | D157: 2.55
A158: 15731 | B158: 2015-02-16 | C158: 28.04 | D158: 2.14 | E158: Visa
A159: 15732 | B159: 2015-02-16 | C159: 43.19 | D159: 3.29
A160: 15733 | B160: 2015-02-16 | C160: 115.69 | D160: 8.82 | E160: Visa
A161: 15734 | B161: 2015-02-16 | C161: 48.71 | D161: 3.71
A162: 15735 | B162: 2015-02-16 | C162: 33.56 | D162: 2.56 | E162: MC
A163: 15736 | B163: 2015-02-16 | C163: -33.5 | D163: -2.55
A164: 15737 | B164: 2015-02-16 | C164: 199.94 | D164: 15.24
A165: 15738 | B165: 2015-02-16 | C165: 81.19 | D165: 6.19
A166: 15739 | B166: 2015-02-16 | C166: 28.15 | D166: 2.15 | E166: Visa
A167: 15740 | B167: 2015-02-16 | C167: 37.83 | D167: 2.88
A168: 15741 | B168: 2015-02-16 | C168: 85.52 | D168: 6.52
A169: 15742 | B169: 2015-02-16 | C169: 27.06 | D169: 2.06 | E169: Check
A170: 15743 | B170: 2015-02-16 | C170: 17.32 | D170: 1.32
A171: 15744 | B171: 2015-02-16 | C171: 159.99 | D171: 12.19
A172: 15745 | B172: 2015-02-16 | C172: 86.55 | D172: 6.6
A173: 15746 | B173: 2015-02-16 | C173: 37.89 | D173: 2.89 | E173: M/C
A174: 15747 | B174: 2015-02-16 | C174: 297.41 | D174: 22.67 | E174: MC
A175: 15748 | B175: 2015-02-16 | C175: 23.82 | D175: 1.82
A176: 15749 | B176: 2015-02-16 | C176: 0 | E176: Fairing, Elvin | F176: =+C155+150+C158+C160+C162+28.71+C166+C173+C174+85.52 -> 929.46 | G176: 915.97
A177: 15750 | B177: 2015-02-17 | C177: 78 | E177: Carlos G - MX resale
A178: 15751 | B178: 2015-02-17 | C178: 98 | E178: Carlos G - MX resale
A179: 15752 | B179: 2015-02-17 | C179: 323.56 | D179: 24.66 | E179: Visa
A180: 15753 | B180: 2015-02-17 | C180: 333.41 | D180: 25.41
A181: 15754 | B181: 2015-02-17 | C181: 146.14 | D181: 11.14 | E181: Visa | F181: =323.56+C181 -> 469.7 | G181: 467.46
A182: 15755 | B182: 2015-02-18 | C182: 32.48 | D182: 2.48
A183: 15756 | B183: 2015-02-18 | C183: 12.94 | D183: 0.99 | E183: Visa
A184: 15757 | B184: 2015-02-18 | C184: 24.9 | D184: 1.9
A185: 15758 | B185: 2015-02-18 | C185: 10 | E185: James Ind - resale
A186: 15759 | B186: 2015-02-18 | C186: 48.71 | D186: 3.71 | E186: MC
A187: 15760 | B187: 2015-02-18 | C187: 388.62 | D187: 29.62 | E187: Visa
A188: 15761 | B188: 2015-02-18 | C188: 48.82 | D188: 3.72
A189: 15762 | B189: 2015-02-18 | C189: 66.03 | D189: 5.03 | E189: Visa
A190: 15763 | B190: 2015-02-18 | C190: 211.09 | D190: 16.09 | E190: Check | F190: =+C183+C186+190+27.06+C189 -> 344.74 | G190: 338.01
A191: 15764 | B191: 2015-02-19 | C191: 17.32 | D191: 1.32 | E191: MC
A192: 15765 | B192: 2015-02-19 | C192: 49.8 | D192: 3.8 | E192: Visa
A193: 15766 | B193: 2015-02-19 | C193: 119.08 | D193: 9.08
A194: 15767 | B194: 2015-02-19 | C194: 235.5
A195: 15768 | B195: 2015-02-19 | C195: 242.16 | D195: 18.46 | E195: MC, $142.16 due
A196: 15769 | B196: 2015-02-19 | C196: 36.1 | D196: 2.75
A197: 15770 | B197: 2015-02-19 | C197: 536.92 | D197: 40.92 | E197: MC
A198: 15771 | B198: 2015-02-19 | C198: 28.15 | D198: 2.15
A199: 15772 | B199: 2015-02-19 | C199: 32.48 | D199: 2.48 | E199: Visa
A200: 15773 | B200: 2015-02-19 | C200: 224.62 | D200: 17.12 | E200: Visa
... 106 more rows

Sheet Jan-15
A1: Invoice | C1: =SUM(C212:C409) -> 0 | D1: =SUM(D212:D409) -> 0 | H1: =TODAY() -> 2016-02-05
A2: Number | B2: Date | C2: Amount | D2: Tax | E2: Terms
A3: 15367 | B3: 2015-01-02 | C3: 100 | D3: 7.62
A4: 15368 | B4: 2015-01-02 | C4: 140 | D4: 10.67
A5: 15369 | B5: 2015-01-02 | C5: 11.91 | D5: 0.91 | E5: Visa
A6: 15370 | B6: 2015-01-02 | C6: 17.27 | D6: 1.32
A7: 15371 | B7: 2015-01-02 | C7: 39 | E7: Resale cert.
A8: 15372 | B8: 2015-01-02 | C8: 172.12 | D8: 13.12 | E8: Visa | F8: =+C5+C8 -> 184.03 | G8: 182.75
A9: 15373 | B9: 2015-01-03 | C9: 35.72 | D9: 2.72
A10: 15374 | B10: 2015-01-03 | C10: 14.02 | D10: 1.07
A11: 15375 | B11: 2015-01-03 | C11: 6.5 | D11: 0.5
A12: 15376 | B12: 2015-01-03 | C12: 121.24 | D12: 9.24 | E12: Visa, $61.24 due
A13: 15377 | B13: 2015-01-03 | C13: 59.54 | D13: 4.54 | F13: =70.7+60+80 -> 210.7 | G13: 208.21
A14: 15378 | B14: 2015-01-05 | C14: 29.23 | D14: 2.23
A15: 15379 | B15: 2015-01-05 | C15: 103.92 | D15: 7.92 | E15: $33.92 due
A16: 15380 | B16: 2015-01-05 | C16: 5.41 | D16: 0.41 | E16: Check
A17: 15381 | B17: 2015-01-05 | C17: 25 | D17: 1.91
A18: 15382 | B18: 2015-01-05 | C18: 25 | F18: 27.33 | G18: 26.92
A19: 15383 | B19: 2015-01-06 | C19: 27.06 | D19: 2.06 | E19: Due
A20: 15384 | B20: 2015-01-06 | C20: 20 | D20: 1.52
A21: 15385 | B21: 2015-01-06 | C21: 137.48 | D21: 10.48 | E21: MC
A22: 15386 | B22: 2015-01-06 | C22: 108.25 | D22: 8.25 | E22: Due, Stripes
A23: 15387 | B23: 2015-01-06 | C23: 235 | E23: $115. due, J.Rangel - resale
A24: 15388 | B24: 2015-01-06 | C24: 18 | D24: 1.37 | E24: MC
A25: 15389 | B25: 2015-01-06 | C25: 64.95 | D25: 4.95 | E25: $24.95 due | F25: =61.24+C21+C24 -> 216.72 | G25: 213.56
A26: 15390 | B26: 2015-01-07 | C26: 22.98 | D26: 1.75
A27: 15391 | B27: 2015-01-07 | C27: 8.61 | D27: 0.66
A28: 15392 | B28: 2015-01-07 | C28: 33.17 | D28: 2.53
A29: 15393 | B29: 2015-01-07 | C29: 11.91 | D29: 0.91
A30: 15394 | B30: 2015-01-07 | C30: 78 | D30: 5.94 | E30: MC
A31: 15395 | B31: 2015-01-07 | C31: 29 | E31: MC, Johnny Customs
A32: 15396 | B32: 2015-01-07 | C32: 201.89 | D32: 15.39 | E32: MC, Honda 450R
A33: 15397 | B33: 2015-01-07 | C33: 113.66 | D33: 8.66 | E33: Visa
A34: 15398 | B34: 2015-01-07 | C34: 21.11 | D34: 1.61 | E34: Visa
A35: 15399 | B35: 2015-01-07 | C35: 80 | E35: Mexico, resale | F35: =+C34+C33+C31+C30 -> 241.77 | G35: 238.54
A36: 15400 | B36: 2015-01-08 | C36: 282 | E36: Visa, Chris F - resale
A37: 15401 | B37: 2015-01-08 | C37: 283.62 | D37: 21.62 | E37: Visa
A38: 15402 | B38: 2015-01-08 | C38: 8 | D38: 0.61
A39: 15403 | B39: 2015-01-08 | C39: 17 | E39: Visa, Chris F - resale | F39: 0 | G39: =+F39*0.97831 -> 0
A40: 15404 | B40: 2015-01-09 | C40: 208.92 | D40: 15.92 | E40: Due
A41: 15405 | B41: 2015-01-09 | C41: 38 | E41: Due, Carlos G - MX resale
A42: 15406 | B42: 2015-01-09 | C42: 76.24 | D42: 5.81 | E42: Visa
A43: 15407 | B43: 2015-01-09 | C43: 101.76 | D43: 7.76 | E43: MC
A44: 15408 | B44: 2015-01-09 | C44: 32.48 | D44: 2.48 | E44: Visa
A45: 15409 | B45: 2015-01-09 | C45: 135.31 | D45: 10.31 | E45: MC, $45.31 due | F45: =50+C42+C43+C44+90 -> 350.48 | G45: 344.54
A46: 15410 | B46: 2015-01-10 | C46: 128.82 | D46: 9.82 | E46: MC
A47: 15411 | B47: 2015-01-10 | C47: 36.75 | D47: 2.8 | E47: Visa
A48: 15412 | B48: 2015-01-10 | C48: 107.17 | D48: 8.17 | E48: Visa | F48: =+C46+C47+C48 -> 272.74 | G48: 269.43
A49: 15413 | B49: 2015-01-12 | C49: 11.8 | D49: 0.9
A50: 15414 | B50: 2015-01-12 | C50: 15.16 | D50: 1.16
A51: 15415 | B51: 2015-01-12 | C51: 17.21 | D51: 1.31
A52: 15416 | B52: 2015-01-12 | C52: 92.01 | D52: 7.01 | E52: MC
A53: 15417 | B53: 2015-01-12 | C53: 124.49 | D53: 9.49 | E53: Visa
A54: 15418 | B54: 2015-01-12 | C54: 45 | D54: 3.43
A55: 15419 | B55: 2015-01-12 | C55: 107.17 | D55: 8.17
A56: 15420 | B56: 2015-01-12 | C56: 10 | E56: J.Rangel - resale
A57: 15421 | B57: 2015-01-12 | C57: 62.79 | D57: 4.79
A58: 15422 | B58: 2015-01-12 | C58: 500 | E58: MC, Deposit Only | F58: =+C32+C53+C37+C52+C58 -> 1202.01 | G58: 1188.58
A59: 15423 | B59: 2015-01-13 | C59: 95.26 | D59: 7.26 | E59: MC
A60: 15424 | B60: 2015-01-13 | C60: 171.04 | D60: 13.04 | E60: Visa
A61: 15425 | B61: 2015-01-13 | C61: 67.35 | D61: 5.13 | E61: Visa
A62: 15426 | B62: 2015-01-13 | C62: 342 | E62: Due, Chris F - resale
A63: 15427 | B63: 2015-01-13 | C63: 355.06 | D63: 27.06 | E63: Due, Isaac (Pir Tires)
A64: 15428 | B64: 2015-01-13 | C64: 110 | D64: 8.38 | E64: $30 Visa
A65: 15429 | B65: 2015-01-13 | C65: 202 | D65: 15.4 | E65: Due, Red XL883 | F65: =+C59+C60+C61+30+C36+C39+50 -> 712.65 | G65: 705.69
A66: 15430 | B66: 2015-01-14 | C66: 45 | D66: 3.43
A67: 15431 | B67: 2015-01-14 | C67: 21.59 | D67: 1.64 | E67: Visa
A68: 15432 | B68: 2015-01-14 | C68: 20 | E68: Due, Chris F - resale
A69: 15433 | B69: 2015-01-14 | C69: 122 | E69: Carlos G - MX resale
A70: 15434 | B70: 2015-01-14 | C70: 150 | D70: 11.43 | E70: Due Blk HD w/Brngs
A71: 15435 | B71: 2015-01-14 | C71: 51.42 | D71: 3.92 | E71: Due, single fork
A72: 15436 | B72: 2015-01-14 | C72: 143.76 | D72: 10.96 | E72: Due, Baja bike
A73: 15437 | B73: 2015-01-14 | C73: 122 | E73: Due, Carlos G - MX resale | F73: =+C67 -> 21.59 | G73: 21.04
A74: 15438 | B74: 2015-01-15 | C74: 27.83 | D74: 2.12 | E74: Visa
A75: 15439 | B75: 2015-01-15 | C75: 259 | D75: 19.74 | E75: Due
A76: 15440 | B76: 2015-01-15 | C76: 363 | D76: 27.66 | E76: $313. due
A77: 15441 | B77: 2015-01-15 | C77: 225 | D77: 17.15 | E77: Visa
A78: 15442 | B78: 2015-01-15 | C78: 100.13 | D78: 7.63 | E78: M/C
A79: 15443 | B79: 2015-01-15 | C79: 24.14 | D79: 1.84 | E79: Due - Randy | F79: =+C74+51.42+C77+45.31+C78 -> 449.69 | G79: 440.4
A80: 15444 | B80: 2015-01-16 | C80: 48.66 | D80: 3.71 | E80: Visa
A81: 15445 | B81: 2015-01-16 | C81: 37.89 | D81: 2.89 | E81: Visa
A82: 15446 | B82: 2015-01-16 | C82: 21.6 | D82: 1.65
A83: 15447 | B83: 2015-01-16 | C83: 37.89 | D83: 2.89
A84: 15448 | B84: 2015-01-16 | C84: 437.33 | D84: 33.33 | E84: $287.33 Due
A85: 15449 | B85: 2015-01-16 | C85: 43.3 | D85: 3.3 | E85: $43.30 due
A86: 15450 | B86: 2015-01-16 | C86: 326.92 | D86: 24.92 | E86: MC
A87: 15451 | B87: 2015-01-16 | C87: 18.39 | E87: ESG - resasle
A88: 15452 | B88: 2015-01-16 | C88: 27.06 | D88: 2.06 | E88: MC | F88: =+C80+C81+248.98+C88+43.76 -> 406.35 | G88: 400.73
A89: 15453 | B89: 2015-01-17 | C89: 108.25 | D89: 8.25
A90: 15454 | B90: 2015-01-17 | C90: 7.58 | D90: 0.58
A91: 15455 | B91: 2015-01-17 | C91: 244 | D91: 18.6
A92: 15456 | B92: 2015-01-17 | C92: 23.82 | D92: 1.82
A93: 15457 | B93: 2015-01-17 | C93: 120 | D93: 9.15 | E93: $110 cash, $10 Visa
A94: 15458 | B94: 2015-01-17 | C94: 228.41 | D94: 17.41 | E94: Visa
A95: 15459 | B95: 2015-01-17 | C95: 12.99 | D95: 0.99
A96: 15460 | B96: 2015-01-17 | C96: 10.83 | D96: 0.83 | E96: MC
A97: 15461 | B97: 2015-01-18 | C97: 416 | E97: Due, Carlos G - MX resale | F97: =10+C94+C96+200 -> 449.24 | G97: 446.43
A98: 15462 | B98: 2015-01-19 | C98: 315.55 | D98: 24.05 | E98: Due
A99: 15463 | B99: 2015-01-19 | C99: 278.74 | D99: 21.24 | E99: Due
A100: 15464 | B100: 2015-01-19 | C100: 363.72 | D100: 27.72 | E100: Visa
A101: 15465 | B101: 2015-01-19 | C101: 375.36 | D101: 28.61 | E101: $175.36 due
A102: 15466 | B102: 2015-01-19 | C102: 80 | E102: Due, Carlos G - MX resale
A103: 15467 | B103: 2015-01-19 | C103: 208 | E103: Due, Carlos G - MX resale
A104: 15468 | B104: 2015-01-19 | C104: 437.9 | D104: 33.38
A105: 15469 | B105: 2015-01-19 | C105: 7.58 | D105: 0.58 | E105: Visa | F105: =+C100+C105 -> 371.3 | G105: 363.76
A106: 15470 | B106: 2015-01-20 | C106: 113.25 | D106: 8.63 | E106: Visa
A107: 15471 | B107: 2015-01-20 | C107: 78.48 | D107: 5.98 | E107: Visa
A108: 15472 | B108: 2015-01-20 | C108: 231.11 | D108: 17.61 | E108: Discover, $106.11 due
A109: 15473 | B109: 2015-01-20 | C109: 18.997875 | D109: 1.447875
A110: 15474 | B110: 2015-01-20 | C110: 291.93 | D110: 21.03 | E110: $200 Visa Pd prior
A111: 15475 | B111: 2015-01-20 | C111: 212.17 | D111: 16.17 | E111: Visa
A112: 15476 | B112: 2015-01-20 | C112: 109.33 | D112: 8.33
A113: 15477 | B113: 2015-01-20 | C113: 20 | E113: J.Rangel - resale
A114: 15478 | B114: 2015-01-20 | C114: 240 | E114: MC
A115: 15479 | B115: 2015-01-20 | C115: 23.82 | D115: 1.82 | E115: Visa | F115: =315.55+125+C111+C107+C106+91.93+C114+C115 -> 1200.2 | G115: 1182.36
A116: 15480 | B116: 2015-01-21 | C116: 172.12 | D116: 13.12 | E116: Visa
A117: 15481 | B117: 2015-01-21 | C117: 305 | D117: 22.77 | E117: Visa
A118: 15482 | B118: 2015-01-21 | C118: 64.95 | D118: 4.95 | E118: Visa
A119: 15483 | B119: 2015-01-21 | C119: 92 | D119: 7.01 | E119: Visa
A120: 15484 | B120: 2015-01-21 | C120: 59 | D120: 4.5
A121: 15485 | B121: 2015-01-21 | C121: 331 | D121: 25.23
A122: 15486 | B122: 2015-01-21 | C122: 19 | D122: 1.45
A123: 15487 | B123: 2015-01-21 | C123: 23.82 | D123: 1.82 | E123: Visa | F123: =+C116+C117+C119+C123 -> 592.94 | G123: 585.84
A124: 15488 | B124: 2015-01-22 | C124: 83.35 | D124: 6.35 | E124: Visa
A125: 15489 | B125: 2015-01-22 | C125: 42.22 | D125: 3.22
A126: 15490 | B126: 2015-01-22 | C126: 51.96 | D126: 3.96 | E126: MC
A127: 15491 | B127: 2015-01-22 | C127: 10.77 | D127: 0.82 | E127: Visa
A128: 15492 | B128: 2015-01-22 | C128: 503.36 | D128: 38.36 | E128: MC
A129: 15493 | B129: 2015-01-22 | C129: 158.16 | D129: 50.16 | E129: MC
A130: 15494 | B130: 2015-01-22 | C130: 200.26 | D130: 15.26 | E130: Due
A131: 15495 | B131: 2015-01-22 | C131: 92.01 | D131: 7.01 | E131: Visa
A132: 15496 | B132: 2015-01-22 | C132: 51.42 | D132: 3.92
A133: 15497 | B133: 2015-01-22 | C133: 76.09 | E133: Visa, J.Rangel - resale
A134: 15498 | B134: 2015-01-22 | C134: 423.91 | E134: Visa, J.Rangel - resale
A135: 15499 | B135: 2015-01-22 | C135: 117 | E135: Due, Carlos G - MX resale | F135: =+C118+C124+335+129.9+C127+C129+C131+500 -> 1374.14 | G135: 1350.07
A136: 15500 | B136: 2015-01-23 | C136: 4.87 | D136: 0.37
A137: 15501 | B137: 2015-01-23 | C137: 29.34 | D137: 2.24
A138: 15502 | B138: 2015-01-23 | C138: 217.42 | D138: 16.57 | E138: Due
A139: 15503 | B139: 2015-01-23 | C139: 111.99545 | D139: 8.53545
A140: 15504 | B140: 2015-01-23 | C140: 100 | D140: 7.62 | F140: 0 | G140: =+F140*0.97831 -> 0
A141: 15505 | B141: 2015-01-24 | C141: 17
A142: 15506 | B142: 2015-01-24 | C142: 211.09 | D142: 16.09 | E142: Due, Chevo
A143: 15507 | B143: 2015-01-24 | C143: 175 | E143: J.Rangel - resale
A144: 15508 | B144: 2015-01-24 | C144: 73.93 | D144: 5.63 | E144: Visa
A145: 15509 | B145: 2015-01-24 | C145: 22 | D145: 1.67
A146: 15510 | B146: 2015-01-24 | C146: 25.98 | D146: 1.98 | E146: Visa
A147: 15511 | B147: 2015-01-24 | C147: 27.06 | D147: 2.06
A148: 15512 | B148: 2015-01-24 | C148: 192.9 | D148: 14.7 | E148: MC | F148: =+C144+C146+C148 -> 292.81 | G148: 289
A149: 15513 | B149: 2015-01-26 | C149: 70.36 | D149: 5.36 | E149: Visa
A150: 15514 | B150: 2015-01-26 | C150: 238 | D150: 18.14
A151: 15515 | B151: 2015-01-26 | C151: 150 | D151: 11.43
A152: 15516 | B152: 2015-01-26 | C152: 20.0046 | D152: 1.5246
A153: 15517 | B153: 2015-01-26 | C153: 46.49 | D153: 3.54 | E153: Visa
A154: 15518 | B154: 2015-01-26 | C154: 12.99 | D154: 0.99 | E154: Visa
A155: 15519 | B155: 2015-01-26 | C155: 20.57 | D155: 1.57 | E155: Visa
A156: 15520 | B156: 2015-01-26 | C156: 80 | D156: 6.1
A157: 15521 | B157: 2015-01-26 | C157: 469 | E157: Due, Carlos G - MX resale
A158: 15522 | B158: 2015-01-26 | C158: 123.41 | D158: 9.41 | F158: =+C149+20+C153+C154+C155+27.42 -> 197.83 | G158: 194.43
A159: 15523 | B159: 2015-01-27 | C159: 36.75 | D159: 2.8 | E159: Visa
A160: 15524 | B160: 2015-01-27 | C160: 85.52 | D160: 6.52
A161: 15525 | B161: 2015-01-27 | C161: 36.1 | D161: 2.75
A162: 15526 | B162: 2015-01-27 | C162: 97.43 | D162: 7.43 | E162: Due
A163: 15527 | B163: 2015-01-27 | C163: 418.39 | D163: 31.89 | E163: Visa | F163: =+C159+503.36+C163 -> 958.5 | G163: 941.39
A164: 15528 | B164: 2015-01-28 | C164: 389.65 | D164: 29.7
A165: 15529 | B165: 2015-01-28 | C165: 274 | E165: Due, Carlos G - MX resale
A166: 15530 | B166: 2015-01-28 | C166: 31.34 | D166: 2.39 | E166: Visa
A167: 15531 | B167: 2015-01-28 | C167: 82.81 | D167: 6.31
A168: 15532 | B168: 2015-01-28 | C168: 38 | D168: 2.9 | E168: MC
A169: 15533 | B169: 2015-01-28 | C169: 401.14 | D169: 38.19 | E169: MC
A170: 15534 | B170: 2015-01-28 | C170: 32.48 | D170: 2.48
A171: 15535 | B171: 2015-01-28 | C171: 11 | D171: 0.84 | F171: =223.65+C166+C168+441.14 -> 734.13 | G171: 721.18
A172: 15536 | B172: 2015-01-29 | C172: 10 | D172: 0.76
A173: 15537 | B173: 2015-01-29 | C173: 191.06 | D173: 14.56
A174: 15538 | B174: 2015-01-29 | C174: 47.31 | D174: 3.61
A175: 15539 | B175: 2015-01-29 | C175: 57.37 | D175: 4.37 | E175: Due
A176: 15540 | B176: 2015-01-29 | C176: 69.28 | D176: 5.28
A177: 15541 | B177: 2015-01-29 | C177: 151.5 | D177: 11.55
A178: 15542 | B178: 2015-01-29 | C178: 51.96 | D178: 3.96
A179: 15543 | B179: 2015-01-29 | C179: 11.64 | D179: 0.89 | E179: Visa
A180: 15544 | B180: 2015-01-29 | C180: 117.99 | D180: 8.99 | E180: Due
A181: 15545 | B181: 2015-01-29 | C181: 58.46 | D181: 4.46 | E181: Visa | F181: =+C179+C181 -> 70.1 | G181: 69.22
A182: 15546 | B182: 2015-01-30 | C182: 21.65 | D182: 1.65
A183: 15547 | B183: 2015-01-30 | C183: 43.3 | D183: 3.3
A184: 15548 | B184: 2015-01-30 | C184: 35.94 | D184: 2.74 | E184: MC
A185: 15549 | B185: 2015-01-30 | C185: 115.29 | D185: 8.79 | E185: MC
A186: 15550 | B186: 2015-01-30 | C186: 5.36 | D186: 0.41
A187: 15551 | B187: 2015-01-30 | C187: 59.54 | D187: 4.54
A188: 15552 | B188: 2015-01-30 | C188: 11.5 | D188: 0.88
A189: 15553 | B189: 2015-01-30 | C189: 20 | D189: 1.52
A190: 15554 | B190: 2015-01-30 | C190: 273.33 | D190: 20.83 | E190: Visa
A191: 15555 | B191: 2015-01-30 | C191: 62.79 | D191: 4.79
A192: 15556 | B192: 2015-01-30 | C192: 16.18 | D192: 1.23 | E192: MC
A193: 15557 | B193: 2015-01-30 | C193: 21.65 | D193: 1.65 | E193: Visa | F193: =106.11+C184+C185+C190+C192+C193 -> 568.5 | G193: 558.53
A194: 15558 | B194: 2015-01-31 | C194: 5.36 | D194: 0.41
A195: 15559 | B195: 2015-01-31 | C195: 172.12 | D195: 13.12
A196: 15560 | B196: 2015-01-31 | C196: 34.2 | D196: 2.61
A197: 15561 | B197: 2015-01-31 | C197: 92.01 | D197: 7.01 | E197: Visa
A198: 15562 | B198: 2015-01-31 | C198: 36.1 | D198: 2.75
A199: 15563 | B199: 2015-01-31 | C199: 48.65 | D199: 3.71 | E199: MC
A200: 15564 | B200: 2015-01-31 | C200: 6 | D200: 0.46
... 11 more rows

Sheet Perpetual
A1: Type the row number of a vendor from the list below
A2: Vendor names can be added in column 'D' of the 'LookupList' worksheet
A3: TR
A4: WPS
A5: AET
A6: BikeBandit
A7: DWG
A8: FHF
A9: Helmets
A10: Hesselbean
A11: Howards
A12: Maxx
A13: PapaDuff
A14: Supersprox
A15: Van Leeuwen
A16: eBay
A17: Amazon
A18: Tmart
A19: Banggood
A20: Other
